{"text_format":"1","workbook":"xlsx","n_sheets":13,"sheets":["１　整数×整数","２　整数×分数","３　分数×整数","４　分数×分数","５　整数÷整数１","６　整数÷整数２","７　整数÷分数","８　分数÷整数","９　分数÷分数","10　累乗","11　整数の乗除１","12　整数の乗除２","13　分数の乗除"],"not_rendered":{"charts":0,"images":0,"macros":1,"external_links":0,"defined_names":13,"comments":0,"pivot_tables":0},"unopened":[],"bounds":{"document_bytes":16777216,"sheet_cells":100000,"rows_first":2000,"rows_last":500,"rows_between":2000,"halvings":0,"cell_chars":16384,"cell_head_chars":4096},"cells_cut":0,"cells_raw":0,"read":"whole","date_system":"1900"}

{"sheet":"１　整数×整数","index":0,"n_rows":27,"n_cols":110,"rows_kept":27,"cut":false,"hidden":false,"merged":[[7,2,8,5],[7,9,8,10],[7,11,8,12],[7,13,8,15],[7,16,8,17],[0,33,4,68],[1,4,2,6],[1,7,2,25],[6,2,6,5],[6,32,6,39],[7,32,8,39],[11,5,12,8],[11,11,12,18],[11,19,12,35],[11,57,20,69],[15,5,16,8],[15,11,16,28],[15,29,16,30],[15,31,16,32],[15,33,16,34],[7,18,8,19],[7,20,8,21],[7,22,8,23],[7,24,8,26],[7,27,8,28],[7,29,8,30],[17,11,18,28],[17,29,18,31],[17,32,18,33],[17,34,18,36],[21,57,26,69]]}
[null,null,null,null,null,null,null,null,null,null,null,null,null,null,null,null,null,null,null,null,null,null,null,null,null,null,null,null,null,null,null,null,null,"問題は１～２０まで、２０題あります。\n答えが正の数の時は、｢＋｣を省略してください。"]
[null,null,null,null,1,null,null,"整数の乗法"]
[]
[]
[]
[]
[null,null,"問題番号",null,null,null,null,null,null,null,null,null,null,null,null,null,null,null,null,null,null,null,null,null,null,null,null,null,null,null,null,null,"答えを入力"]
[null,null,1,null,null,null,null,null,null,"（",null,{"$f":"IF(MOD($C$8,5)<3,\"－\",\"＋\")","v":"－"},null,{"$f":"VLOOKUP($C$8,$DD$8:$DF$27,2,0)","v":2},null,null,"）",null,"×",null,"（",null,{"$f":"IF(MOD($C$8,4)>1,\"＋\",\"－\")","v":"－"},null,{"$f":"VLOOKUP($C$8,$DD$8:$DF$27,3,0)","v":4},null,null,"）",null,"＝",null,null,null,null,null,null,null,null,null,null,null,null,null,null,null,null,null,null,null,null,null,null,null,null,null,null,null,null,null,null,null,null,null,null,null,null,null,null,null,null,null,null,null,null,null,null,null,null,null,null,null,null,null,null,null,null,null,null,null,null,null,null,null,null,null,null,null,null,null,null,null,null,null,null,null,null,null,1,2,{"$f":"WEEKDAY(TODAY(),2)+1","v":4}]
[null,null,null,null,null,null,null,null,null,null,null,null,null,null,null,null,null,null,null,null,null,null,null,null,null,null,null,null,null,null,null,null,null,null,null,null,null,null,null,null,null,null,null,null,null,null,null,null,null,null,null,null,null,null,null,null,null,null,null,null,null,null,null,null,null,null,null,null,null,null,null,null,null,null,null,null,null,null,null,null,null,null,null,null,null,null,null,null,null,null,null,null,null,null,null,null,null,null,null,null,null,null,null,null,null,null,null,2,{"$f":"MOD(DAY(TODAY()),4)+2","v":3},3]
[null,null,null,null,null,null,null,null,null,null,null,null,null,null,null,null,null,null,null,null,null,null,null,null,null,null,null,null,null,null,null,null,null,null,null,null,null,null,null,null,null,null,null,null,null,null,null,null,null,null,null,null,null,null,null,null,null,null,null,null,null,null,null,null,null,null,null,null,null,null,null,null,null,null,null,null,null,null,null,null,null,null,null,null,null,null,null,null,null,null,null,null,null,null,null,null,null,null,null,null,null,null,null,null,null,null,null,3,3,{"$f":"MOD(WEEKDAY(TODAY(),2),2)+5","v":6}]
[null,null,null,null,null,null,null,null,null,null,null,null,null,null,null,null,null,null,null,null,null,null,null,null,null,null,null,null,null,null,null,null,null,null,null,null,null,null,null,null,null,null,null,null,null,null,null,null,null,null,null,null,null,null,null,null,null,null,null,null,null,null,null,null,null,null,null,null,null,null,null,null,null,null,null,null,null,null,null,null,null,null,null,null,null,null,null,null,null,null,null,null,null,null,null,null,null,null,null,null,null,null,null,null,null,null,null,4,{"$f":"MOD(MONTH(TODAY()),3)+4","v":4},4]
[null,null,null,null,null,"正解",null,null,null,null,null,{"$f":"VALUE(ASC(L8&N8))*VALUE(ASC(W8&Y8))","v":8},null,null,null,null,null,null,null,null,null,null,null,null,null,null,null,null,null,null,null,null,null,null,null,null,null,null,null,null,null,null,null,null,null,null,null,null,null,null,null,null,null,null,null,null,null,{"$f":"IF($AG$8=$L$12,\"○\",\"×\")","v":"×"},null,null,null,null,null,null,null,null,null,null,null,null,null,null,null,null,null,null,null,null,null,null,null,null,null,null,null,null,null,null,null,null,null,null,null,null,null,null,null,null,null,null,null,null,null,null,null,null,null,5,4,{"$f":"MOD(DAY(TODAY()),3)+4","v":4}]
[null,null,null,null,null,null,null,null,null,null,null,null,null,null,null,null,null,null,null,null,null,null,null,null,null,null,null,null,null,null,null,null,null,null,null,null,null,null,null,null,null,null,null,null,null,null,null,null,null,null,null,null,null,null,null,null,null,null,null,null,null,null,null,null,null,null,null,null,null,null,null,null,null,null,null,null,null,null,null,null,null,null,null,null,null,null,null,null,null,null,null,null,null,null,null,null,null,null,null,null,null,null,null,null,null,null,null,6,{"$f":"MOD(MONTH(TODAY()),3)+6","v":6},5]
[null,null,null,null,null,null,null,null,null,null,null,null,null,null,null,null,null,null,null,null,null,null,null,null,null,null,null,null,null,null,null,null,null,null,null,null,null,null,null,null,null,null,null,null,null,null,null,null,null,null,null,null,null,null,null,null,null,null,null,null,null,null,null,null,null,null,null,null,null,null,null,null,null,null,null,null,null,null,null,null,null,null,null,null,null,null,null,null,null,null,null,null,null,null,null,null,null,null,null,null,null,null,null,null,null,null,null,7,5,{"$f":"MOD(DAY(TODAY()),5)+3","v":7}]
[null,null,null,null,null,null,null,null,null,null,null,null,null,null,null,null,null,null,null,null,null,null,null,null,null,null,null,null,null,null,null,null,null,null,null,null,null,null,null,null,null,null,null,null,null,null,null,null,null,null,null,null,null,null,null,null,null,null,null,null,null,null,null,null,null,null,null,null,null,null,null,null,null,null,null,null,null,null,null,null,null,null,null,null,null,null,null,null,null,null,null,null,null,null,null,null,null,null,null,null,null,null,null,null,null,null,null,8,{"$f":"2*(MOD(WEEKDAY(TODAY(),2),2)+2)","v":6},6]
[null,null,null,null,null,"解説",null,null,null,null,null,{"$f":"IF(L8=W8,\"同符号なので\",\"異符号なので\")","v":"同符号なので"},null,null,null,null,null,null,null,null,null,null,null,null,null,null,null,null,null,"「",null,{"$f":"IF(L8=W8,\"＋\",\"－\")","v":"＋"},null,"」",null,null,null,null,null,null,null,null,null,null,null,null,null,null,null,null,null,null,null,null,null,null,null,null,null,null,null,null,null,null,null,null,null,null,null,null,null,null,null,null,null,null,null,null,null,null,null,null,null,null,null,null,null,null,null,null,null,null,null,null,null,null,null,null,null,null,null,null,null,null,null,null,null,9,6,{"$f":"MOD(DAY(TODAY()),5)+3","v":7}]
[null,null,null,null,null,null,null,null,null,null,null,null,null,null,null,null,null,null,null,null,null,null,null,null,null,null,null,null,null,null,null,null,null,null,null,null,null,null,null,null,null,null,null,null,null,null,null,null,null,null,null,null,null,null,null,null,null,null,null,null,null,null,null,null,null,null,null,null,null,null,null,null,null,null,null,null,null,null,null,null,null,null,null,null,null,null,null,null,null,null,null,null,null,null,null,null,null,null,null,null,null,null,null,null,null,null,null,10,{"$f":"2*(MOD(DAY(TODAY()),3))+3","v":3},7]
[null,null,null,null,null,null,null,null,null,null,null,"数はそのままかけて",null,null,null,null,null,null,null,null,null,null,null,null,null,null,null,null,null,{"$f":"N8","v":2},null,null,"×",null,{"$f":"Y8","v":4},null,null,null,null,null,null,null,null,null,null,null,null,null,null,null,null,null,null,null,null,null,null,null,null,null,null,null,null,null,null,null,null,null,null,null,null,null,null,null,null,null,null,null,null,null,null,null,null,null,null,null,null,null,null,null,null,null,null,null,null,null,null,null,null,null,null,null,null,null,null,null,null,11,7,{"$f":"WEEKDAY(TODAY(),1)","v":4}]
[null,null,null,null,null,null,null,null,null,null,null,null,null,null,null,null,null,null,null,null,null,null,null,null,null,null,null,null,null,null,null,null,null,null,null,null,null,null,null,null,null,null,null,null,null,null,null,null,null,null,null,null,null,null,null,null,null,null,null,null,null,null,null,null,null,null,null,null,null,null,null,null,null,null,null,null,null,null,null,null,null,null,null,null,null,null,null,null,null,null,null,null,null,null,null,null,null,null,null,null,null,null,null,null,null,null,null,12,{"$f":"WEEKDAY(TODAY(),13)","v":1},7]
[null,null,null,null,null,null,null,null,null,null,null,null,null,null,null,null,null,null,null,null,null,null,null,null,null,null,null,null,null,null,null,null,null,null,null,null,null,null,null,null,null,null,null,null,null,null,null,null,null,null,null,null,null,null,null,null,null,null,null,null,null,null,null,null,null,null,null,null,null,null,null,null,null,null,null,null,null,null,null,null,null,null,null,null,null,null,null,null,null,null,null,null,null,null,null,null,null,null,null,null,null,null,null,null,null,null,null,13,8,{"$f":"WEEKDAY(TODAY(),12)+1","v":3}]
[null,null,null,null,null,null,null,null,null,null,null,null,null,null,null,null,null,null,null,null,null,null,null,null,null,null,null,null,null,null,null,null,null,null,null,null,null,null,null,null,null,null,null,null,null,null,null,null,null,null,null,null,null,null,null,null,null,null,null,null,null,null,null,null,null,null,null,null,null,null,null,null,null,null,null,null,null,null,null,null,null,null,null,null,null,null,null,null,null,null,null,null,null,null,null,null,null,null,null,null,null,null,null,null,null,null,null,14,{"$f":"INT(DAY(TODAY())/6)+4","v":5},8]
[null,null,null,null,null,null,null,null,null,null,null,null,null,null,null,null,null,null,null,null,null,null,null,null,null,null,null,null,null,null,null,null,null,null,null,null,null,null,null,null,null,null,null,null,null,null,null,null,null,null,null,null,null,null,null,null,null,{"$f":"IF($AG$8=$L$12,\"正解！\",\"残念！\")","v":"残念！"},null,null,null,null,null,null,null,null,null,null,null,null,null,null,null,null,null,null,null,null,null,null,null,null,null,null,null,null,null,null,null,null,null,null,null,null,null,null,null,null,null,null,null,null,null,null,null,null,null,15,8,{"$f":"WEEKDAY(TODAY(),15)+2","v":8}]
[null,null,null,null,null,null,null,null,null,null,null,null,null,null,null,null,null,null,null,null,null,null,null,null,null,null,null,null,null,null,null,null,null,null,null,null,null,null,null,null,null,null,null,null,null,null,null,null,null,null,null,null,null,null,null,null,null,null,null,null,null,null,null,null,null,null,null,null,null,null,null,null,null,null,null,null,null,null,null,null,null,null,null,null,null,null,null,null,null,null,null,null,null,null,null,null,null,null,null,null,null,null,null,null,null,null,null,16,{"$f":"DF16+1","v":8},9]
[null,null,null,null,null,null,null,null,null,null,null,null,null,null,null,null,null,null,null,null,null,null,null,null,null,null,null,null,null,null,null,null,null,null,null,null,null,null,null,null,null,null,null,null,null,null,null,null,null,null,null,null,null,null,null,null,null,null,null,null,null,null,null,null,null,null,null,null,null,null,null,null,null,null,null,null,null,null,null,null,null,null,null,null,null,null,null,null,null,null,null,null,null,null,null,null,null,null,null,null,null,null,null,null,null,null,null,17,9,{"$f":"DE13","v":6}]
[null,null,null,null,null,null,null,null,null,null,null,null,null,null,null,null,null,null,null,null,null,null,null,null,null,null,null,null,null,null,null,null,null,null,null,null,null,null,null,null,null,null,null,null,null,null,null,null,null,null,null,null,null,null,null,null,null,null,null,null,null,null,null,null,null,null,null,null,null,null,null,null,null,null,null,null,null,null,null,null,null,null,null,null,null,null,null,null,null,null,null,null,null,null,null,null,null,null,null,null,null,null,null,null,null,null,null,18,{"$f":"WEEKDAY(TODAY(),14)+2","v":9},9]
[null,null,null,null,null,null,null,null,null,null,null,null,null,null,null,null,null,null,null,null,null,null,null,null,null,null,null,null,null,null,null,null,null,null,null,null,null,null,null,null,null,null,null,null,null,null,null,null,null,null,null,null,null,null,null,null,null,null,null,null,null,null,null,null,null,null,null,null,null,null,null,null,null,null,null,null,null,null,null,null,null,null,null,null,null,null,null,null,null,null,null,null,null,null,null,null,null,null,null,null,null,null,null,null,null,null,null,19,10,{"$f":"WEEKDAY(TODAY(),1)+5","v":9}]
[null,null,null,null,null,null,null,null,null,null,null,null,null,null,null,null,null,null,null,null,null,null,null,null,null,null,null,null,null,null,null,null,null,null,null,null,null,null,null,null,null,null,null,null,null,null,null,null,null,null,null,null,null,null,null,null,null,null,null,null,null,null,null,null,null,null,null,null,null,null,null,null,null,null,null,null,null,null,null,null,null,null,null,null,null,null,null,null,null,null,null,null,null,null,null,null,null,null,null,null,null,null,null,null,null,null,null,20,{"$f":"2*WEEKDAY(TODAY(),16)+1","v":11},10]

{"sheet":"２　整数×分数","index":1,"n_rows":34,"n_cols":113,"rows_kept":34,"cut":false,"hidden":false,"merged":[[29,109,30,109],[32,109,33,109],[10,43,10,49],[15,11,15,16],[12,11,13,12],[11,13,12,16],[13,13,14,16],[19,26,20,55],[21,57,26,69],[28,18,29,27],[27,14,28,17],[0,33,4,68],[1,4,2,6],[1,7,2,25],[6,2,6,5],[6,32,6,39],[6,24,7,26],[7,32,8,39],[7,2,8,5],[7,9,8,10],[7,11,8,12],[7,16,8,17],[5,42,5,50],[7,43,8,44],[6,43,6,44],[11,5,12,8],[11,57,20,69],[17,5,18,8],[7,18,8,19],[7,20,8,21],[7,22,8,23],[7,27,8,28],[7,29,8,30],[6,45,7,49],[8,45,9,49],[15,21,15,26],[15,29,15,34],[8,24,9,26],[11,20,12,45],[7,13,8,15],[7,51,8,61],[28,10,29,10],[28,12,29,13],[29,14,30,17],[19,10,20,10],[17,10,17,15],[18,10,18,13],[17,16,17,19],[19,12,20,13],[18,14,19,25],[20,14,21,25],[24,10,25,10],[24,12,25,13],[22,19,22,22],[23,14,24,25],[25,14,26,25]]}
[null,null,null,null,null,null,null,null,null,null,null,null,null,null,null,null,null,null,null,null,null,null,null,null,null,null,null,null,null,null,null,null,null,"問題は２０題。約分できるものは約分して答えること。\n答えが整数か分数かで、解答の入力場所が違います。"]
[null,null,null,null,3,null,null,"分数×整数"]
[]
[]
[null,null,null,null,null,null,null,null,null,null,null,null,null,null,null,null,null,null,null,null,null,null,null,null,null,null,null,null,null,null,null,null,null,null,null,null,null,null,null,null,null,null,null,null,null,null,null,null,null,null,null,null,null,null,null,null,null,null,null,null,null,null,null,null,null,null,null,null,null,null,null,null,null,null,null,null,null,null,null,null,null,null,null,null,null,null,null,null,null,null,null,null,null,null,null,null,null,null,null,null,null,null,null,null,null,null,null,null,{"$f":"MOD(DAY(TODAY()),2)","v":1},{"$f":"MOD(DAY(TODAY()),3)","v":0},{"$f":"MOD(DAY(TODAY()),4)","v":1},{"$f":"MOD(DAY(TODAY()),5)","v":4},{"$f":"MOD(DAY(TODAY()),6)","v":3}]
[null,null,null,null,null,null,null,null,null,null,null,null,null,null,null,null,null,null,null,null,null,null,null,null,null,null,null,null,null,null,null,null,null,null,null,null,null,null,null,null,null,null,"答えが分数の時",null,null,null,null,null,null,null,null,null,null,null,null,null,null,null,null,null,null,null,null,null,null,null,null,null,null,null,null,null,null,null,null,null,null,null,null,null,null,null,null,null,null,null,null,null,null,null,null,null,null,null,null,null,null,null,null,null,null,null,null,null,null,null,null,null,{"$f":"2*DE5+1","v":3},{"$f":"2*DF5+1","v":1},3,9,7]
[null,null,"問題番号",null,null,null,null,null,null,null,null,null,null,null,null,null,null,null,null,null,null,null,null,null,{"$f":"VLOOKUP($C$8,$DD$8:$DJ$27,3,0)","v":3},null,null,null,null,null,null,null,"答えが整数の時"]
[null,null,1,null,null,null,null,null,null,"（",null,{"$f":"VLOOKUP($C$8,$DD$8:$DJ$27,2,0)","v":"+"},null,{"$f":"VLOOKUP($C$8,$DD$8:$DJ$27,6,0)","v":2},null,null,"）",null,"×",null,"（",null,{"$f":"VLOOKUP($C$8,$DD$8:$DJ$27,5,0)","v":"+"},null,null,null,null,"）",null,"＝",null,null,null,null,null,null,null,null,null,null,null,null,null,null,null,null,null,null,null,null,null,"←符号は選んで！",null,null,null,null,null,null,null,null,null,null,null,null,null,null,null,null,null,null,null,null,null,null,null,null,null,null,null,null,null,null,null,null,null,null,null,null,null,null,null,null,null,null,null,null,null,null,null,null,null,null,null,null,null,null,null,1,"+",{"$f":"$DE$6","v":3},4,"+",2]
[null,null,null,null,null,null,null,null,null,null,null,null,null,null,null,null,null,null,null,null,null,null,null,null,{"$f":"VLOOKUP($C$8,$DD$8:$DJ$27,4,0)","v":4},null,null,null,null,null,null,null,null,null,null,null,null,null,null,null,null,null,null,null,null,null,null,null,null,null,null,null,null,null,null,null,null,null,null,null,null,null,null,null,null,null,null,null,null,null,null,null,null,null,null,null,null,null,null,null,null,null,null,null,null,null,null,null,null,null,null,null,null,null,null,null,null,null,null,null,null,null,null,null,null,null,null,2,"+",{"$f":"$DF$5*3+2","v":2},3,"-",{"$f":"6*$DE$5+1","v":7}]
[null,null,null,null,null,null,null,null,null,null,null,null,null,null,null,null,null,null,null,null,null,null,null,null,null,null,null,null,null,null,null,null,null,null,null,null,null,null,null,null,null,null,null,null,null,null,null,null,null,null,null,null,null,null,null,null,null,null,null,null,null,null,null,null,null,null,null,null,null,null,null,null,null,null,null,null,null,null,null,null,null,null,null,null,null,null,null,null,null,null,null,null,null,null,null,null,null,null,null,null,null,null,null,null,null,null,null,3,"-",{"$f":"$DE$6+4","v":7},6,"+",{"$f":"$DF$6+5","v":6}]
[null,null,null,null,null,null,null,null,null,null,null,null,null,null,null,null,null,null,null,null,null,null,null,null,null,null,null,null,null,null,null,null,null,null,null,null,null,null,null,null,null,null,null,null,null,null,null,null,null,null,null,null,null,null,null,null,null,null,null,null,null,null,null,null,null,null,null,null,null,null,null,null,null,null,null,null,null,null,null,null,null,null,null,null,null,null,null,null,null,null,null,null,null,null,null,null,null,null,null,null,null,null,null,null,null,null,null,4,"-",{"$f":"$DH$6","v":9},8,"-",{"$f":"$DG$6+2","v":5}]
[null,null,null,null,null,"正解",null,null,null,null,null,null,null,{"$f":"IF(O28=\"\",S29,O28)","v":3},null,null,null,null,null,null,{"$f":"IF(M25=\"\",\"⇒ 正の数や０では符号を書かない\",\"\")","v":"⇒ 正の数や０では符号を書かない"},null,null,null,null,null,null,null,null,null,null,null,null,null,null,null,null,null,null,null,null,null,null,null,null,null,null,null,null,null,null,null,null,null,null,null,null,{"$f":"IF(COUNTIF(DF30:DF34,\"○\")=2,\"○\",\"×\")","v":"×"},null,null,null,null,null,null,null,null,null,null,null,null,null,null,null,null,null,null,null,null,null,null,null,null,null,null,null,null,null,null,null,null,null,null,null,null,null,null,null,null,null,null,null,null,null,null,null,null,null,5,"-",{"$f":"5-$DE$5","v":4},3,"+",{"$f":"$DE$5+1","v":2}]
[null,null,null,null,null,null,null,null,null,null,null,{"$f":"IF(O28=\"\",\"\",M29)","v":""},null,null,null,null,null,null,null,null,null,null,null,null,null,null,null,null,null,null,null,null,null,null,null,null,null,null,null,null,null,null,null,null,null,null,null,null,null,null,null,null,null,null,null,null,null,null,null,null,null,null,null,null,null,null,null,null,null,null,null,null,null,null,null,null,null,null,null,null,null,null,null,null,null,null,null,null,null,null,null,null,null,null,null,null,null,null,null,null,null,null,null,null,null,null,null,6,"+",{"$f":"5*$DG$5+1","v":6},5,"-",{"$f":"$DG$6+1","v":4}]
[null,null,null,null,null,null,null,null,null,null,null,null,null,{"$f":"IF(O30=\"\",\"\",O30)","v":2},null,null,null,null,null,null,null,null,null,null,null,null,null,null,null,null,null,null,null,null,null,null,null,null,null,null,null,null,null,null,null,null,null,null,null,null,null,null,null,null,null,null,null,null,null,null,null,null,null,null,null,null,null,null,null,null,null,null,null,null,null,null,null,null,null,null,null,null,null,null,null,null,null,null,null,null,null,null,null,null,null,null,null,null,null,null,null,null,null,null,null,null,null,7,"+",{"$f":"3*$DG$5+1","v":4},3,"+",{"$f":"$DF$6*2","v":2}]
[null,null,null,null,null,null,null,null,null,null,null,null,null,null,null,null,null,null,null,null,null,null,null,null,null,null,null,null,null,null,null,null,null,null,null,null,null,null,null,null,null,null,null,null,null,null,null,null,null,null,null,null,null,null,null,null,null,null,null,null,null,null,null,null,null,null,null,null,null,null,null,null,null,null,null,null,null,null,null,null,null,null,null,null,null,null,null,null,null,null,null,null,null,null,null,null,null,null,null,null,null,null,null,null,null,null,null,8,"+",{"$f":"$DH$6","v":9},4,"-",{"$f":"$DE$5+4","v":5}]
[null,null,null,null,null,null,null,null,null,null,null,{"$f":"IF(N14<>\"\",\"―――――\",\"\")","v":"―――――"},null,null,null,null,null,null,null,null,null,null,null,null,null,null,null,null,null,null,null,null,null,null,null,null,null,null,null,null,null,null,null,null,null,null,null,null,null,null,null,null,null,null,null,null,null,null,null,null,null,null,null,null,null,null,null,null,null,null,null,null,null,null,null,null,null,null,null,null,null,null,null,null,null,null,null,null,null,null,null,null,null,null,null,null,null,null,null,null,null,null,null,null,null,null,null,9,"-",{"$f":"2*($DF$5+1)","v":2},5,"+",{"$f":"$DG$6+3","v":6}]
[null,null,null,null,null,null,null,null,null,null,null,null,null,null,null,null,null,null,null,null,null,null,null,null,null,null,null,null,null,null,null,null,null,null,null,null,null,null,null,null,null,null,null,null,null,null,null,null,null,null,null,null,null,null,null,null,null,null,null,null,null,null,null,null,null,null,null,null,null,null,null,null,null,null,null,null,null,null,null,null,null,null,null,null,null,null,null,null,null,null,null,null,null,null,null,null,null,null,null,null,null,null,null,null,null,null,null,10,"-",{"$f":"$DG$5+1","v":2},5,"-",{"$f":"3*$DF$5+1","v":1}]
[null,null,null,null,null,"解説",null,null,null,null,{"$f":"IF(L8=W8,\"同符号なので\",\"異符号なので\")","v":"同符号なので"},null,null,null,null,null,{"$f":"IF(GCD(N8,Y9)=1,\"\",GCD(N8,Y9)&\"でわる\")","v":"2でわる"},null,null,null,null,null,null,null,null,null,null,null,null,null,null,null,null,null,null,null,null,null,null,null,null,null,null,null,null,null,null,null,null,null,null,null,null,null,null,null,null,null,null,null,null,null,null,null,null,null,null,null,null,null,null,null,null,null,null,null,null,null,null,null,null,null,null,null,null,null,null,null,null,null,null,null,null,null,null,null,null,null,null,null,null,null,null,null,null,null,null,11,"-",{"$f":"$DG$6+2","v":5},4,"+",{"$f":"$DE$6+4","v":7}]
[null,null,null,null,null,null,null,null,null,null,{"$f":"IF(L8=W8,\"符号なし\",\"符号は－\")","v":"符号なし"},null,null,null,{"$f":"DBCS(N8&S8&Y7)","v":"２×３"},null,null,null,null,null,null,null,null,null,null,null,null,null,null,null,null,null,null,null,null,null,null,null,null,null,null,null,null,null,null,null,null,null,null,null,null,null,null,null,null,null,null,null,null,null,null,null,null,null,null,null,null,null,null,null,null,null,null,null,null,null,null,null,null,null,null,null,null,null,null,null,null,null,null,null,null,null,null,null,null,null,null,null,null,null,null,null,null,null,null,null,null,12,"+",{"$f":"3*$DF$5+1","v":1},3,"-",{"$f":"($DE$5+1)*($DG$5+1)","v":4}]
[null,null,null,null,null,null,null,null,null,null,null,null,{"$f":"IF(L8=W8,\"\",\"-\")","v":""},null,null,null,null,null,null,null,null,null,null,null,null,null,{"$f":"DBCS(IF(GCD(N8,Y9)=1,\"\",\"｢\"&N8&\"｣と｢\"&Y9&\"｣を『\"&GCD(N8,Y9)&\"』で約分\"))","v":"「２」と「４」を『２』で約分"},null,null,null,null,null,null,null,null,null,null,null,null,null,null,null,null,null,null,null,null,null,null,null,null,null,null,null,null,null,null,null,null,null,null,null,null,null,null,null,null,null,null,null,null,null,null,null,null,null,null,null,null,null,null,null,null,null,null,null,null,null,null,null,null,null,null,null,null,null,null,null,null,null,null,null,null,null,null,null,null,13,"+",{"$f":"$DE$6","v":3},5,"+",{"$f":"$DF$6*3","v":3}]
[null,null,null,null,null,null,null,null,null,null,null,null,null,null,{"$f":"DBCS(Y9)","v":"４"},null,null,null,null,null,null,null,null,null,null,null,null,null,null,null,null,null,null,null,null,null,null,null,null,null,null,null,null,null,null,null,null,null,null,null,null,null,null,null,null,null,null,null,null,null,null,null,null,null,null,null,null,null,null,null,null,null,null,null,null,null,null,null,null,null,null,null,null,null,null,null,null,null,null,null,null,null,null,null,null,null,null,null,null,null,null,null,null,null,null,null,null,14,"+",{"$f":"$DF$6","v":1},7,"-",{"$f":"4*$DE$5+1","v":5}]
[null,null,null,null,null,null,null,null,null,null,null,null,null,null,null,null,null,null,null,null,null,null,null,null,null,null,null,null,null,null,null,null,null,null,null,null,null,null,null,null,null,null,null,null,null,null,null,null,null,null,null,null,null,null,null,null,null,{"$f":"IF(BF12=\"○\",\"正解！\",\"残念！\")","v":"残念！"},null,null,null,null,null,null,null,null,null,null,null,null,null,null,null,null,null,null,null,null,null,null,null,null,null,null,null,null,null,null,null,null,null,null,null,null,null,null,null,null,null,null,null,null,null,null,null,null,null,15,"-",{"$f":"$DG$6+1","v":4},5,"+",{"$f":"2*$DE$6+3","v":9}]
[null,null,null,null,null,null,null,null,null,null,null,null,null,null,null,null,null,null,null,{"$f":"IF(GCD(N8,Y9)=1,\"\",GCD(N8,Y9)&\"でわる\")","v":"2でわる"},null,null,null,null,null,null,null,null,null,null,null,null,null,null,null,null,null,null,null,null,null,null,null,null,null,null,null,null,null,null,null,null,null,null,null,null,null,null,null,null,null,null,null,null,null,null,null,null,null,null,null,null,null,null,null,null,null,null,null,null,null,null,null,null,null,null,null,null,null,null,null,null,null,null,null,null,null,null,null,null,null,null,null,null,null,null,null,16,"-",{"$f":"$DE$6+4","v":7},6,"-",{"$f":"4*$DF$5+1","v":1}]
[null,null,null,null,null,null,null,null,null,null,null,null,null,null,{"$f":"IF(GCD(N8,Y9)>1,N8/GCD(N8,Y9)&\"×\"&Y7,\"\")","v":"1×3"},null,null,null,null,null,null,null,null,null,null,null,null,null,null,null,null,null,null,null,null,null,null,null,null,null,null,null,null,null,null,null,null,null,null,null,null,null,null,null,null,null,null,null,null,null,null,null,null,null,null,null,null,null,null,null,null,null,null,null,null,null,null,null,null,null,null,null,null,null,null,null,null,null,null,null,null,null,null,null,null,null,null,null,null,null,null,null,null,null,null,null,null,17,"+",{"$f":"$DG$6+2","v":5},4,"-",{"$f":"4*$DE$6-1","v":11}]
[null,null,null,null,null,null,null,null,null,null,{"$f":"IF(GCD(N8,Y9)>1,\"=\",\"\")","v":"="},null,{"$f":"IF(GCD(N8,Y9)>1,M20,\"\")","v":""},null,null,null,null,null,null,null,null,null,null,null,null,null,null,null,null,null,null,null,null,null,null,null,null,null,null,null,null,null,null,null,null,null,null,null,null,null,null,null,null,null,null,null,null,null,null,null,null,null,null,null,null,null,null,null,null,null,null,null,null,null,null,null,null,null,null,null,null,null,null,null,null,null,null,null,null,null,null,null,null,null,null,null,null,null,null,null,null,null,null,null,null,null,null,18,"-",{"$f":"3*$DE$6+1","v":10},9,"+",{"$f":"$DE$6+4","v":7}]
[null,null,null,null,null,null,null,null,null,null,null,null,null,null,{"$f":"IF(GCD(N8,Y9)>1,O21/GCD(N8,Y9),\"\")","v":2},null,null,null,null,null,null,null,null,null,null,null,null,null,null,null,null,null,null,null,null,null,null,null,null,null,null,null,null,null,null,null,null,null,null,null,null,null,null,null,null,null,null,null,null,null,null,null,null,null,null,null,null,null,null,null,null,null,null,null,null,null,null,null,null,null,null,null,null,null,null,null,null,null,null,null,null,null,null,null,null,null,null,null,null,null,null,null,null,null,null,null,null,19,"-",{"$f":"6*$DF$5+1","v":1},6,"+",{"$f":"$DE$6*$DF$6","v":3}]
[null,null,null,null,null,null,null,null,null,null,null,null,null,null,null,null,null,null,null,null,null,null,null,null,null,null,null,null,null,null,null,null,null,null,null,null,null,null,null,null,null,null,null,null,null,null,null,null,null,null,null,null,null,null,null,null,null,null,null,null,null,null,null,null,null,null,null,null,null,null,null,null,null,null,null,null,null,null,null,null,null,null,null,null,null,null,null,null,null,null,null,null,null,null,null,null,null,null,null,null,null,null,null,null,null,null,null,20,"-",{"$f":"$DF$6+6","v":7},10,"-",{"$f":"$DF$6*$DG$6","v":3}]
[null,null,null,null,null,null,null,null,null,null,null,null,null,null,{"$f":"IF(O26=1,\"\",N8*Y7/GCD(N8,Y9))","v":3}]
[null,null,null,null,null,null,null,null,null,null,"=",null,{"$f":"IF(S29=\"\",M20,\"\")","v":""},null,null,null,null,null,{"$f":"IF(O26=1,VALUE(ASC(M25&(N8*Y7/Y9))),\"\")","v":""}]
[null,null,null,null,null,null,null,null,null,null,null,null,null,null,{"$f":"IF(O26=1,\"\",Y9/GCD(N8,Y9))","v":2},null,null,null,null,null,null,null,null,null,null,null,null,null,null,null,null,null,null,null,null,null,null,null,null,null,null,null,null,null,null,null,null,null,null,null,null,null,null,null,null,null,null,null,null,null,null,null,null,null,null,null,null,null,null,null,null,null,null,null,null,null,null,null,null,null,null,null,null,null,null,null,null,null,null,null,null,null,null,null,null,null,null,null,null,null,null,null,null,null,null,null,null,null,{"$f":"IF(COUNTA(AQ7:AY10)=0,\"×\",\"○\")","v":"×"},{"$f":"IF(COUNTIF(DE30:DE31,\"○\")=1,\"○\",\"×\")","v":"×"},null,"-"]
[null,null,null,null,null,null,null,null,null,null,null,null,null,null,null,null,null,null,null,null,null,null,null,null,null,null,null,null,null,null,null,null,null,null,null,null,null,null,null,null,null,null,null,null,null,null,null,null,null,null,null,null,null,null,null,null,null,null,null,null,null,null,null,null,null,null,null,null,null,null,null,null,null,null,null,null,null,null,null,null,null,null,null,null,null,null,null,null,null,null,null,null,null,null,null,null,null,null,null,null,null,null,null,null,null,null,null,null,{"$f":"IF(COUNTA(AG8)=0,\"×\",\"○\")","v":"×"}]
[null,null,null,null,null,null,null,null,null,null,null,null,null,null,null,null,null,null,null,null,null,null,null,null,null,null,null,null,null,null,null,null,null,null,null,null,null,null,null,null,null,null,null,null,null,null,null,null,null,null,null,null,null,null,null,null,null,null,null,null,null,null,null,null,null,null,null,null,null,null,null,null,null,null,null,null,null,null,null,null,null,null,null,null,null,null,null,null,null,null,null,null,null,null,null,null,null,null,null,null,null,null,null,null,null,null,null,null,{"$f":"IF(AG8=\"\",\"×\",IF(N14=\"\",IF(AG8=N12,\"○\",\"×\"),\"×\"))","v":"×"},{"$f":"DE32","v":"×"}]
[null,null,null,null,null,null,null,null,null,null,null,null,null,null,null,null,null,null,null,null,null,null,null,null,null,null,null,null,null,null,null,null,null,null,null,null,null,null,null,null,null,null,null,null,null,null,null,null,null,null,null,null,null,null,null,null,null,null,null,null,null,null,null,null,null,null,null,null,null,null,null,null,null,null,null,null,null,null,null,null,null,null,null,null,null,null,null,null,null,null,null,null,null,null,null,null,null,null,null,null,null,null,null,null,null,null,null,null,{"$f":"IF(AT7=\"\",\"×\",IF(VALUE(ASC(L13&N12))=VALUE(ASC(AR8&AT7)),\"○\",\"×\"))","v":"×"},{"$f":"IF(COUNTIF(DE33:DE34,\"○\")=2,\"○\",\"×\")","v":"×"}]
[null,null,null,null,null,null,null,null,null,null,null,null,null,null,null,null,null,null,null,null,null,null,null,null,null,null,null,null,null,null,null,null,null,null,null,null,null,null,null,null,null,null,null,null,null,null,null,null,null,null,null,null,null,null,null,null,null,null,null,null,null,null,null,null,null,null,null,null,null,null,null,null,null,null,null,null,null,null,null,null,null,null,null,null,null,null,null,null,null,null,null,null,null,null,null,null,null,null,null,null,null,null,null,null,null,null,null,null,{"$f":"IF(AT9=N14,\"○\",\"×\")","v":"×"}]

{"sheet":"３　分数×整数","index":2,"n_rows":34,"n_cols":113,"rows_kept":34,"cut":false,"hidden":false,"merged":[[28,10,29,10],[28,12,29,13],[28,18,29,27],[29,14,30,17],[29,109,30,109],[21,57,26,69],[22,19,22,22],[23,14,24,25],[32,109,33,109],[27,14,28,17],[24,10,25,10],[24,12,25,13],[25,14,26,25],[17,5,18,8],[17,10,17,15],[17,20,17,23],[18,10,18,13],[18,14,19,25],[19,10,20,10],[19,12,20,13],[20,14,21,25],[11,57,20,69],[12,11,13,12],[13,13,14,16],[15,11,15,16],[15,21,15,26],[15,29,15,34],[19,26,20,55],[7,29,8,30],[7,32,8,39],[7,43,8,44],[10,43,10,49],[11,5,12,8],[11,13,12,16],[11,20,12,45],[7,16,8,17],[7,18,8,19],[7,20,8,21],[7,22,8,23],[7,27,8,28],[0,33,4,68],[1,4,2,6],[1,7,2,25],[5,42,5,50],[6,2,6,5],[6,13,7,15],[6,32,6,39],[6,43,6,44],[6,45,7,49],[7,2,8,5],[7,51,8,61],[8,13,9,15],[8,45,9,49],[7,9,8,10],[7,11,8,12],[7,24,8,26]]}
[null,null,null,null,null,null,null,null,null,null,null,null,null,null,null,null,null,null,null,null,null,null,null,null,null,null,null,null,null,null,null,null,null,"問題は２０題。約分できるものは約分して答えること。\n答えが整数か分数かで、解答の入力場所が違います。"]
[null,null,null,null,2,null,null,"整数×分数"]
[]
[]
[null,null,null,null,null,null,null,null,null,null,null,null,null,null,null,null,null,null,null,null,null,null,null,null,null,null,null,null,null,null,null,null,null,null,null,null,null,null,null,null,null,null,null,null,null,null,null,null,null,null,null,null,null,null,null,null,null,null,null,null,null,null,null,null,null,null,null,null,null,null,null,null,null,null,null,null,null,null,null,null,null,null,null,null,null,null,null,null,null,null,null,null,null,null,null,null,null,null,null,null,null,null,null,null,null,null,null,null,{"$f":"MOD(DAY(TODAY()),2)","v":1},{"$f":"MOD(DAY(TODAY()),3)","v":0},{"$f":"MOD(DAY(TODAY()),4)","v":1},{"$f":"MOD(DAY(TODAY()),5)","v":4},{"$f":"MOD(DAY(TODAY()),6)","v":3}]
[null,null,null,null,null,null,null,null,null,null,null,null,null,null,null,null,null,null,null,null,null,null,null,null,null,null,null,null,null,null,null,null,null,null,null,null,null,null,null,null,null,null,"答えが分数の時",null,null,null,null,null,null,null,null,null,null,null,null,null,null,null,null,null,null,null,null,null,null,null,null,null,null,null,null,null,null,null,null,null,null,null,null,null,null,null,null,null,null,null,null,null,null,null,null,null,null,null,null,null,null,null,null,null,null,null,null,null,null,null,null,null,{"$f":"2*DE5+1","v":3},{"$f":"2*DF5+1","v":1},3,9,7]
[null,null,"問題番号",null,null,null,null,null,null,null,null,null,null,{"$f":"VLOOKUP($C$8,$DD$8:$DJ$27,3,0)","v":3},null,null,null,null,null,null,null,null,null,null,null,null,null,null,null,null,null,null,"答えが整数の時"]
[null,null,1,null,null,null,null,null,null,"（",null,{"$f":"VLOOKUP($C$8,$DD$8:$DJ$27,2,0)","v":"+"},null,null,null,null,"）",null,"×",null,"（",null,{"$f":"VLOOKUP($C$8,$DD$8:$DJ$27,5,0)","v":"+"},null,{"$f":"VLOOKUP($C$8,$DD$8:$DJ$27,6,0)","v":2},null,null,"）",null,"＝",null,null,null,null,null,null,null,null,null,null,null,null,null,null,null,null,null,null,null,null,null,"←符号は選んで！",null,null,null,null,null,null,null,null,null,null,null,null,null,null,null,null,null,null,null,null,null,null,null,null,null,null,null,null,null,null,null,null,null,null,null,null,null,null,null,null,null,null,null,null,null,null,null,null,null,null,null,null,null,null,null,1,"+",{"$f":"$DE$6","v":3},4,"+",2]
[null,null,null,null,null,null,null,null,null,null,null,null,null,{"$f":"VLOOKUP($C$8,$DD$8:$DJ$27,4,0)","v":4},null,null,null,null,null,null,null,null,null,null,null,null,null,null,null,null,null,null,null,null,null,null,null,null,null,null,null,null,null,null,null,null,null,null,null,null,null,null,null,null,null,null,null,null,null,null,null,null,null,null,null,null,null,null,null,null,null,null,null,null,null,null,null,null,null,null,null,null,null,null,null,null,null,null,null,null,null,null,null,null,null,null,null,null,null,null,null,null,null,null,null,null,null,2,"+",{"$f":"$DF$5*3+2","v":2},3,"-",{"$f":"6*$DE$5+1","v":7}]
[null,null,null,null,null,null,null,null,null,null,null,null,null,null,null,null,null,null,null,null,null,null,null,null,null,null,null,null,null,null,null,null,null,null,null,null,null,null,null,null,null,null,null,null,null,null,null,null,null,null,null,null,null,null,null,null,null,null,null,null,null,null,null,null,null,null,null,null,null,null,null,null,null,null,null,null,null,null,null,null,null,null,null,null,null,null,null,null,null,null,null,null,null,null,null,null,null,null,null,null,null,null,null,null,null,null,null,3,"-",{"$f":"$DE$6+4","v":7},6,"+",{"$f":"$DF$6+5","v":6}]
[null,null,null,null,null,null,null,null,null,null,null,null,null,null,null,null,null,null,null,null,null,null,null,null,null,null,null,null,null,null,null,null,null,null,null,null,null,null,null,null,null,null,null,null,null,null,null,null,null,null,null,null,null,null,null,null,null,null,null,null,null,null,null,null,null,null,null,null,null,null,null,null,null,null,null,null,null,null,null,null,null,null,null,null,null,null,null,null,null,null,null,null,null,null,null,null,null,null,null,null,null,null,null,null,null,null,null,4,"-",{"$f":"$DH$6","v":9},8,"-",{"$f":"$DG$6+2","v":5}]
[null,null,null,null,null,"正解",null,null,null,null,null,null,null,{"$f":"IF(O28=\"\",S29,O28)","v":3},null,null,null,null,null,null,{"$f":"IF(M25=\"\",\"⇒ 正の数や０では符号を書かない\",\"\")","v":"⇒ 正の数や０では符号を書かない"},null,null,null,null,null,null,null,null,null,null,null,null,null,null,null,null,null,null,null,null,null,null,null,null,null,null,null,null,null,null,null,null,null,null,null,null,{"$f":"IF(COUNTIF(DF30:DF34,\"○\")=2,\"○\",\"×\")","v":"×"},null,null,null,null,null,null,null,null,null,null,null,null,null,null,null,null,null,null,null,null,null,null,null,null,null,null,null,null,null,null,null,null,null,null,null,null,null,null,null,null,null,null,null,null,null,null,null,null,null,5,"-",{"$f":"5-$DE$5","v":4},3,"+",{"$f":"$DE$5+1","v":2}]
[null,null,null,null,null,null,null,null,null,null,null,{"$f":"IF(O28=\"\",\"\",M29)","v":""},null,null,null,null,null,null,null,null,null,null,null,null,null,null,null,null,null,null,null,null,null,null,null,null,null,null,null,null,null,null,null,null,null,null,null,null,null,null,null,null,null,null,null,null,null,null,null,null,null,null,null,null,null,null,null,null,null,null,null,null,null,null,null,null,null,null,null,null,null,null,null,null,null,null,null,null,null,null,null,null,null,null,null,null,null,null,null,null,null,null,null,null,null,null,null,6,"+",{"$f":"5*$DG$5+1","v":6},5,"-",{"$f":"$DG$6+1","v":4}]
[null,null,null,null,null,null,null,null,null,null,null,null,null,{"$f":"IF(O30=\"\",\"\",O30)","v":2},null,null,null,null,null,null,null,null,null,null,null,null,null,null,null,null,null,null,null,null,null,null,null,null,null,null,null,null,null,null,null,null,null,null,null,null,null,null,null,null,null,null,null,null,null,null,null,null,null,null,null,null,null,null,null,null,null,null,null,null,null,null,null,null,null,null,null,null,null,null,null,null,null,null,null,null,null,null,null,null,null,null,null,null,null,null,null,null,null,null,null,null,null,7,"+",{"$f":"3*$DG$5+1","v":4},3,"+",{"$f":"$DF$6*2","v":2}]
[null,null,null,null,null,null,null,null,null,null,null,null,null,null,null,null,null,null,null,null,null,null,null,null,null,null,null,null,null,null,null,null,null,null,null,null,null,null,null,null,null,null,null,null,null,null,null,null,null,null,null,null,null,null,null,null,null,null,null,null,null,null,null,null,null,null,null,null,null,null,null,null,null,null,null,null,null,null,null,null,null,null,null,null,null,null,null,null,null,null,null,null,null,null,null,null,null,null,null,null,null,null,null,null,null,null,null,8,"+",{"$f":"$DH$6","v":9},4,"-",{"$f":"$DE$5+4","v":5}]
[null,null,null,null,null,null,null,null,null,null,null,{"$f":"IF(N14<>\"\",\"―――――\",\"\")","v":"―――――"},null,null,null,null,null,null,null,null,null,null,null,null,null,null,null,null,null,null,null,null,null,null,null,null,null,null,null,null,null,null,null,null,null,null,null,null,null,null,null,null,null,null,null,null,null,null,null,null,null,null,null,null,null,null,null,null,null,null,null,null,null,null,null,null,null,null,null,null,null,null,null,null,null,null,null,null,null,null,null,null,null,null,null,null,null,null,null,null,null,null,null,null,null,null,null,9,"-",{"$f":"2*($DF$5+1)","v":2},5,"+",{"$f":"$DG$6+3","v":6}]
[null,null,null,null,null,null,null,null,null,null,null,null,null,null,null,null,null,null,null,null,null,null,null,null,null,null,null,null,null,null,null,null,null,null,null,null,null,null,null,null,null,null,null,null,null,null,null,null,null,null,null,null,null,null,null,null,null,null,null,null,null,null,null,null,null,null,null,null,null,null,null,null,null,null,null,null,null,null,null,null,null,null,null,null,null,null,null,null,null,null,null,null,null,null,null,null,null,null,null,null,null,null,null,null,null,null,null,10,"-",{"$f":"$DG$5+1","v":2},5,"-",{"$f":"3*$DF$5+1","v":1}]
[null,null,null,null,null,"解説",null,null,null,null,{"$f":"IF(L8=W8,\"同符号なので\",\"異符号なので\")","v":"同符号なので"},null,null,null,null,null,null,null,null,null,{"$f":"IF(GCD(Y8,N9)=1,\"\",GCD(Y8,N9)&\"でわる\")","v":"2でわる"},null,null,null,null,null,null,null,null,null,null,null,null,null,null,null,null,null,null,null,null,null,null,null,null,null,null,null,null,null,null,null,null,null,null,null,null,null,null,null,null,null,null,null,null,null,null,null,null,null,null,null,null,null,null,null,null,null,null,null,null,null,null,null,null,null,null,null,null,null,null,null,null,null,null,null,null,null,null,null,null,null,null,null,null,null,null,11,"-",{"$f":"$DG$6+2","v":5},4,"+",{"$f":"$DE$6+4","v":7}]
[null,null,null,null,null,null,null,null,null,null,{"$f":"IF(L8=W8,\"符号なし\",\"符号は－\")","v":"符号なし"},null,null,null,{"$f":"DBCS(N7&S8&Y8)","v":"３×２"},null,null,null,null,null,null,null,null,null,null,null,null,null,null,null,null,null,null,null,null,null,null,null,null,null,null,null,null,null,null,null,null,null,null,null,null,null,null,null,null,null,null,null,null,null,null,null,null,null,null,null,null,null,null,null,null,null,null,null,null,null,null,null,null,null,null,null,null,null,null,null,null,null,null,null,null,null,null,null,null,null,null,null,null,null,null,null,null,null,null,null,null,12,"+",{"$f":"3*$DF$5+1","v":1},3,"-",{"$f":"($DE$5+1)*($DG$5+1)","v":4}]
[null,null,null,null,null,null,null,null,null,null,null,null,{"$f":"IF(L8=W8,\"\",\"-\")","v":""},null,null,null,null,null,null,null,null,null,null,null,null,null,{"$f":"DBCS(IF(GCD(Y8,N9)=1,\"\",\"｢\"&Y8&\"｣と｢\"&N9&\"｣を『\"&GCD(Y8,N9)&\"』で約分\"))","v":"「２」と「４」を『２』で約分"},null,null,null,null,null,null,null,null,null,null,null,null,null,null,null,null,null,null,null,null,null,null,null,null,null,null,null,null,null,null,null,null,null,null,null,null,null,null,null,null,null,null,null,null,null,null,null,null,null,null,null,null,null,null,null,null,null,null,null,null,null,null,null,null,null,null,null,null,null,null,null,null,null,null,null,null,null,null,null,null,13,"+",{"$f":"$DE$6","v":3},5,"+",{"$f":"$DF$6*3","v":3}]
[null,null,null,null,null,null,null,null,null,null,null,null,null,null,{"$f":"DBCS(N9)","v":"４"},null,null,null,null,null,null,null,null,null,null,null,null,null,null,null,null,null,null,null,null,null,null,null,null,null,null,null,null,null,null,null,null,null,null,null,null,null,null,null,null,null,null,null,null,null,null,null,null,null,null,null,null,null,null,null,null,null,null,null,null,null,null,null,null,null,null,null,null,null,null,null,null,null,null,null,null,null,null,null,null,null,null,null,null,null,null,null,null,null,null,null,null,14,"+",{"$f":"$DF$6","v":1},7,"-",{"$f":"4*$DE$5+1","v":5}]
[null,null,null,null,null,null,null,null,null,null,null,null,null,null,null,null,null,null,null,null,null,null,null,null,null,null,null,null,null,null,null,null,null,null,null,null,null,null,null,null,null,null,null,null,null,null,null,null,null,null,null,null,null,null,null,null,null,{"$f":"IF(BF12=\"○\",\"正解！\",\"残念！\")","v":"残念！"},null,null,null,null,null,null,null,null,null,null,null,null,null,null,null,null,null,null,null,null,null,null,null,null,null,null,null,null,null,null,null,null,null,null,null,null,null,null,null,null,null,null,null,null,null,null,null,null,null,15,"-",{"$f":"$DG$6+1","v":4},5,"+",{"$f":"2*$DE$6+3","v":9}]
[null,null,null,null,null,null,null,null,null,null,null,null,null,null,null,null,null,null,null,{"$f":"IF(GCD(Y8,N9)=1,\"\",GCD(Y8,N9)&\"でわる\")","v":"2でわる"},null,null,null,null,null,null,null,null,null,null,null,null,null,null,null,null,null,null,null,null,null,null,null,null,null,null,null,null,null,null,null,null,null,null,null,null,null,null,null,null,null,null,null,null,null,null,null,null,null,null,null,null,null,null,null,null,null,null,null,null,null,null,null,null,null,null,null,null,null,null,null,null,null,null,null,null,null,null,null,null,null,null,null,null,null,null,null,16,"-",{"$f":"$DE$6+4","v":7},6,"-",{"$f":"4*$DF$5+1","v":1}]
[null,null,null,null,null,null,null,null,null,null,null,null,null,null,{"$f":"IF(GCD(Y8,N9)>1,N7&\"×\"&Y8/GCD(Y8,N9),\"\")","v":"3×1"},null,null,null,null,null,null,null,null,null,null,null,null,null,null,null,null,null,null,null,null,null,null,null,null,null,null,null,null,null,null,null,null,null,null,null,null,null,null,null,null,null,null,null,null,null,null,null,null,null,null,null,null,null,null,null,null,null,null,null,null,null,null,null,null,null,null,null,null,null,null,null,null,null,null,null,null,null,null,null,null,null,null,null,null,null,null,null,null,null,null,null,null,17,"+",{"$f":"$DG$6+2","v":5},4,"-",{"$f":"4*$DE$6-1","v":11}]
[null,null,null,null,null,null,null,null,null,null,{"$f":"IF(GCD(Y8,N9)>1,\"=\",\"\")","v":"="},null,{"$f":"IF(GCD(Y8,N9)>1,M20,\"\")","v":""},null,null,null,null,null,null,null,null,null,null,null,null,null,null,null,null,null,null,null,null,null,null,null,null,null,null,null,null,null,null,null,null,null,null,null,null,null,null,null,null,null,null,null,null,null,null,null,null,null,null,null,null,null,null,null,null,null,null,null,null,null,null,null,null,null,null,null,null,null,null,null,null,null,null,null,null,null,null,null,null,null,null,null,null,null,null,null,null,null,null,null,null,null,null,18,"-",{"$f":"3*$DE$6+1","v":10},9,"+",{"$f":"$DE$6+4","v":7}]
[null,null,null,null,null,null,null,null,null,null,null,null,null,null,{"$f":"IF(GCD(Y8,N9)>1,O21/GCD(Y8,N9),\"\")","v":2},null,null,null,null,null,null,null,null,null,null,null,null,null,null,null,null,null,null,null,null,null,null,null,null,null,null,null,null,null,null,null,null,null,null,null,null,null,null,null,null,null,null,null,null,null,null,null,null,null,null,null,null,null,null,null,null,null,null,null,null,null,null,null,null,null,null,null,null,null,null,null,null,null,null,null,null,null,null,null,null,null,null,null,null,null,null,null,null,null,null,null,null,19,"-",{"$f":"6*$DF$5+1","v":1},6,"+",{"$f":"$DE$6*$DF$6","v":3}]
[null,null,null,null,null,null,null,null,null,null,null,null,null,null,null,null,null,null,null,null,null,null,null,null,null,null,null,null,null,null,null,null,null,null,null,null,null,null,null,null,null,null,null,null,null,null,null,null,null,null,null,null,null,null,null,null,null,null,null,null,null,null,null,null,null,null,null,null,null,null,null,null,null,null,null,null,null,null,null,null,null,null,null,null,null,null,null,null,null,null,null,null,null,null,null,null,null,null,null,null,null,null,null,null,null,null,null,20,"-",{"$f":"$DF$6+6","v":7},10,"-",{"$f":"$DF$6*$DG$6","v":3}]
[null,null,null,null,null,null,null,null,null,null,null,null,null,null,{"$f":"IF(O26=1,\"\",Y8*N7/GCD(Y8,N9))","v":3}]
[null,null,null,null,null,null,null,null,null,null,"=",null,{"$f":"M20","v":""},null,null,null,null,null,{"$f":"IF(O26=1,VALUE(ASC(M25&(Y8*N7/N9))),\"\")","v":""}]
[null,null,null,null,null,null,null,null,null,null,null,null,null,null,{"$f":"IF(O26=1,\"\",N9/GCD(Y8,N9))","v":2},null,null,null,null,null,null,null,null,null,null,null,null,null,null,null,null,null,null,null,null,null,null,null,null,null,null,null,null,null,null,null,null,null,null,null,null,null,null,null,null,null,null,null,null,null,null,null,null,null,null,null,null,null,null,null,null,null,null,null,null,null,null,null,null,null,null,null,null,null,null,null,null,null,null,null,null,null,null,null,null,null,null,null,null,null,null,null,null,null,null,null,null,null,{"$f":"IF(COUNTA(AQ7:AY10)=0,\"×\",\"○\")","v":"×"},{"$f":"IF(COUNTIF(DE30:DE31,\"○\")=1,\"○\",\"×\")","v":"×"},null,"-"]
[null,null,null,null,null,null,null,null,null,null,null,null,null,null,null,null,null,null,null,null,null,null,null,null,null,null,null,null,null,null,null,null,null,null,null,null,null,null,null,null,null,null,null,null,null,null,null,null,null,null,null,null,null,null,null,null,null,null,null,null,null,null,null,null,null,null,null,null,null,null,null,null,null,null,null,null,null,null,null,null,null,null,null,null,null,null,null,null,null,null,null,null,null,null,null,null,null,null,null,null,null,null,null,null,null,null,null,null,{"$f":"IF(COUNTA(AG8)=0,\"×\",\"○\")","v":"×"}]
[null,null,null,null,null,null,null,null,null,null,null,null,null,null,null,null,null,null,null,null,null,null,null,null,null,null,null,null,null,null,null,null,null,null,null,null,null,null,null,null,null,null,null,null,null,null,null,null,null,null,null,null,null,null,null,null,null,null,null,null,null,null,null,null,null,null,null,null,null,null,null,null,null,null,null,null,null,null,null,null,null,null,null,null,null,null,null,null,null,null,null,null,null,null,null,null,null,null,null,null,null,null,null,null,null,null,null,null,{"$f":"IF(AG8=\"\",\"×\",IF(N14=\"\",IF(AG8=N12,\"○\",\"×\"),\"×\"))","v":"×"},{"$f":"DE32","v":"×"}]
[null,null,null,null,null,null,null,null,null,null,null,null,null,null,null,null,null,null,null,null,null,null,null,null,null,null,null,null,null,null,null,null,null,null,null,null,null,null,null,null,null,null,null,null,null,null,null,null,null,null,null,null,null,null,null,null,null,null,null,null,null,null,null,null,null,null,null,null,null,null,null,null,null,null,null,null,null,null,null,null,null,null,null,null,null,null,null,null,null,null,null,null,null,null,null,null,null,null,null,null,null,null,null,null,null,null,null,null,{"$f":"IF(AT7=\"\",\"×\",IF(VALUE(ASC(L13&N12))=VALUE(ASC(AR8&AT7)),\"○\",\"×\"))","v":"×"},{"$f":"IF(COUNTIF(DE33:DE34,\"○\")=2,\"○\",\"×\")","v":"×"}]
[null,null,null,null,null,null,null,null,null,null,null,null,null,null,null,null,null,null,null,null,null,null,null,null,null,null,null,null,null,null,null,null,null,null,null,null,null,null,null,null,null,null,null,null,null,null,null,null,null,null,null,null,null,null,null,null,null,null,null,null,null,null,null,null,null,null,null,null,null,null,null,null,null,null,null,null,null,null,null,null,null,null,null,null,null,null,null,null,null,null,null,null,null,null,null,null,null,null,null,null,null,null,null,null,null,null,null,null,{"$f":"IF(AT9=N14,\"○\",\"×\")","v":"×"}]

{"sheet":"４　分数×分数","index":3,"n_rows":34,"n_cols":114,"rows_kept":34,"cut":false,"hidden":false,"merged":[[24,10,25,10],[24,12,25,13],[25,14,26,25],[27,14,28,17],[28,10,29,10],[28,12,29,13],[28,18,29,27],[29,14,30,17],[19,12,20,13],[17,21,17,24],[18,14,19,25],[19,10,20,10],[20,14,21,25],[17,10,17,13],[17,15,17,18],[0,33,4,68],[1,4,2,6],[1,7,2,25],[5,42,5,50],[6,2,6,5],[6,13,7,15],[6,24,7,26],[6,32,6,39],[6,43,6,44],[6,45,7,49],[7,51,8,61],[8,24,9,26],[8,45,9,49],[7,2,8,5],[7,9,8,10],[7,11,8,12],[7,16,8,17],[7,18,8,19],[7,20,8,21],[8,13,9,15],[7,22,8,23],[7,27,8,28],[7,29,8,30],[7,32,8,39],[7,43,8,44],[11,20,12,45],[32,109,33,109],[21,57,26,69],[29,109,30,109],[11,5,12,8],[11,13,12,16],[11,57,20,69],[12,11,13,12],[13,13,14,16],[15,11,15,16],[17,5,18,8],[18,26,19,55],[22,15,22,18],[23,14,24,25],[20,26,21,55],[22,21,22,24],[18,10,18,13]]}
[null,null,null,null,null,null,null,null,null,null,null,null,null,null,null,null,null,null,null,null,null,null,null,null,null,null,null,null,null,null,null,null,null,"問題は２０題。約分できるものは約分して答えること。\n答えが整数か分数かで、解答の入力場所が違います。"]
[null,null,null,null,4,null,null,"異符号の分数の加法"]
[]
[]
[null,null,null,null,null,null,null,null,null,null,null,null,null,null,null,null,null,null,null,null,null,null,null,null,null,null,null,null,null,null,null,null,null,null,null,null,null,null,null,null,null,null,null,null,null,null,null,null,null,null,null,null,null,null,null,null,null,null,null,null,null,null,null,null,null,null,null,null,null,null,null,null,null,null,null,null,null,null,null,null,null,null,null,null,null,null,null,null,null,null,null,null,null,null,null,null,null,null,null,null,null,null,null,null,null,null,null,null,{"$f":"MOD(DAY(TODAY()),2)","v":1},{"$f":"MOD(DAY(TODAY()),3)","v":0},{"$f":"MOD(DAY(TODAY()),4)","v":1},{"$f":"MOD(DAY(TODAY()),5)","v":4},{"$f":"MOD(DAY(TODAY()),6)","v":3}]
[null,null,null,null,null,null,null,null,null,null,null,null,null,null,null,null,null,null,null,null,null,null,null,null,null,null,null,null,null,null,null,null,null,null,null,null,null,null,null,null,null,null,"答えが分数の時",null,null,null,null,null,null,null,null,null,null,null,null,null,null,null,null,null,null,null,null,null,null,null,null,null,null,null,null,null,null,null,null,null,null,null,null,null,null,null,null,null,null,null,null,null,null,null,null,null,null,null,null,null,null,null,null,null,null,null,null,null,null,null,null,null,{"$f":"2*DE5+1","v":3},{"$f":"2*DF5+1","v":1},3,9,7]
[null,null,null,null,null,null,null,null,null,null,null,null,null,{"$f":"VLOOKUP($C$8,$DD$8:$DJ$27,3,0)","v":2},null,null,null,null,null,null,null,null,null,null,{"$f":"VLOOKUP($C$8,$DD$8:$DJ$27,6,0)","v":1},null,null,null,null,null,null,null,"答えが整数の時",null,null,null,null,null,null,null,null,null,null,null,null,null,null,null,null,null,null,null,null,null,null,null,null,null,null,null,null,null,null,null,null,null,null,null,null,null,null,null,null,null,null,null,null,null,null,null,null,null,null,null,null,null,null,null,null,null,null,null,null,null,null,null,null,null,null,null,null,null,null,null,null,null,null,null,null,null,"母",null,null,"母"]
[null,null,1,null,null,null,null,null,null,"（",null,{"$f":"VLOOKUP($C$8,$DD$8:$DJ$27,2,0)","v":"+"},null,null,null,null,"）",null,"×",null,"（",null,{"$f":"VLOOKUP($C$8,$DD$8:$DJ$27,5,0)","v":"+"},null,null,null,null,"）",null,"＝",null,null,null,null,null,null,null,null,null,null,null,null,null,null,null,null,null,null,null,null,null,"←符号は選んで！",null,null,null,null,null,null,null,null,null,null,null,null,null,null,null,null,null,null,null,null,null,null,null,null,null,null,null,null,null,null,null,null,null,null,null,null,null,null,null,null,null,null,null,null,null,null,null,null,null,null,null,null,null,null,null,1,"+",2,3,"+",{"$f":"DF6","v":1},4]
[null,null,null,null,null,null,null,null,null,null,null,null,null,{"$f":"VLOOKUP($C$8,$DD$8:$DJ$27,4,0)","v":3},null,null,null,null,null,null,null,null,null,null,{"$f":"VLOOKUP($C$8,$DD$8:$DJ$27,7,0)","v":4},null,null,null,null,null,null,null,null,null,null,null,null,null,null,null,null,null,null,null,null,null,null,null,null,null,null,null,null,null,null,null,null,null,null,null,null,null,null,null,null,null,null,null,null,null,null,null,null,null,null,null,null,null,null,null,null,null,null,null,null,null,null,null,null,null,null,null,null,null,null,null,null,null,null,null,null,null,null,null,null,null,null,2,"+",{"$f":"6*$DE$5+1","v":7},6,"-",{"$f":"$DF$5*3+2","v":2},3]
[null,null,null,null,null,null,null,null,null,null,null,null,null,null,null,null,null,null,null,null,null,null,null,null,null,null,null,null,null,null,null,null,null,null,null,null,null,null,null,null,null,null,null,null,null,null,null,null,null,null,null,null,null,null,null,null,null,null,null,null,null,null,null,null,null,null,null,null,null,null,null,null,null,null,null,null,null,null,null,null,null,null,null,null,null,null,null,null,null,null,null,null,null,null,null,null,null,null,null,null,null,null,null,null,null,null,null,3,"-",{"$f":"$DF$6","v":1},2,"+",{"$f":"$DE$6+4","v":7},6]
[null,null,null,null,null,null,null,null,null,null,null,null,null,null,null,null,null,null,null,null,null,null,null,null,null,null,null,null,null,null,null,null,null,null,null,null,null,null,null,null,null,null,null,null,null,null,null,null,null,null,null,null,null,null,null,null,null,null,null,null,null,null,null,null,null,null,null,null,null,null,null,null,null,null,null,null,null,null,null,null,null,null,null,null,null,null,null,null,null,null,null,null,null,null,null,null,null,null,null,null,null,null,null,null,null,null,null,4,"-",{"$f":"8-$DG$6","v":5},2,"-",{"$f":"$DH$6","v":9},8]
[null,null,null,null,null,"正解",null,null,null,null,null,null,null,{"$f":"IF(S29=\"\",O28,S29)","v":1},null,null,null,null,null,null,null,null,null,null,null,null,null,null,null,null,null,null,null,null,null,null,null,null,null,null,null,null,null,null,null,null,null,null,null,null,null,null,null,null,null,null,null,{"$f":"IF(COUNTIF(DF30:DF34,\"○\")=2,\"○\",\"×\")","v":"×"},null,null,null,null,null,null,null,null,null,null,null,null,null,null,null,null,null,null,null,null,null,null,null,null,null,null,null,null,null,null,null,null,null,null,null,null,null,null,null,null,null,null,null,null,null,null,null,null,null,5,"+",{"$f":"$DE$5+1","v":2},9,"-",{"$f":"5-$DE$5","v":4},3]
[null,null,null,null,null,null,null,null,null,null,null,{"$f":"IF(S29=\"\",M29,\"\")","v":""},null,null,null,null,null,null,null,null,null,null,null,null,null,null,null,null,null,null,null,null,null,null,null,null,null,null,null,null,null,null,null,null,null,null,null,null,null,null,null,null,null,null,null,null,null,null,null,null,null,null,null,null,null,null,null,null,null,null,null,null,null,null,null,null,null,null,null,null,null,null,null,null,null,null,null,null,null,null,null,null,null,null,null,null,null,null,null,null,null,null,null,null,null,null,null,6,"-",{"$f":"$DG$6+6","v":9},10,"+",{"$f":"4-$DG$5","v":3},5]
[null,null,null,null,null,null,null,null,null,null,null,null,null,{"$f":"IF(S29=\"\",O30,\"\")","v":6},null,null,null,null,null,null,null,null,null,null,null,null,null,null,null,null,null,null,null,null,null,null,null,null,null,null,null,null,null,null,null,null,null,null,null,null,null,null,null,null,null,null,null,null,null,null,null,null,null,null,null,null,null,null,null,null,null,null,null,null,null,null,null,null,null,null,null,null,null,null,null,null,null,null,null,null,null,null,null,null,null,null,null,null,null,null,null,null,null,null,null,null,null,7,"+",{"$f":"$DF$6","v":1},2,"+",{"$f":"3*$DF$5+$DE$6+1","v":4},3]
[null,null,null,null,null,null,null,null,null,null,null,null,null,null,null,null,null,null,null,null,null,null,null,null,null,null,null,null,null,null,null,null,null,null,null,null,null,null,null,null,null,null,null,null,null,null,null,null,null,null,null,null,null,null,null,null,null,null,null,null,null,null,null,null,null,null,null,null,null,null,null,null,null,null,null,null,null,null,null,null,null,null,null,null,null,null,null,null,null,null,null,null,null,null,null,null,null,null,null,null,null,null,null,null,null,null,null,8,"+",{"$f":"$DE$5+4","v":5},3,"-",{"$f":"$DG$6","v":3},4]
[null,null,null,null,null,null,null,null,null,null,null,{"$f":"IF(U30=\"\",\"―――――\",\"\")","v":"―――――"},null,null,null,null,null,null,null,null,null,null,null,null,null,null,null,null,null,null,null,null,null,null,null,null,null,null,null,null,null,null,null,null,null,null,null,null,null,null,null,null,null,null,null,null,null,null,null,null,null,null,null,null,null,null,null,null,null,null,null,null,null,null,null,null,null,null,null,null,null,null,null,null,null,null,null,null,null,null,null,null,null,null,null,null,null,null,null,null,null,null,null,null,null,null,null,9,"-",{"$f":"$DG$6","v":3},2,"+",{"$f":"2*($DF$5+1)","v":2},5]
[null,null,null,null,null,null,null,null,null,null,null,null,null,null,null,null,null,null,null,null,null,null,null,null,null,null,null,null,null,null,null,null,null,null,null,null,null,null,null,null,null,null,null,null,null,null,null,null,null,null,null,null,null,null,null,null,null,null,null,null,null,null,null,null,null,null,null,null,null,null,null,null,null,null,null,null,null,null,null,null,null,null,null,null,null,null,null,null,null,null,null,null,null,null,null,null,null,null,null,null,null,null,null,null,null,null,null,10,"-",{"$f":"3*$DE$5+1","v":4},3,"-",{"$f":"$DG$5+1","v":2},5]
[null,null,null,null,null,"解説",null,null,null,null,{"$f":"IF(L8=W8,\"同符号⇒\",\"異符号⇒\")","v":"同符号⇒"},null,null,null,null,{"$f":"IF(GCD(Y9,N7)=1,\"\",GCD(Y9,N7)&\"でわる\")","v":"2でわる"},null,null,null,null,null,{"$f":"IF(GCD(Y7,N9)=1,\"\",GCD(Y7,N9)&\"でわる\")","v":""},null,null,null,null,null,null,null,null,null,null,null,null,null,null,null,null,null,null,null,null,null,null,null,null,null,null,null,null,null,null,null,null,null,null,null,null,null,null,null,null,null,null,null,null,null,null,null,null,null,null,null,null,null,null,null,null,null,null,null,null,null,null,null,null,null,null,null,null,null,null,null,null,null,null,null,null,null,null,null,null,null,null,null,null,null,11,"+",{"$f":"DE6","v":3},2,"-",{"$f":"DH6","v":9},7]
[null,null,null,null,null,null,null,null,null,null,{"$f":"IF(L8=W8,\"符号なし\",\"符号は－\")","v":"符号なし"},null,null,null,{"$f":"DBCS(N7&S8&Y7)","v":"２×１"},null,null,null,null,null,null,null,null,null,null,null,{"$f":"DBCS(IF(GCD(Y7,N9)=1,\"\",\"｢\"&Y7&\"｣と｢\"&N9&\"｣を『\"&GCD(Y7,N9)&\"』で約分\"))","v":""},null,null,null,null,null,null,null,null,null,null,null,null,null,null,null,null,null,null,null,null,null,null,null,null,null,null,null,null,null,null,null,null,null,null,null,null,null,null,null,null,null,null,null,null,null,null,null,null,null,null,null,null,null,null,null,null,null,null,null,null,null,null,null,null,null,null,null,null,null,null,null,null,null,null,null,null,null,null,null,null,12,"-",{"$f":"(DE5+1)*(DG5+1)","v":4},7,"+",{"$f":"3*DE5+1","v":4},3]
[null,null,null,null,null,null,null,null,null,null,null,null,{"$f":"IF(L8=W8,\"\",\"-\")","v":""},null,null,null,null,null,null,null,null,null,null,null,null,null,null,null,null,null,null,null,null,null,null,null,null,null,null,null,null,null,null,null,null,null,null,null,null,null,null,null,null,null,null,null,null,null,null,null,null,null,null,null,null,null,null,null,null,null,null,null,null,null,null,null,null,null,null,null,null,null,null,null,null,null,null,null,null,null,null,null,null,null,null,null,null,null,null,null,null,null,null,null,null,null,null,13,"+",{"$f":"$DF$6","v":1},4,"+",{"$f":"$DE$6","v":3},5]
[null,null,null,null,null,null,null,null,null,null,null,null,null,null,{"$f":"DBCS(N9&S8&Y9)","v":"３×４"},null,null,null,null,null,null,null,null,null,null,null,{"$f":"DBCS(IF(GCD(Y9,N7)=1,\"\",\"｢\"&Y9&\"｣と｢\"&N7&\"｣を『\"&GCD(Y9,N7)&\"』で約分\"))","v":"「４」と「２」を『２』で約分"},null,null,null,null,null,null,null,null,null,null,null,null,null,null,null,null,null,null,null,null,null,null,null,null,null,null,null,null,null,null,null,null,null,null,null,null,null,null,null,null,null,null,null,null,null,null,null,null,null,null,null,null,null,null,null,null,null,null,null,null,null,null,null,null,null,null,null,null,null,null,null,null,null,null,null,null,null,null,null,null,14,"+",{"$f":"4*$DE$5+1","v":5},4,"-",{"$f":"$DF$6","v":1},7]
[null,null,null,null,null,null,null,null,null,null,null,null,null,null,null,null,null,null,null,null,null,null,null,null,null,null,null,null,null,null,null,null,null,null,null,null,null,null,null,null,null,null,null,null,null,null,null,null,null,null,null,null,null,null,null,null,null,{"$f":"IF(BF12=\"○\",\"正解！\",\"残念！\")","v":"残念！"},null,null,null,null,null,null,null,null,null,null,null,null,null,null,null,null,null,null,null,null,null,null,null,null,null,null,null,null,null,null,null,null,null,null,null,null,null,null,null,null,null,null,null,null,null,null,null,null,null,15,"-",{"$f":"2*$DE$6-1","v":5},6,"+",{"$f":"$DG$6+1","v":4},5]
[null,null,null,null,null,null,null,null,null,null,null,null,null,null,null,{"$f":"IF(GCD(Y7,N9)=1,\"\",GCD(Y7,N9)&\"でわる\")","v":""},null,null,null,null,null,{"$f":"IF(GCD(Y9,N7)=1,\"\",GCD(Y9,N7)&\"でわる\")","v":"2でわる"},null,null,null,null,null,null,null,null,null,null,null,null,null,null,null,null,null,null,null,null,null,null,null,null,null,null,null,null,null,null,null,null,null,null,null,null,null,null,null,null,null,null,null,null,null,null,null,null,null,null,null,null,null,null,null,null,null,null,null,null,null,null,null,null,null,null,null,null,null,null,null,null,null,null,null,null,null,null,null,null,null,null,null,null,null,16,"-",{"$f":"4*DF5+1","v":1},4,"-",{"$f":"$DE$6+4","v":7},6]
[null,null,null,null,null,null,null,null,null,null,null,null,null,null,{"$f":"IF(GCD(N7,Y9)*GCD(N9,Y7)=1,\"\",N7/GCD(N7,Y9)&\"×\"&Y7/GCD(Y7,N9))","v":"1×1"},null,null,null,null,null,null,null,null,null,null,null,null,null,null,null,null,null,null,null,null,null,null,null,null,null,null,null,null,null,null,null,null,null,null,null,null,null,null,null,null,null,null,null,null,null,null,null,null,null,null,null,null,null,null,null,null,null,null,null,null,null,null,null,null,null,null,null,null,null,null,null,null,null,null,null,null,null,null,null,null,null,null,null,null,null,null,null,null,null,null,null,null,17,"+",{"$f":"4*$DE$6+1","v":13},6,"-",{"$f":"$DG$6+2","v":5},4]
[null,null,null,null,null,null,null,null,null,null,{"$f":"IF(GCD(N7,Y9)*GCD(N9,Y7)=1,\"\",IF(GCD(Y8,N9)>1,\"=\",\"\"))","v":"="},null,{"$f":"IF(GCD(N7,Y9)*GCD(N9,Y7)=1,\"\",IF(GCD(Y8,N9)>1,M20,\"\"))","v":""},null,null,null,null,null,null,null,null,null,null,null,null,null,null,null,null,null,null,null,null,null,null,null,null,null,null,null,null,null,null,null,null,null,null,null,null,null,null,null,null,null,null,null,null,null,null,null,null,null,null,null,null,null,null,null,null,null,null,null,null,null,null,null,null,null,null,null,null,null,null,null,null,null,null,null,null,null,null,null,null,null,null,null,null,null,null,null,null,null,null,null,null,null,null,18,"-",{"$f":"IF(DG6=5,7,$DG$6+4)","v":7},6,"-",{"$f":"3*$DE$6+1","v":10},9]
[null,null,null,null,null,null,null,null,null,null,null,null,null,null,{"$f":"IF(GCD(N7,Y9)*GCD(N9,Y7)=1,\"\",N9/GCD(N9,Y7)&\"×\"&Y9/GCD(N7,Y9))","v":"3×2"},null,null,null,null,null,null,null,null,null,null,null,null,null,null,null,null,null,null,null,null,null,null,null,null,null,null,null,null,null,null,null,null,null,null,null,null,null,null,null,null,null,null,null,null,null,null,null,null,null,null,null,null,null,null,null,null,null,null,null,null,null,null,null,null,null,null,null,null,null,null,null,null,null,null,null,null,null,null,null,null,null,null,null,null,null,null,null,null,null,null,null,null,19,"-",{"$f":"DH6+2","v":11},8,"+",{"$f":"IF(DG6=5,7,DG6+4)","v":7},6]
[null,null,null,null,null,null,null,null,null,null,null,null,null,null,null,null,null,null,null,null,null,null,null,null,null,null,null,null,null,null,null,null,null,null,null,null,null,null,null,null,null,null,null,null,null,null,null,null,null,null,null,null,null,null,null,null,null,null,null,null,null,null,null,null,null,null,null,null,null,null,null,null,null,null,null,null,null,null,null,null,null,null,null,null,null,null,null,null,null,null,null,null,null,null,null,null,null,null,null,null,null,null,null,null,null,null,null,20,"-",{"$f":"$DE$6*$DF$6","v":3},4,"-",{"$f":"$DF$6+6","v":7},10]
[null,null,null,null,null,null,null,null,null,null,null,null,null,null,{"$f":"IF(S29=\"\",N7*Y7/(GCD(Y7,N9)*GCD(N7,Y9)))","v":1}]
[null,null,null,null,null,null,null,null,null,null,"=",null,{"$f":"M20","v":""},null,null,null,null,null,{"$f":"IF(O26=1,VALUE(ASC(M25&(Y8*N7/N9))),\"\")","v":""}]
[null,null,null,null,null,null,null,null,null,null,null,null,null,null,{"$f":"IF(S29=\"\",N9*Y9/(GCD(Y7,N9)*GCD(N7,Y9)))","v":6},null,null,null,null,null,null,null,null,null,null,null,null,null,null,null,null,null,null,null,null,null,null,null,null,null,null,null,null,null,null,null,null,null,null,null,null,null,null,null,null,null,null,null,null,null,null,null,null,null,null,null,null,null,null,null,null,null,null,null,null,null,null,null,null,null,null,null,null,null,null,null,null,null,null,null,null,null,null,null,null,null,null,null,null,null,null,null,null,null,null,null,null,null,{"$f":"IF(COUNTA(AQ7:AY10)=0,\"×\",\"○\")","v":"×"},{"$f":"IF(COUNTIF(DE30:DE31,\"○\")=1,\"○\",\"×\")","v":"×"},null,"-"]
[null,null,null,null,null,null,null,null,null,null,null,null,null,null,null,null,null,null,null,null,null,null,null,null,null,null,null,null,null,null,null,null,null,null,null,null,null,null,null,null,null,null,null,null,null,null,null,null,null,null,null,null,null,null,null,null,null,null,null,null,null,null,null,null,null,null,null,null,null,null,null,null,null,null,null,null,null,null,null,null,null,null,null,null,null,null,null,null,null,null,null,null,null,null,null,null,null,null,null,null,null,null,null,null,null,null,null,null,{"$f":"IF(COUNTA(AG8)=0,\"×\",\"○\")","v":"×"}]
[null,null,null,null,null,null,null,null,null,null,null,null,null,null,null,null,null,null,null,null,null,null,null,null,null,null,null,null,null,null,null,null,null,null,null,null,null,null,null,null,null,null,null,null,null,null,null,null,null,null,null,null,null,null,null,null,null,null,null,null,null,null,null,null,null,null,null,null,null,null,null,null,null,null,null,null,null,null,null,null,null,null,null,null,null,null,null,null,null,null,null,null,null,null,null,null,null,null,null,null,null,null,null,null,null,null,null,null,{"$f":"IF(AG8=\"\",\"×\",IF(AT7=\"\",IF(AG8=S29,\"○\",\"×\"),\"×\"))","v":"×"},{"$f":"DE32","v":"×"}]
[null,null,null,null,null,null,null,null,null,null,null,null,null,null,null,null,null,null,null,null,null,null,null,null,null,null,null,null,null,null,null,null,null,null,null,null,null,null,null,null,null,null,null,null,null,null,null,null,null,null,null,null,null,null,null,null,null,null,null,null,null,null,null,null,null,null,null,null,null,null,null,null,null,null,null,null,null,null,null,null,null,null,null,null,null,null,null,null,null,null,null,null,null,null,null,null,null,null,null,null,null,null,null,null,null,null,null,null,{"$f":"IF(AT7=\"\",\"×\",IF(VALUE(ASC(L13&N12))=VALUE(ASC(AR8&AT7)),\"○\",\"×\"))","v":"×"},{"$f":"IF(COUNTIF(DE33:DE34,\"○\")=2,\"○\",\"×\")","v":"×"}]
[null,null,null,null,null,null,null,null,null,null,null,null,null,null,null,null,null,null,null,null,null,null,null,null,null,null,null,null,null,null,null,null,null,null,null,null,null,null,null,null,null,null,null,null,null,null,null,null,null,null,null,null,null,null,null,null,null,null,null,null,null,null,null,null,null,null,null,null,null,null,null,null,null,null,null,null,null,null,null,null,null,null,null,null,null,null,null,null,null,null,null,null,null,null,null,null,null,null,null,null,null,null,null,null,null,null,null,null,{"$f":"IF(AT9=N14,\"○\",\"×\")","v":"×"}]

{"sheet":"５　整数÷整数１","index":4,"n_rows":27,"n_cols":110,"rows_kept":27,"cut":false,"hidden":false,"merged":[[7,2,8,5],[7,9,8,10],[7,11,8,12],[7,13,8,15],[7,16,8,17],[0,33,4,68],[1,4,2,6],[1,7,2,25],[6,2,6,5],[6,32,6,39],[7,32,8,39],[11,5,12,8],[11,11,12,18],[11,19,12,35],[11,57,20,69],[15,5,16,8],[15,11,16,28],[15,29,16,30],[15,31,16,32],[15,33,16,34],[7,18,8,19],[7,20,8,21],[7,22,8,23],[7,24,8,26],[7,27,8,28],[7,29,8,30],[17,11,18,28],[17,29,18,31],[17,32,18,33],[17,34,18,36],[21,57,26,69]]}
[null,null,null,null,null,null,null,null,null,null,null,null,null,null,null,null,null,null,null,null,null,null,null,null,null,null,null,null,null,null,null,null,null,"問題は１～２０まで、２０題あります。\n答えが正の数の時は、｢＋｣を省略してください。"]
[null,null,null,null,5,null,null,"整数÷整数(商が整数)"]
[]
[]
[]
[]
[null,null,"問題番号",null,null,null,null,null,null,null,null,null,null,null,null,null,null,null,null,null,null,null,null,null,null,null,null,null,null,null,null,null,"答えを入力"]
[null,null,1,null,null,null,null,null,null,"（",null,{"$f":"IF(MOD($C$8,5)<3,\"－\",\"＋\")","v":"－"},null,{"$f":"VLOOKUP($C$8,$DD$8:$DF$27,2,0)","v":4},null,null,"）",null,"÷",null,"（",null,{"$f":"IF(MOD($C$8,4)>1,\"＋\",\"－\")","v":"－"},null,{"$f":"VLOOKUP($C$8,$DD$8:$DF$27,3,0)","v":2},null,null,"）",null,"＝",null,null,null,null,null,null,null,null,null,null,null,null,null,null,null,null,null,null,null,null,null,null,null,null,null,null,null,null,null,null,null,null,null,null,null,null,null,null,null,null,null,null,null,null,null,null,null,null,null,null,null,null,null,null,null,null,null,null,null,null,null,null,null,null,null,null,null,null,null,null,null,null,null,null,null,null,null,1,{"$f":"DF8*(MOD(TODAY(),2)+1)","v":4},2]
[null,null,null,null,null,null,null,null,null,null,null,null,null,null,null,null,null,null,null,null,null,null,null,null,null,null,null,null,null,null,null,null,null,null,null,null,null,null,null,null,null,null,null,null,null,null,null,null,null,null,null,null,null,null,null,null,null,null,null,null,null,null,null,null,null,null,null,null,null,null,null,null,null,null,null,null,null,null,null,null,null,null,null,null,null,null,null,null,null,null,null,null,null,null,null,null,null,null,null,null,null,null,null,null,null,null,null,2,{"$f":"DF9*(MOD(TODAY(),3)+1)","v":6},3]
[null,null,null,null,null,null,null,null,null,null,null,null,null,null,null,null,null,null,null,null,null,null,null,null,null,null,null,null,null,null,null,null,null,null,null,null,null,null,null,null,null,null,null,null,null,null,null,null,null,null,null,null,null,null,null,null,null,null,null,null,null,null,null,null,null,null,null,null,null,null,null,null,null,null,null,null,null,null,null,null,null,null,null,null,null,null,null,null,null,null,null,null,null,null,null,null,null,null,null,null,null,null,null,null,null,null,null,3,{"$f":"DF10*(MOD(TODAY(),3)+4)","v":15},3]
[null,null,null,null,null,null,null,null,null,null,null,null,null,null,null,null,null,null,null,null,null,null,null,null,null,null,null,null,null,null,null,null,null,null,null,null,null,null,null,null,null,null,null,null,null,null,null,null,null,null,null,null,null,null,null,null,null,null,null,null,null,null,null,null,null,null,null,null,null,null,null,null,null,null,null,null,null,null,null,null,null,null,null,null,null,null,null,null,null,null,null,null,null,null,null,null,null,null,null,null,null,null,null,null,null,null,null,4,{"$f":"DF11*(MOD(TODAY(),4)+1)","v":20},5]
[null,null,null,null,null,"正解",null,null,null,null,null,{"$f":"VALUE(ASC(L8&N8))/VALUE(ASC(W8&Y8))","v":2},null,null,null,null,null,null,null,null,null,null,null,null,null,null,null,null,null,null,null,null,null,null,null,null,null,null,null,null,null,null,null,null,null,null,null,null,null,null,null,null,null,null,null,null,null,{"$f":"IF($AG$8=$L$12,\"○\",\"×\")","v":"×"},null,null,null,null,null,null,null,null,null,null,null,null,null,null,null,null,null,null,null,null,null,null,null,null,null,null,null,null,null,null,null,null,null,null,null,null,null,null,null,null,null,null,null,null,null,null,null,null,null,5,{"$f":"DF12*(MOD(TODAY(),4)+2)","v":20},4]
[null,null,null,null,null,null,null,null,null,null,null,null,null,null,null,null,null,null,null,null,null,null,null,null,null,null,null,null,null,null,null,null,null,null,null,null,null,null,null,null,null,null,null,null,null,null,null,null,null,null,null,null,null,null,null,null,null,null,null,null,null,null,null,null,null,null,null,null,null,null,null,null,null,null,null,null,null,null,null,null,null,null,null,null,null,null,null,null,null,null,null,null,null,null,null,null,null,null,null,null,null,null,null,null,null,null,null,6,{"$f":"DF13*(MOD(TODAY(),4)+5)","v":32},4]
[null,null,null,null,null,null,null,null,null,null,null,null,null,null,null,null,null,null,null,null,null,null,null,null,null,null,null,null,null,null,null,null,null,null,null,null,null,null,null,null,null,null,null,null,null,null,null,null,null,null,null,null,null,null,null,null,null,null,null,null,null,null,null,null,null,null,null,null,null,null,null,null,null,null,null,null,null,null,null,null,null,null,null,null,null,null,null,null,null,null,null,null,null,null,null,null,null,null,null,null,null,null,null,null,null,null,null,7,{"$f":"DF14*(MOD(TODAY(),4)+6)","v":36},4]
[null,null,null,null,null,null,null,null,null,null,null,null,null,null,null,null,null,null,null,null,null,null,null,null,null,null,null,null,null,null,null,null,null,null,null,null,null,null,null,null,null,null,null,null,null,null,null,null,null,null,null,null,null,null,null,null,null,null,null,null,null,null,null,null,null,null,null,null,null,null,null,null,null,null,null,null,null,null,null,null,null,null,null,null,null,null,null,null,null,null,null,null,null,null,null,null,null,null,null,null,null,null,null,null,null,null,null,8,{"$f":"DF15*(MOD(TODAY(),5)+2)","v":30},6]
[null,null,null,null,null,"解説",null,null,null,null,null,{"$f":"IF(L8=W8,\"同符号なので\",\"異符号なので\")","v":"同符号なので"},null,null,null,null,null,null,null,null,null,null,null,null,null,null,null,null,null,"「",null,{"$f":"IF(L8=W8,\"＋\",\"－\")","v":"＋"},null,"」",null,null,null,null,null,null,null,null,null,null,null,null,null,null,null,null,null,null,null,null,null,null,null,null,null,null,null,null,null,null,null,null,null,null,null,null,null,null,null,null,null,null,null,null,null,null,null,null,null,null,null,null,null,null,null,null,null,null,null,null,null,null,null,null,null,null,null,null,null,null,null,null,null,9,{"$f":"DF16*(MOD(TODAY(),5)+4)","v":42},6]
[null,null,null,null,null,null,null,null,null,null,null,null,null,null,null,null,null,null,null,null,null,null,null,null,null,null,null,null,null,null,null,null,null,null,null,null,null,null,null,null,null,null,null,null,null,null,null,null,null,null,null,null,null,null,null,null,null,null,null,null,null,null,null,null,null,null,null,null,null,null,null,null,null,null,null,null,null,null,null,null,null,null,null,null,null,null,null,null,null,null,null,null,null,null,null,null,null,null,null,null,null,null,null,null,null,null,null,10,{"$f":"DF17*(MOD(TODAY(),5)+5)","v":48},6]
[null,null,null,null,null,null,null,null,null,null,null,"数はそのまま割って",null,null,null,null,null,null,null,null,null,null,null,null,null,null,null,null,null,{"$f":"N8","v":4},null,null,"÷",null,{"$f":"Y8","v":2},null,null,null,null,null,null,null,null,null,null,null,null,null,null,null,null,null,null,null,null,null,null,null,null,null,null,null,null,null,null,null,null,null,null,null,null,null,null,null,null,null,null,null,null,null,null,null,null,null,null,null,null,null,null,null,null,null,null,null,null,null,null,null,null,null,null,null,null,null,null,null,null,11,{"$f":"DF18*(MOD(TODAY(),4)+2)","v":35},7]
[null,null,null,null,null,null,null,null,null,null,null,null,null,null,null,null,null,null,null,null,null,null,null,null,null,null,null,null,null,null,null,null,null,null,null,null,null,null,null,null,null,null,null,null,null,null,null,null,null,null,null,null,null,null,null,null,null,null,null,null,null,null,null,null,null,null,null,null,null,null,null,null,null,null,null,null,null,null,null,null,null,null,null,null,null,null,null,null,null,null,null,null,null,null,null,null,null,null,null,null,null,null,null,null,null,null,null,12,{"$f":"DF19*(MOD(TODAY(),4)+6)","v":63},7]
[null,null,null,null,null,null,null,null,null,null,null,null,null,null,null,null,null,null,null,null,null,null,null,null,null,null,null,null,null,null,null,null,null,null,null,null,null,null,null,null,null,null,null,null,null,null,null,null,null,null,null,null,null,null,null,null,null,null,null,null,null,null,null,null,null,null,null,null,null,null,null,null,null,null,null,null,null,null,null,null,null,null,null,null,null,null,null,null,null,null,null,null,null,null,null,null,null,null,null,null,null,null,null,null,null,null,null,13,{"$f":"DF20*(MOD(TODAY(),4)+7)","v":70},7]
[null,null,null,null,null,null,null,null,null,null,null,null,null,null,null,null,null,null,null,null,null,null,null,null,null,null,null,null,null,null,null,null,null,null,null,null,null,null,null,null,null,null,null,null,null,null,null,null,null,null,null,null,null,null,null,null,null,null,null,null,null,null,null,null,null,null,null,null,null,null,null,null,null,null,null,null,null,null,null,null,null,null,null,null,null,null,null,null,null,null,null,null,null,null,null,null,null,null,null,null,null,null,null,null,null,null,null,14,{"$f":"DF21*(MOD(TODAY(),3)+2)","v":24},8]
[null,null,null,null,null,null,null,null,null,null,null,null,null,null,null,null,null,null,null,null,null,null,null,null,null,null,null,null,null,null,null,null,null,null,null,null,null,null,null,null,null,null,null,null,null,null,null,null,null,null,null,null,null,null,null,null,null,{"$f":"IF($AG$8=$L$12,\"正解！\",\"残念！\")","v":"残念！"},null,null,null,null,null,null,null,null,null,null,null,null,null,null,null,null,null,null,null,null,null,null,null,null,null,null,null,null,null,null,null,null,null,null,null,null,null,null,null,null,null,null,null,null,null,null,null,null,null,15,{"$f":"DF22*(MOD(TODAY(),3)+5)","v":48},8]
[null,null,null,null,null,null,null,null,null,null,null,null,null,null,null,null,null,null,null,null,null,null,null,null,null,null,null,null,null,null,null,null,null,null,null,null,null,null,null,null,null,null,null,null,null,null,null,null,null,null,null,null,null,null,null,null,null,null,null,null,null,null,null,null,null,null,null,null,null,null,null,null,null,null,null,null,null,null,null,null,null,null,null,null,null,null,null,null,null,null,null,null,null,null,null,null,null,null,null,null,null,null,null,null,null,null,null,16,{"$f":"DF23*(MOD(TODAY(),3)+8)","v":72},8]
[null,null,null,null,null,null,null,null,null,null,null,null,null,null,null,null,null,null,null,null,null,null,null,null,null,null,null,null,null,null,null,null,null,null,null,null,null,null,null,null,null,null,null,null,null,null,null,null,null,null,null,null,null,null,null,null,null,null,null,null,null,null,null,null,null,null,null,null,null,null,null,null,null,null,null,null,null,null,null,null,null,null,null,null,null,null,null,null,null,null,null,null,null,null,null,null,null,null,null,null,null,null,null,null,null,null,null,17,{"$f":"DF24*(MOD(TODAY(),4)+1)","v":36},9]
[null,null,null,null,null,null,null,null,null,null,null,null,null,null,null,null,null,null,null,null,null,null,null,null,null,null,null,null,null,null,null,null,null,null,null,null,null,null,null,null,null,null,null,null,null,null,null,null,null,null,null,null,null,null,null,null,null,null,null,null,null,null,null,null,null,null,null,null,null,null,null,null,null,null,null,null,null,null,null,null,null,null,null,null,null,null,null,null,null,null,null,null,null,null,null,null,null,null,null,null,null,null,null,null,null,null,null,18,{"$f":"DF25*(MOD(TODAY(),4)+3)","v":54},9]
[null,null,null,null,null,null,null,null,null,null,null,null,null,null,null,null,null,null,null,null,null,null,null,null,null,null,null,null,null,null,null,null,null,null,null,null,null,null,null,null,null,null,null,null,null,null,null,null,null,null,null,null,null,null,null,null,null,null,null,null,null,null,null,null,null,null,null,null,null,null,null,null,null,null,null,null,null,null,null,null,null,null,null,null,null,null,null,null,null,null,null,null,null,null,null,null,null,null,null,null,null,null,null,null,null,null,null,19,{"$f":"DF26*(MOD(TODAY(),4)+7)","v":90},9]
[null,null,null,null,null,null,null,null,null,null,null,null,null,null,null,null,null,null,null,null,null,null,null,null,null,null,null,null,null,null,null,null,null,null,null,null,null,null,null,null,null,null,null,null,null,null,null,null,null,null,null,null,null,null,null,null,null,null,null,null,null,null,null,null,null,null,null,null,null,null,null,null,null,null,null,null,null,null,null,null,null,null,null,null,null,null,null,null,null,null,null,null,null,null,null,null,null,null,null,null,null,null,null,null,null,null,null,20,{"$f":"DF27*(MOD(TODAY(),5)+5)","v":80},10]

{"sheet":"６　整数÷整数２","index":5,"n_rows":32,"n_cols":112,"rows_kept":32,"cut":false,"hidden":false,"merged":[[32,109,33,109],[7,24,8,26],[18,15,19,17],[20,15,21,17],[17,17,17,21],[22,17,22,21],[19,21,20,37],[28,18,29,27],[21,57,26,69],[7,22,8,23],[7,27,8,28],[7,29,8,30],[7,33,8,34],[7,41,8,51],[24,10,25,10],[24,12,25,13],[23,15,24,17],[25,15,26,17],[17,5,18,8],[17,10,17,15],[18,10,18,13],[19,10,20,10],[19,12,20,13],[11,5,12,8],[11,20,12,45],[11,57,20,69],[12,11,13,12],[15,11,15,16],[15,21,15,26],[15,29,15,34],[11,13,12,15],[13,13,14,15],[0,33,4,68],[1,4,2,6],[1,7,2,25],[5,42,5,50],[6,2,6,5],[6,33,6,34],[6,35,7,39],[7,2,8,5],[8,35,9,39],[7,9,8,10],[7,11,8,12],[7,13,8,15],[7,16,8,17],[7,18,8,19],[7,20,8,21]]}
[null,null,null,null,null,null,null,null,null,null,null,null,null,null,null,null,null,null,null,null,null,null,null,null,null,null,null,null,null,null,null,null,null,"問題は２０題。約分できるものは約分して答えること。\n答えが整数か分数かで、解答の入力場所が違います。"]
[null,null,null,null,6,null,null,"整数÷整数(商が分数)"]
[]
[]
[null,null,null,null,null,null,null,null,null,null,null,null,null,null,null,null,null,null,null,null,null,null,null,null,null,null,null,null,null,null,null,null,null,null,null,null,null,null,null,null,null,null,null,null,null,null,null,null,null,null,null,null,null,null,null,null,null,null,null,null,null,null,null,null,null,null,null,null,null,null,null,null,null,null,null,null,null,null,null,null,null,null,null,null,null,null,null,null,null,null,null,null,null,null,null,null,null,null,null,null,null,null,null,null,null,null,null,{"$f":"MOD(DAY(TODAY()),2)","v":1},{"$f":"MOD(DAY(TODAY()),3)","v":0},{"$f":"MOD(DAY(TODAY()),4)","v":1},{"$f":"MOD(DAY(TODAY()),5)","v":4},{"$f":"MOD(DAY(TODAY()),6)","v":3}]
[null,null,null,null,null,null,null,null,null,null,null,null,null,null,null,null,null,null,null,null,null,null,null,null,null,null,null,null,null,null,null,null,null,null,null,null,null,null,null,null,null,null,null,null,null,null,null,null,null,null,null,null,null,null,null,null,null,null,null,null,null,null,null,null,null,null,null,null,null,null,null,null,null,null,null,null,null,null,null,null,null,null,null,null,null,null,null,null,null,null,null,null,null,null,null,null,null,null,null,null,null,null,null,null,null,null,null,{"$f":"2*DD5+1","v":3},{"$f":"2*DE5+1","v":1},3,9,7]
[null,null,"問題番号"]
[null,null,1,null,null,null,null,null,null,"（",null,{"$f":"VLOOKUP($C$8,$DD$8:$DJ$27,2,0)","v":"+"},null,{"$f":"VLOOKUP($C$8,$DD$8:$DJ$27,3,0)","v":3},null,null,"）",null,"÷",null,"（",null,{"$f":"VLOOKUP($C$8,$DD$8:$DJ$27,4,0)","v":"+"},null,{"$f":"VLOOKUP($C$8,$DD$8:$DJ$27,5,0)","v":4},null,null,"）",null,"＝",null,null,null,null,null,null,null,null,null,null,null,null,null,null,null,null,null,null,null,null,null,null,null,null,null,null,null,null,null,null,null,null,null,null,null,null,null,null,null,null,null,null,null,null,null,null,null,null,null,null,null,null,null,null,null,null,null,null,null,null,null,null,null,null,null,null,null,null,null,null,null,null,null,null,null,null,null,1,"+",{"$f":"$DD$6","v":3},"+",4]
[null,null,null,null,null,null,null,null,null,null,null,null,null,null,null,null,null,null,null,null,null,null,null,null,null,null,null,null,null,null,null,null,null,null,null,null,null,null,null,null,null,null,null,null,null,null,null,null,null,null,null,null,null,null,null,null,null,null,null,null,null,null,null,null,null,null,null,null,null,null,null,null,null,null,null,null,null,null,null,null,null,null,null,null,null,null,null,null,null,null,null,null,null,null,null,null,null,null,null,null,null,null,null,null,null,null,null,2,"+",{"$f":"$DE$5*3+2","v":2},"-",3]
[null,null,null,null,null,null,null,null,null,null,null,null,null,null,null,null,null,null,null,null,null,null,null,null,null,null,null,null,null,null,null,null,null,null,null,null,null,null,null,null,null,null,null,null,null,null,null,null,null,null,null,null,null,null,null,null,null,null,null,null,null,null,null,null,null,null,null,null,null,null,null,null,null,null,null,null,null,null,null,null,null,null,null,null,null,null,null,null,null,null,null,null,null,null,null,null,null,null,null,null,null,null,null,null,null,null,null,3,"-",{"$f":"$DD$6+4","v":7},"+",6]
[null,null,null,null,null,null,null,null,null,null,null,null,null,null,null,null,null,null,null,null,null,null,null,null,null,null,null,null,null,null,null,null,null,null,null,null,null,null,null,null,null,null,null,null,null,null,null,null,null,null,null,null,null,null,null,null,null,null,null,null,null,null,null,null,null,null,null,null,null,null,null,null,null,null,null,null,null,null,null,null,null,null,null,null,null,null,null,null,null,null,null,null,null,null,null,null,null,null,null,null,null,null,null,null,null,null,null,4,"-",{"$f":"$DG$6","v":9},"-",8]
[null,null,null,null,null,"正解",null,null,null,null,null,null,null,{"$f":"IF(M25=\"\",P19,P24)","v":3},null,null,null,null,null,null,null,null,null,null,null,null,null,null,null,null,null,null,null,null,null,null,null,null,null,null,null,null,null,null,null,null,null,null,null,null,null,null,null,null,null,null,null,{"$f":"IF(COUNTIF(DE30:DE32,\"○\")=3,\"○\",\"×\")","v":"×"},null,null,null,null,null,null,null,null,null,null,null,null,null,null,null,null,null,null,null,null,null,null,null,null,null,null,null,null,null,null,null,null,null,null,null,null,null,null,null,null,null,null,null,null,null,null,null,null,null,5,"-",{"$f":"5-$DD$5","v":4},"+",3]
[null,null,null,null,null,null,null,null,null,null,null,{"$f":"M20","v":""},null,null,null,null,null,null,null,null,null,null,null,null,null,null,null,null,null,null,null,null,null,null,null,null,null,null,null,null,null,null,null,null,null,null,null,null,null,null,null,null,null,null,null,null,null,null,null,null,null,null,null,null,null,null,null,null,null,null,null,null,null,null,null,null,null,null,null,null,null,null,null,null,null,null,null,null,null,null,null,null,null,null,null,null,null,null,null,null,null,null,null,null,null,null,null,6,"+",{"$f":"5*$DF$5+1","v":6},"-",5]
[null,null,null,null,null,null,null,null,null,null,null,null,null,{"$f":"IF(M25=\"\",P21,P26)","v":4},null,null,null,null,null,null,null,null,null,null,null,null,null,null,null,null,null,null,null,null,null,null,null,null,null,null,null,null,null,null,null,null,null,null,null,null,null,null,null,null,null,null,null,null,null,null,null,null,null,null,null,null,null,null,null,null,null,null,null,null,null,null,null,null,null,null,null,null,null,null,null,null,null,null,null,null,null,null,null,null,null,null,null,null,null,null,null,null,null,null,null,null,null,7,"+",{"$f":"3*$DF$5+1","v":4},"+",3]
[null,null,null,null,null,null,null,null,null,null,null,null,null,null,null,null,null,null,null,null,null,null,null,null,null,null,null,null,null,null,null,null,null,null,null,null,null,null,null,null,null,null,null,null,null,null,null,null,null,null,null,null,null,null,null,null,null,null,null,null,null,null,null,null,null,null,null,null,null,null,null,null,null,null,null,null,null,null,null,null,null,null,null,null,null,null,null,null,null,null,null,null,null,null,null,null,null,null,null,null,null,null,null,null,null,null,null,8,"+",{"$f":"$DG$6","v":9},"-",4]
[null,null,null,null,null,null,null,null,null,null,null,{"$f":"IF(N14<>\"\",\"―――――\",\"\")","v":"―――――"},null,null,null,null,null,null,null,null,null,null,null,null,null,null,null,null,null,null,null,null,null,null,null,null,null,null,null,null,null,null,null,null,null,null,null,null,null,null,null,null,null,null,null,null,null,null,null,null,null,null,null,null,null,null,null,null,null,null,null,null,null,null,null,null,null,null,null,null,null,null,null,null,null,null,null,null,null,null,null,null,null,null,null,null,null,null,null,null,null,null,null,null,null,null,null,9,"-",{"$f":"2*($DE$5+1)","v":2},"+",5]
[null,null,null,null,null,null,null,null,null,null,null,null,null,null,null,null,null,null,null,null,null,null,null,null,null,null,null,null,null,null,null,null,null,null,null,null,null,null,null,null,null,null,null,null,null,null,null,null,null,null,null,null,null,null,null,null,null,null,null,null,null,null,null,null,null,null,null,null,null,null,null,null,null,null,null,null,null,null,null,null,null,null,null,null,null,null,null,null,null,null,null,null,null,null,null,null,null,null,null,null,null,null,null,null,null,null,null,10,"-",{"$f":"$DF$5+1","v":2},"-",5]
[null,null,null,null,null,"解説",null,null,null,null,{"$f":"IF(L8=W8,\"同符号なので\",\"異符号なので\")","v":"同符号なので"},null,null,null,null,null,null,{"$f":"IF(GCD(P19,P21)=1,\"\",GCD(P19,P21)&\"で割る\")","v":""},null,null,null,null,null,null,null,null,null,null,null,null,null,null,null,null,null,null,null,null,null,null,null,null,null,null,null,null,null,null,null,null,null,null,null,null,null,null,null,null,null,null,null,null,null,null,null,null,null,null,null,null,null,null,null,null,null,null,null,null,null,null,null,null,null,null,null,null,null,null,null,null,null,null,null,null,null,null,null,null,null,null,null,null,null,null,null,null,null,11,"-",{"$f":"$DF$6+2","v":5},"+",4]
[null,null,null,null,null,null,null,null,null,null,{"$f":"IF(L8=W8,\"符号なし\",\"符号は－\")","v":"符号なし"},null,null,null,null,{"$f":"N8","v":3},null,null,null,null,null,null,null,null,null,null,null,null,null,null,null,null,null,null,null,null,null,null,null,null,null,null,null,null,null,null,null,null,null,null,null,null,null,null,null,null,null,null,null,null,null,null,null,null,null,null,null,null,null,null,null,null,null,null,null,null,null,null,null,null,null,null,null,null,null,null,null,null,null,null,null,null,null,null,null,null,null,null,null,null,null,null,null,null,null,null,null,12,"+",{"$f":"3*$DE$5+1","v":1},"-",3]
[null,null,null,null,null,null,null,null,null,null,null,null,{"$f":"IF(L8=W8,\"\",\"-\")","v":""},null,null,null,null,null,null,null,null,{"$f":"IF(GCD(P19,P21)=1,\"\",GCD(P19,P21)&\"で約分\")","v":""},null,null,null,null,null,null,null,null,null,null,null,null,null,null,null,null,null,null,null,null,null,null,null,null,null,null,null,null,null,null,null,null,null,null,null,null,null,null,null,null,null,null,null,null,null,null,null,null,null,null,null,null,null,null,null,null,null,null,null,null,null,null,null,null,null,null,null,null,null,null,null,null,null,null,null,null,null,null,null,null,null,null,null,null,null,13,"+",{"$f":"$DD$6","v":3},"+",5]
[null,null,null,null,null,null,null,null,null,null,null,null,null,null,{"$f":"DBCS(Y9)","v":""},{"$f":"Y8","v":4},null,null,null,null,null,null,null,null,null,null,null,null,null,null,null,null,null,null,null,null,null,null,null,null,null,null,null,null,null,null,null,null,null,null,null,null,null,null,null,null,null,null,null,null,null,null,null,null,null,null,null,null,null,null,null,null,null,null,null,null,null,null,null,null,null,null,null,null,null,null,null,null,null,null,null,null,null,null,null,null,null,null,null,null,null,null,null,null,null,null,null,14,"+",{"$f":"$DE$6","v":1},"-",7]
[null,null,null,null,null,null,null,null,null,null,null,null,null,null,null,null,null,null,null,null,null,null,null,null,null,null,null,null,null,null,null,null,null,null,null,null,null,null,null,null,null,null,null,null,null,null,null,null,null,null,null,null,null,null,null,null,null,{"$f":"IF(BF12=\"○\",\"正解！\",\"残念！\")","v":"残念！"},null,null,null,null,null,null,null,null,null,null,null,null,null,null,null,null,null,null,null,null,null,null,null,null,null,null,null,null,null,null,null,null,null,null,null,null,null,null,null,null,null,null,null,null,null,null,null,null,null,15,"-",{"$f":"$DF$6+1","v":4},"+",5]
[null,null,null,null,null,null,null,null,null,null,null,null,null,null,null,null,null,{"$f":"IF(GCD(P19,P21)=1,\"\",GCD(P19,P21)&\"で割る\")","v":""},null,null,null,null,null,null,null,null,null,null,null,null,null,null,null,null,null,null,null,null,null,null,null,null,null,null,null,null,null,null,null,null,null,null,null,null,null,null,null,null,null,null,null,null,null,null,null,null,null,null,null,null,null,null,null,null,null,null,null,null,null,null,null,null,null,null,null,null,null,null,null,null,null,null,null,null,null,null,null,null,null,null,null,null,null,null,null,null,null,16,"-",{"$f":"$DD$6+4","v":7},"-",6]
[null,null,null,null,null,null,null,null,null,null,null,null,null,null,null,{"$f":"IF(GCD(N8,Y8)>1,P19/GCD(N8,Y8),\"\")","v":""},null,null,null,null,null,null,null,null,null,null,null,null,null,null,null,null,null,null,null,null,null,null,null,null,null,null,null,null,null,null,null,null,null,null,null,null,null,null,null,null,null,null,null,null,null,null,null,null,null,null,null,null,null,null,null,null,null,null,null,null,null,null,null,null,null,null,null,null,null,null,null,null,null,null,null,null,null,null,null,null,null,null,null,null,null,null,null,null,null,null,null,17,"+",{"$f":"$DF$6+2","v":5},"-",4]
[null,null,null,null,null,null,null,null,null,null,{"$f":"IF(GCD(N8,Y8)>1,\"=\",\"\")","v":""},null,{"$f":"IF(GCD(N8,Y8)>1,M20,\"\")","v":""},null,null,null,null,null,null,null,null,null,null,null,null,null,null,null,null,null,null,null,null,null,null,null,null,null,null,null,null,null,null,null,null,null,null,null,null,null,null,null,null,null,null,null,null,null,null,null,null,null,null,null,null,null,null,null,null,null,null,null,null,null,null,null,null,null,null,null,null,null,null,null,null,null,null,null,null,null,null,null,null,null,null,null,null,null,null,null,null,null,null,null,null,null,null,18,"-",{"$f":"3*$DD$6+1","v":10},"+",9]
[null,null,null,null,null,null,null,null,null,null,null,null,null,null,null,{"$f":"IF(GCD(N8,Y8)>1,P21/GCD(N8,Y8),\"\")","v":""},null,null,null,null,null,null,null,null,null,null,null,null,null,null,null,null,null,null,null,null,null,null,null,null,null,null,null,null,null,null,null,null,null,null,null,null,null,null,null,null,null,null,null,null,null,null,null,null,null,null,null,null,null,null,null,null,null,null,null,null,null,null,null,null,null,null,null,null,null,null,null,null,null,null,null,null,null,null,null,null,null,null,null,null,null,null,null,null,null,null,null,19,"-",{"$f":"6*$DE$5+1","v":1},"+",6]
[null,null,null,null,null,null,null,null,null,null,null,null,null,null,null,null,null,null,null,null,null,null,null,null,null,null,null,null,null,null,null,null,null,null,null,null,null,null,null,null,null,null,null,null,null,null,null,null,null,null,null,null,null,null,null,null,null,null,null,null,null,null,null,null,null,null,null,null,null,null,null,null,null,null,null,null,null,null,null,null,null,null,null,null,null,null,null,null,null,null,null,null,null,null,null,null,null,null,null,null,null,null,null,null,null,null,null,20,"-",{"$f":"$DE$6+6","v":7},"-",10]
[]
[null,null,null,null,null,null,null,null,null,null,null,null,null,null,null,null,null,null,{"$f":"IF(O26=1,VALUE(ASC(M25&(N8*Y8/Y9))),\"\")","v":""}]
[null,null,null,null,null,null,null,null,null,null,null,null,null,null,null,null,null,null,null,null,null,null,null,null,null,null,null,null,null,null,null,null,null,null,null,null,null,null,null,null,null,null,null,null,null,null,null,null,null,null,null,null,null,null,null,null,null,null,null,null,null,null,null,null,null,null,null,null,null,null,null,null,null,null,null,null,null,null,null,null,null,null,null,null,null,null,null,null,null,null,null,null,null,null,null,null,null,null,null,null,null,null,null,null,null,null,null,null,{"$f":"IF(L13=AH8,\"○\",\"×\")","v":"○"},null,null,"-"]
[null,null,null,null,null,null,null,null,null,null,null,null,null,null,null,null,null,null,null,null,null,null,null,null,null,null,null,null,null,null,null,null,null,null,null,null,null,null,null,null,null,null,null,null,null,null,null,null,null,null,null,null,null,null,null,null,null,null,null,null,null,null,null,null,null,null,null,null,null,null,null,null,null,null,null,null,null,null,null,null,null,null,null,null,null,null,null,null,null,null,null,null,null,null,null,null,null,null,null,null,null,null,null,null,null,null,null,null,{"$f":"IF(N12=AJ7,\"○\",\"×\")","v":"×"}]
[null,null,null,null,null,null,null,null,null,null,null,null,null,null,null,null,null,null,null,null,null,null,null,null,null,null,null,null,null,null,null,null,null,null,null,null,null,null,null,null,null,null,null,null,null,null,null,null,null,null,null,null,null,null,null,null,null,null,null,null,null,null,null,null,null,null,null,null,null,null,null,null,null,null,null,null,null,null,null,null,null,null,null,null,null,null,null,null,null,null,null,null,null,null,null,null,null,null,null,null,null,null,null,null,null,null,null,null,{"$f":"IF(N14=AJ9,\"○\",\"×\")","v":"×"}]

{"sheet":"７　整数÷分数","index":6,"n_rows":34,"n_cols":113,"rows_kept":34,"cut":false,"hidden":false,"merged":[[18,11,19,11],[18,12,19,14],[18,15,19,15],[32,27,33,28],[29,109,30,109],[21,57,26,69],[21,25,21,30],[22,25,22,28],[23,27,24,28],[19,20,20,22],[32,109,33,109],[18,26,19,26],[18,27,19,27],[18,28,19,30],[18,31,19,31],[23,24,24,25],[11,5,12,8],[11,13,12,16],[11,57,20,69],[12,11,13,12],[13,13,14,16],[15,11,15,16],[15,21,15,26],[15,29,15,34],[18,16,19,17],[18,18,19,18],[18,19,19,19],[18,23,19,23],[18,24,19,25],[17,20,18,22],[17,5,18,8],[18,10,19,10],[7,20,8,21],[7,22,8,23],[7,27,8,28],[7,29,8,30],[7,32,8,39],[1,4,2,6],[1,7,2,25],[5,42,5,50],[6,2,6,5],[6,24,7,26],[6,32,6,39],[6,43,6,44],[6,45,7,49],[7,2,8,5],[8,24,9,26],[8,45,9,49],[7,9,8,10],[7,11,8,12],[7,13,8,15],[7,16,8,17],[7,18,8,19],[0,33,4,68],[7,51,8,61],[7,43,8,44],[10,43,10,49],[22,41,25,53],[18,41,19,41],[18,55,19,55],[17,36,18,38],[18,32,19,33],[18,34,19,34],[18,35,19,35],[18,39,19,39],[19,36,20,38],[17,42,18,44],[19,42,20,44],[17,52,18,54],[19,52,20,54],[18,45,19,51],[32,24,33,25],[22,29,23,38],[24,29,25,38],[27,29,28,38],[29,29,30,38],[31,29,32,31],[33,29,34,31],[32,32,33,38],[28,27,29,28],[28,24,29,25]]}
[null,null,null,null,null,null,null,null,null,null,null,null,null,null,null,null,null,null,null,null,null,null,null,null,null,null,null,null,null,null,null,null,null,"問題は２０題。約分できるものは約分して答えること。\n答えが整数か分数かで、解答の入力場所が違います。"]
[null,null,null,null,7,null,null,"整数÷分数"]
[]
[]
[null,null,null,null,null,null,null,null,null,null,null,null,null,null,null,null,null,null,null,null,null,null,null,null,null,null,null,null,null,null,null,null,null,null,null,null,null,null,null,null,null,null,null,null,null,null,null,null,null,null,null,null,null,null,null,null,null,null,null,null,null,null,null,null,null,null,null,null,null,null,null,null,null,null,null,null,null,null,null,null,null,null,null,null,null,null,null,null,null,null,null,null,null,null,null,null,null,null,null,null,null,null,null,null,null,null,null,null,{"$f":"MOD(DAY(TODAY()),2)","v":1},{"$f":"MOD(DAY(TODAY()),3)","v":0},{"$f":"MOD(DAY(TODAY()),4)","v":1},{"$f":"MOD(DAY(TODAY()),5)","v":4},{"$f":"MOD(DAY(TODAY()),6)","v":3}]
[null,null,null,null,null,null,null,null,null,null,null,null,null,null,null,null,null,null,null,null,null,null,null,null,null,null,null,null,null,null,null,null,null,null,null,null,null,null,null,null,null,null,"答えが分数の時",null,null,null,null,null,null,null,null,null,null,null,null,null,null,null,null,null,null,null,null,null,null,null,null,null,null,null,null,null,null,null,null,null,null,null,null,null,null,null,null,null,null,null,null,null,null,null,null,null,null,null,null,null,null,null,null,null,null,null,null,null,null,null,null,null,{"$f":"2*DE5+1","v":3},{"$f":"2*DF5+1","v":1},3,9,7]
[null,null,"問題番号",null,null,null,null,null,null,null,null,null,null,null,null,null,null,null,null,null,null,null,null,null,{"$f":"VLOOKUP($C$8,$DD$8:$DJ$27,3,0)","v":3},null,null,null,null,null,null,null,"答えが整数の時"]
[null,null,1,null,null,null,null,null,null,"（",null,{"$f":"VLOOKUP($C$8,$DD$8:$DJ$27,2,0)","v":"+"},null,{"$f":"VLOOKUP($C$8,$DD$8:$DJ$27,6,0)","v":2},null,null,"）",null,"÷",null,"（",null,{"$f":"VLOOKUP($C$8,$DD$8:$DJ$27,5,0)","v":"+"},null,null,null,null,"）",null,"＝",null,null,null,null,null,null,null,null,null,null,null,null,null,null,null,null,null,null,null,null,null,"←符号は選んで！",null,null,null,null,null,null,null,null,null,null,null,null,null,null,null,null,null,null,null,null,null,null,null,null,null,null,null,null,null,null,null,null,null,null,null,null,null,null,null,null,null,null,null,null,null,null,null,null,null,null,null,null,null,null,null,1,"+",{"$f":"$DE$6","v":3},4,"+",2]
[null,null,null,null,null,null,null,null,null,null,null,null,null,null,null,null,null,null,null,null,null,null,null,null,{"$f":"VLOOKUP($C$8,$DD$8:$DJ$27,4,0)","v":4},null,null,null,null,null,null,null,null,null,null,null,null,null,null,null,null,null,null,null,null,null,null,null,null,null,null,null,null,null,null,null,null,null,null,null,null,null,null,null,null,null,null,null,null,null,null,null,null,null,null,null,null,null,null,null,null,null,null,null,null,null,null,null,null,null,null,null,null,null,null,null,null,null,null,null,null,null,null,null,null,null,null,2,"+",{"$f":"$DF$5*3+2","v":2},3,"-",{"$f":"6*$DE$5+1","v":7}]
[null,null,null,null,null,null,null,null,null,null,null,null,null,null,null,null,null,null,null,null,null,null,null,null,null,null,null,null,null,null,null,null,null,null,null,null,null,null,null,null,null,null,null,null,null,null,null,null,null,null,null,null,null,null,null,null,null,null,null,null,null,null,null,null,null,null,null,null,null,null,null,null,null,null,null,null,null,null,null,null,null,null,null,null,null,null,null,null,null,null,null,null,null,null,null,null,null,null,null,null,null,null,null,null,null,null,null,3,"-",{"$f":"$DE$6+4","v":7},6,"+",{"$f":"$DF$6+5","v":6}]
[null,null,null,null,null,null,null,null,null,null,null,null,null,null,null,null,null,null,null,null,null,null,null,null,null,null,null,null,null,null,null,null,null,null,null,null,null,null,null,null,null,null,null,null,null,null,null,null,null,null,null,null,null,null,null,null,null,null,null,null,null,null,null,null,null,null,null,null,null,null,null,null,null,null,null,null,null,null,null,null,null,null,null,null,null,null,null,null,null,null,null,null,null,null,null,null,null,null,null,null,null,null,null,null,null,null,null,4,"-",{"$f":"$DH$6","v":9},8,"-",{"$f":"$DG$6+2","v":5}]
[null,null,null,null,null,"正解",null,null,null,null,null,null,null,{"$f":"IF(AD32=\"\",AG33,AD32)","v":8},null,null,null,null,null,null,null,null,null,null,null,null,null,null,null,null,null,null,null,null,null,null,null,null,null,null,null,null,null,null,null,null,null,null,null,null,null,null,null,null,null,null,null,{"$f":"IF(COUNTIF(DF30:DF34,\"○\")=2,\"○\",\"×\")","v":"×"},null,null,null,null,null,null,null,null,null,null,null,null,null,null,null,null,null,null,null,null,null,null,null,null,null,null,null,null,null,null,null,null,null,null,null,null,null,null,null,null,null,null,null,null,null,null,null,null,null,5,"-",{"$f":"5-$DE$5","v":4},3,"+",{"$f":"$DE$5+1","v":2}]
[null,null,null,null,null,null,null,null,null,null,null,{"$f":"IF(AD32=\"\",\"\",AB33)","v":""},null,null,null,null,null,null,null,null,null,null,null,null,null,null,null,null,null,null,null,null,null,null,null,null,null,null,null,null,null,null,null,null,null,null,null,null,null,null,null,null,null,null,null,null,null,null,null,null,null,null,null,null,null,null,null,null,null,null,null,null,null,null,null,null,null,null,null,null,null,null,null,null,null,null,null,null,null,null,null,null,null,null,null,null,null,null,null,null,null,null,null,null,null,null,null,6,"+",{"$f":"5*$DG$5+1","v":6},5,"-",{"$f":"$DG$6+1","v":4}]
[null,null,null,null,null,null,null,null,null,null,null,null,null,{"$f":"IF(AD34=\"\",\"\",AD34)","v":3},null,null,null,null,null,null,null,null,null,null,null,null,null,null,null,null,null,null,null,null,null,null,null,null,null,null,null,null,null,null,null,null,null,null,null,null,null,null,null,null,null,null,null,null,null,null,null,null,null,null,null,null,null,null,null,null,null,null,null,null,null,null,null,null,null,null,null,null,null,null,null,null,null,null,null,null,null,null,null,null,null,null,null,null,null,null,null,null,null,null,null,null,null,7,"+",{"$f":"3*$DG$5+1","v":4},3,"+",{"$f":"$DF$6*2","v":2}]
[null,null,null,null,null,null,null,null,null,null,null,null,null,null,null,null,null,null,null,null,null,null,null,null,null,null,null,null,null,null,null,null,null,null,null,null,null,null,null,null,null,null,null,null,null,null,null,null,null,null,null,null,null,null,null,null,null,null,null,null,null,null,null,null,null,null,null,null,null,null,null,null,null,null,null,null,null,null,null,null,null,null,null,null,null,null,null,null,null,null,null,null,null,null,null,null,null,null,null,null,null,null,null,null,null,null,null,8,"+",{"$f":"$DH$6","v":9},4,"-",{"$f":"$DE$5+4","v":5}]
[null,null,null,null,null,null,null,null,null,null,null,{"$f":"IF(N14<>\"\",\"―――――\",\"\")","v":"―――――"},null,null,null,null,null,null,null,null,null,null,null,null,null,null,null,null,null,null,null,null,null,null,null,null,null,null,null,null,null,null,null,null,null,null,null,null,null,null,null,null,null,null,null,null,null,null,null,null,null,null,null,null,null,null,null,null,null,null,null,null,null,null,null,null,null,null,null,null,null,null,null,null,null,null,null,null,null,null,null,null,null,null,null,null,null,null,null,null,null,null,null,null,null,null,null,9,"-",{"$f":"2*($DF$5+1)","v":2},5,"+",{"$f":"$DG$6+3","v":6}]
[null,null,null,null,null,null,null,null,null,null,null,null,null,null,null,null,null,null,null,null,null,null,null,null,null,null,null,null,null,null,null,null,null,null,null,null,null,null,null,null,null,null,null,null,null,null,null,null,null,null,null,null,null,null,null,null,null,null,null,null,null,null,null,null,null,null,null,null,null,null,null,null,null,null,null,null,null,null,null,null,null,null,null,null,null,null,null,null,null,null,null,null,null,null,null,null,null,null,null,null,null,null,null,null,null,null,null,10,"-",{"$f":"$DG$5+1","v":2},5,"-",{"$f":"3*$DF$5+1","v":1}]
[null,null,null,null,null,"解説",null,null,null,null,null,null,null,null,null,null,null,null,null,null,{"$f":"Y7","v":3},null,null,null,null,null,null,null,null,null,null,null,null,null,null,null,{"$f":"U20","v":4},null,null,null,null,null,{"$f":"U18","v":3},null,null,null,null,null,null,null,null,null,{"$f":"AK18","v":4},null,null,null,null,null,null,null,null,null,null,null,null,null,null,null,null,null,null,null,null,null,null,null,null,null,null,null,null,null,null,null,null,null,null,null,null,null,null,null,null,null,null,null,null,null,null,null,null,null,null,null,null,null,null,11,"-",{"$f":"$DG$6+2","v":5},4,"+",{"$f":"$DE$6+4","v":7}]
[null,null,null,null,null,null,null,null,null,null,"（",{"$f":"L8","v":"+"},{"$f":"N8","v":2},null,null,")","÷",null,"（",{"$f":"W8","v":"+"},null,null,null,")","=",null,"（",{"$f":"L19","v":"+"},{"$f":"M19","v":2},null,null,")","×",null,"（",{"$f":"T19","v":"+"},null,null,null,")",null,"[",null,null,null,"の逆数は",null,null,null,null,null,null,null,null,null,"]",null,null,null,null,null,null,null,null,null,null,null,null,null,null,null,null,null,null,null,null,null,null,null,null,null,null,null,null,null,null,null,null,null,null,null,null,null,null,null,null,null,null,null,null,null,null,null,null,null,null,null,12,"+",{"$f":"3*$DF$5+1","v":1},3,"-",{"$f":"($DE$5+1)*($DG$5+1)","v":4}]
[null,null,null,null,null,null,null,null,null,null,null,null,null,null,null,null,null,null,null,null,{"$f":"Y9","v":4},null,null,null,null,null,null,null,null,null,null,null,null,null,null,null,{"$f":"U18","v":3},null,null,null,null,null,{"$f":"U20","v":4},null,null,null,null,null,null,null,null,null,{"$f":"AK20","v":3},null,null,null,null,null,null,null,null,null,null,null,null,null,null,null,null,null,null,null,null,null,null,null,null,null,null,null,null,null,null,null,null,null,null,null,null,null,null,null,null,null,null,null,null,null,null,null,null,null,null,null,null,null,null,13,"+",{"$f":"$DE$6","v":3},5,"+",{"$f":"$DF$6*3","v":3}]
[null,null,null,null,null,null,null,null,null,null,null,null,null,null,null,null,null,null,null,null,null,null,null,null,null,null,null,null,null,null,null,null,null,null,null,null,null,null,null,null,null,null,null,null,null,null,null,null,null,null,null,null,null,null,null,null,null,null,null,null,null,null,null,null,null,null,null,null,null,null,null,null,null,null,null,null,null,null,null,null,null,null,null,null,null,null,null,null,null,null,null,null,null,null,null,null,null,null,null,null,null,null,null,null,null,null,null,14,"+",{"$f":"$DF$6","v":1},7,"-",{"$f":"4*$DE$5+1","v":5}]
[null,null,null,null,null,null,null,null,null,null,null,null,null,null,null,null,null,null,null,null,null,null,null,null,null,{"$f":"IF(L8=W8,\"同符号なので\",\"異符号なので\")","v":"同符号なので"},null,null,null,null,null,null,null,null,null,null,null,null,null,null,null,null,null,null,null,null,null,null,null,null,null,null,null,null,null,null,null,{"$f":"IF(BF12=\"○\",\"正解！\",\"残念！\")","v":"残念！"},null,null,null,null,null,null,null,null,null,null,null,null,null,null,null,null,null,null,null,null,null,null,null,null,null,null,null,null,null,null,null,null,null,null,null,null,null,null,null,null,null,null,null,null,null,null,null,null,null,15,"-",{"$f":"$DG$6+1","v":4},5,"+",{"$f":"2*$DE$6+3","v":9}]
[null,null,null,null,null,null,null,null,null,null,null,null,null,null,null,null,null,null,null,null,null,null,null,null,null,{"$f":"IF(L8=W8,\"符号なし\",\"符号は－\")","v":"符号なし"},null,null,null,{"$f":"AC19&AG19&AK18","v":"2×4"},null,null,null,null,null,null,null,null,null,null,null,{"$f":"IF(GCD(AC19,AK20)=1,\"\",\"⇒｢\"&AC19&\"｣と｢\"&AK20&\"｣を『\"&GCD(AC19,AK20)&\"』で約分\")","v":""},null,null,null,null,null,null,null,null,null,null,null,null,null,null,null,null,null,null,null,null,null,null,null,null,null,null,null,null,null,null,null,null,null,null,null,null,null,null,null,null,null,null,null,null,null,null,null,null,null,null,null,null,null,null,null,null,null,null,null,null,null,null,null,null,null,16,"-",{"$f":"$DE$6+4","v":7},6,"-",{"$f":"4*$DF$5+1","v":1}]
[null,null,null,null,null,null,null,null,null,null,null,null,null,null,null,null,null,null,null,null,null,null,null,null,"=",null,null,{"$f":"IF(L8=W8,\"\",\"-\")","v":""},null,null,null,null,null,null,null,null,null,null,null,null,null,null,null,null,null,null,null,null,null,null,null,null,null,null,null,null,null,null,null,null,null,null,null,null,null,null,null,null,null,null,null,null,null,null,null,null,null,null,null,null,null,null,null,null,null,null,null,null,null,null,null,null,null,null,null,null,null,null,null,null,null,null,null,null,null,null,null,17,"+",{"$f":"$DG$6+2","v":5},4,"-",{"$f":"4*$DE$6-1","v":11}]
[null,null,null,null,null,null,null,null,null,null,null,null,null,null,null,null,null,null,null,null,null,null,null,null,null,null,null,null,null,{"$f":"AK20","v":3},null,null,null,null,null,null,null,null,null,null,null,null,null,null,null,null,null,null,null,null,null,null,null,null,null,null,null,null,null,null,null,null,null,null,null,null,null,null,null,null,null,null,null,null,null,null,null,null,null,null,null,null,null,null,null,null,null,null,null,null,null,null,null,null,null,null,null,null,null,null,null,null,null,null,null,null,null,18,"-",{"$f":"3*$DE$6+1","v":10},9,"+",{"$f":"$DE$6+4","v":7}]
[null,null,null,null,null,null,null,null,null,null,null,null,null,null,null,null,null,null,null,null,null,null,null,null,null,null,null,null,null,null,null,null,null,null,null,null,null,null,null,null,null,null,null,null,null,null,null,null,null,null,null,null,null,null,null,null,null,null,null,null,null,null,null,null,null,null,null,null,null,null,null,null,null,null,null,null,null,null,null,null,null,null,null,null,null,null,null,null,null,null,null,null,null,null,null,null,null,null,null,null,null,null,null,null,null,null,null,19,"-",{"$f":"6*$DF$5+1","v":1},6,"+",{"$f":"$DE$6*$DF$6","v":3}]
[null,null,null,null,null,null,null,null,null,null,null,null,null,null,null,null,null,null,null,null,null,null,null,null,null,null,null,null,null,null,null,null,null,null,null,null,null,null,null,null,null,null,null,null,null,null,null,null,null,null,null,null,null,null,null,null,null,null,null,null,null,null,null,null,null,null,null,null,null,null,null,null,null,null,null,null,null,null,null,null,null,null,null,null,null,null,null,null,null,null,null,null,null,null,null,null,null,null,null,null,null,null,null,null,null,null,null,20,"-",{"$f":"$DF$6+6","v":7},10,"-",{"$f":"$DF$6*$DG$6","v":3}]
[null,null,null,null,null,null,null,null,null,null,null,null,null,null,null,null,null,null,null,null,null,null,null,null,null,null,null,null,null,{"$f":"IF(GCD(AC19,AK20)>1,AC19/GCD(AC19,AK20)&\"×\"&AK18,\"\")","v":""}]
[null,null,null,null,null,null,null,null,null,null,null,null,null,null,null,null,null,null,null,null,null,null,null,null,{"$f":"IF(GCD(AC19,AK20)>1,\"=\",\"\")","v":""},null,null,{"$f":"IF(GCD(AC19,AK20)>1,AB24,\"\")","v":""}]
[null,null,null,null,null,null,null,null,null,null,null,null,null,null,null,null,null,null,null,null,null,null,null,null,null,null,null,null,null,{"$f":"IF(GCD(AC19,AK20)>1,AK20/GCD(AC19,AK20),\"\")","v":""},null,null,null,null,null,null,null,null,null,null,null,null,null,null,null,null,null,null,null,null,null,null,null,null,null,null,null,null,null,null,null,null,null,null,null,null,null,null,null,null,null,null,null,null,null,null,null,null,null,null,null,null,null,null,null,null,null,null,null,null,null,null,null,null,null,null,null,null,null,null,null,null,null,null,null,null,null,null,{"$f":"IF(COUNTA(AQ7:AY10)=0,\"×\",\"○\")","v":"×"},{"$f":"IF(COUNTIF(DE30:DE31,\"○\")=1,\"○\",\"×\")","v":"×"},null,"-"]
[null,null,null,null,null,null,null,null,null,null,null,null,null,null,null,null,null,null,null,null,null,null,null,null,null,null,null,null,null,null,null,null,null,null,null,null,null,null,null,null,null,null,null,null,null,null,null,null,null,null,null,null,null,null,null,null,null,null,null,null,null,null,null,null,null,null,null,null,null,null,null,null,null,null,null,null,null,null,null,null,null,null,null,null,null,null,null,null,null,null,null,null,null,null,null,null,null,null,null,null,null,null,null,null,null,null,null,null,{"$f":"IF(COUNTA(AG8)=0,\"×\",\"○\")","v":"×"}]
[null,null,null,null,null,null,null,null,null,null,null,null,null,null,null,null,null,null,null,null,null,null,null,null,null,null,null,null,null,{"$f":"IF(AK20/GCD(AC19,AK20)=1,\"\",AC19*AK18/GCD(AC19,AK20))","v":8},null,null,null,null,null,null,null,null,null,null,null,null,null,null,null,null,null,null,null,null,null,null,null,null,null,null,null,null,null,null,null,null,null,null,null,null,null,null,null,null,null,null,null,null,null,null,null,null,null,null,null,null,null,null,null,null,null,null,null,null,null,null,null,null,null,null,null,null,null,null,null,null,null,null,null,null,null,null,{"$f":"IF(AG8=\"\",\"×\",IF(N14=\"\",IF(AG8=N12,\"○\",\"×\"),\"×\"))","v":"×"},{"$f":"DE32","v":"×"}]
[null,null,null,null,null,null,null,null,null,null,null,null,null,null,null,null,null,null,null,null,null,null,null,null,"=",null,null,{"$f":"IF(AG33=\"\",AB24,\"\")","v":""},null,null,null,null,{"$f":"IF(AK20/GCD(AC19,AK20)=1,VALUE(ASC(AB24&(AC19*AK18/AK20))),\"\")","v":""},null,null,null,null,null,null,null,null,null,null,null,null,null,null,null,null,null,null,null,null,null,null,null,null,null,null,null,null,null,null,null,null,null,null,null,null,null,null,null,null,null,null,null,null,null,null,null,null,null,null,null,null,null,null,null,null,null,null,null,null,null,null,null,null,null,null,null,null,null,null,null,null,null,null,null,{"$f":"IF(AT7=\"\",\"×\",IF(VALUE(ASC(L13&N12))=VALUE(ASC(AR8&AT7)),\"○\",\"×\"))","v":"×"},{"$f":"IF(COUNTIF(DE33:DE34,\"○\")=2,\"○\",\"×\")","v":"×"}]
[null,null,null,null,null,null,null,null,null,null,null,null,null,null,null,null,null,null,null,null,null,null,null,null,null,null,null,null,null,{"$f":"IF(AK20/GCD(AC19,AK20)=1,\"\",AK20/GCD(AC19,AK20))","v":3},null,null,null,null,null,null,null,null,null,null,null,null,null,null,null,null,null,null,null,null,null,null,null,null,null,null,null,null,null,null,null,null,null,null,null,null,null,null,null,null,null,null,null,null,null,null,null,null,null,null,null,null,null,null,null,null,null,null,null,null,null,null,null,null,null,null,null,null,null,null,null,null,null,null,null,null,null,null,{"$f":"IF(AT9=N14,\"○\",\"×\")","v":"×"}]

{"sheet":"８　分数÷整数","index":7,"n_rows":34,"n_cols":113,"rows_kept":34,"cut":false,"hidden":false,"merged":[[0,33,4,68],[1,4,2,6],[1,7,2,25],[5,42,5,50],[6,2,6,5],[6,13,7,15],[6,32,6,39],[6,43,6,44],[6,45,7,49],[7,2,8,5],[7,51,8,61],[8,13,9,15],[8,45,9,49],[7,9,8,10],[7,11,8,12],[7,24,8,26],[7,29,8,30],[7,32,8,39],[7,43,8,44],[10,43,10,49],[11,5,12,8],[11,13,12,16],[7,16,8,17],[7,18,8,19],[7,20,8,21],[7,22,8,23],[7,27,8,28],[11,57,20,69],[12,11,13,12],[13,13,14,16],[15,11,15,16],[15,21,15,26],[15,29,15,34],[18,55,19,55],[18,34,19,34],[18,35,19,35],[18,39,19,39],[18,41,19,41],[18,19,19,19],[18,23,19,23],[18,24,19,25],[18,26,19,26],[18,27,19,27],[17,5,18,8],[17,12,18,14],[17,28,18,30],[17,52,18,54],[18,10,19,10],[18,11,19,11],[18,20,19,22],[18,15,19,15],[18,16,19,17],[18,18,19,18],[18,45,19,51],[19,12,20,14],[19,28,20,30],[19,52,20,54],[18,31,19,31],[18,32,19,33],[21,57,26,69],[22,29,23,38],[22,41,25,53],[23,24,24,25],[23,27,24,28],[24,29,25,38],[29,109,30,109],[31,29,32,31],[32,24,33,25],[32,27,33,28],[32,32,33,38],[32,109,33,109],[33,29,34,31],[17,36,18,38],[18,42,19,44],[27,29,28,38],[28,24,29,25],[28,27,29,28],[29,29,30,38],[19,36,20,38]]}
[null,null,null,null,null,null,null,null,null,null,null,null,null,null,null,null,null,null,null,null,null,null,null,null,null,null,null,null,null,null,null,null,null,"問題は２０題。約分できるものは約分して答えること。\n答えが整数か分数かで、解答の入力場所が違います。"]
[null,null,null,null,8,null,null,"分数÷整数"]
[]
[]
[null,null,null,null,null,null,null,null,null,null,null,null,null,null,null,null,null,null,null,null,null,null,null,null,null,null,null,null,null,null,null,null,null,null,null,null,null,null,null,null,null,null,null,null,null,null,null,null,null,null,null,null,null,null,null,null,null,null,null,null,null,null,null,null,null,null,null,null,null,null,null,null,null,null,null,null,null,null,null,null,null,null,null,null,null,null,null,null,null,null,null,null,null,null,null,null,null,null,null,null,null,null,null,null,null,null,null,null,{"$f":"MOD(DAY(TODAY()),2)","v":1},{"$f":"MOD(DAY(TODAY()),3)","v":0},{"$f":"MOD(DAY(TODAY()),4)","v":1},{"$f":"MOD(DAY(TODAY()),5)","v":4},{"$f":"MOD(DAY(TODAY()),6)","v":3}]
[null,null,null,null,null,null,null,null,null,null,null,null,null,null,null,null,null,null,null,null,null,null,null,null,null,null,null,null,null,null,null,null,null,null,null,null,null,null,null,null,null,null,"答えが分数の時",null,null,null,null,null,null,null,null,null,null,null,null,null,null,null,null,null,null,null,null,null,null,null,null,null,null,null,null,null,null,null,null,null,null,null,null,null,null,null,null,null,null,null,null,null,null,null,null,null,null,null,null,null,null,null,null,null,null,null,null,null,null,null,null,null,{"$f":"2*DE5+1","v":3},{"$f":"2*DF5+1","v":1},3,9,7]
[null,null,"問題番号",null,null,null,null,null,null,null,null,null,null,{"$f":"VLOOKUP($C$8,$DD$8:$DJ$27,3,0)","v":3},null,null,null,null,null,null,null,null,null,null,null,null,null,null,null,null,null,null,"答えが整数の時"]
[null,null,1,null,null,null,null,null,null,"（",null,{"$f":"VLOOKUP($C$8,$DD$8:$DJ$27,2,0)","v":"+"},null,null,null,null,"）",null,"÷",null,"（",null,{"$f":"VLOOKUP($C$8,$DD$8:$DJ$27,5,0)","v":"+"},null,{"$f":"VLOOKUP($C$8,$DD$8:$DJ$27,6,0)","v":2},null,null,"）",null,"＝",null,null,null,null,null,null,null,null,null,null,null,null,null,null,null,null,null,null,null,null,null,"←符号は選んで！",null,null,null,null,null,null,null,null,null,null,null,null,null,null,null,null,null,null,null,null,null,null,null,null,null,null,null,null,null,null,null,null,null,null,null,null,null,null,null,null,null,null,null,null,null,null,null,null,null,null,null,null,null,null,null,1,"+",{"$f":"$DE$6","v":3},4,"+",2]
[null,null,null,null,null,null,null,null,null,null,null,null,null,{"$f":"VLOOKUP($C$8,$DD$8:$DJ$27,4,0)","v":4},null,null,null,null,null,null,null,null,null,null,null,null,null,null,null,null,null,null,null,null,null,null,null,null,null,null,null,null,null,null,null,null,null,null,null,null,null,null,null,null,null,null,null,null,null,null,null,null,null,null,null,null,null,null,null,null,null,null,null,null,null,null,null,null,null,null,null,null,null,null,null,null,null,null,null,null,null,null,null,null,null,null,null,null,null,null,null,null,null,null,null,null,null,2,"+",{"$f":"$DF$5*3+2","v":2},3,"-",{"$f":"6*$DE$5+1","v":7}]
[null,null,null,null,null,null,null,null,null,null,null,null,null,null,null,null,null,null,null,null,null,null,null,null,null,null,null,null,null,null,null,null,null,null,null,null,null,null,null,null,null,null,null,null,null,null,null,null,null,null,null,null,null,null,null,null,null,null,null,null,null,null,null,null,null,null,null,null,null,null,null,null,null,null,null,null,null,null,null,null,null,null,null,null,null,null,null,null,null,null,null,null,null,null,null,null,null,null,null,null,null,null,null,null,null,null,null,3,"-",{"$f":"$DE$6+4","v":7},6,"+",{"$f":"$DF$6+5","v":6}]
[null,null,null,null,null,null,null,null,null,null,null,null,null,null,null,null,null,null,null,null,null,null,null,null,null,null,null,null,null,null,null,null,null,null,null,null,null,null,null,null,null,null,null,null,null,null,null,null,null,null,null,null,null,null,null,null,null,null,null,null,null,null,null,null,null,null,null,null,null,null,null,null,null,null,null,null,null,null,null,null,null,null,null,null,null,null,null,null,null,null,null,null,null,null,null,null,null,null,null,null,null,null,null,null,null,null,null,4,"-",{"$f":"$DH$6","v":9},8,"-",{"$f":"$DG$6+2","v":5}]
[null,null,null,null,null,"正解",null,null,null,null,null,null,null,{"$f":"IF(AD32=\"\",AG33,AD32)","v":3},null,null,null,null,null,null,null,null,null,null,null,null,null,null,null,null,null,null,null,null,null,null,null,null,null,null,null,null,null,null,null,null,null,null,null,null,null,null,null,null,null,null,null,{"$f":"IF(COUNTIF(DF30:DF34,\"○\")=2,\"○\",\"×\")","v":"×"},null,null,null,null,null,null,null,null,null,null,null,null,null,null,null,null,null,null,null,null,null,null,null,null,null,null,null,null,null,null,null,null,null,null,null,null,null,null,null,null,null,null,null,null,null,null,null,null,null,5,"-",{"$f":"5-$DE$5","v":4},3,"+",{"$f":"$DE$5+1","v":2}]
[null,null,null,null,null,null,null,null,null,null,null,{"$f":"IF(AD32=\"\",\"\",AB33)","v":""},null,null,null,null,null,null,null,null,null,null,null,null,null,null,null,null,null,null,null,null,null,null,null,null,null,null,null,null,null,null,null,null,null,null,null,null,null,null,null,null,null,null,null,null,null,null,null,null,null,null,null,null,null,null,null,null,null,null,null,null,null,null,null,null,null,null,null,null,null,null,null,null,null,null,null,null,null,null,null,null,null,null,null,null,null,null,null,null,null,null,null,null,null,null,null,6,"+",{"$f":"5*$DG$5+1","v":6},5,"-",{"$f":"$DG$6+1","v":4}]
[null,null,null,null,null,null,null,null,null,null,null,null,null,{"$f":"IF(AD34=\"\",\"\",AD34)","v":8},null,null,null,null,null,null,null,null,null,null,null,null,null,null,null,null,null,null,null,null,null,null,null,null,null,null,null,null,null,null,null,null,null,null,null,null,null,null,null,null,null,null,null,null,null,null,null,null,null,null,null,null,null,null,null,null,null,null,null,null,null,null,null,null,null,null,null,null,null,null,null,null,null,null,null,null,null,null,null,null,null,null,null,null,null,null,null,null,null,null,null,null,null,7,"+",{"$f":"3*$DG$5+1","v":4},3,"+",{"$f":"$DF$6*2","v":2}]
[null,null,null,null,null,null,null,null,null,null,null,null,null,null,null,null,null,null,null,null,null,null,null,null,null,null,null,null,null,null,null,null,null,null,null,null,null,null,null,null,null,null,null,null,null,null,null,null,null,null,null,null,null,null,null,null,null,null,null,null,null,null,null,null,null,null,null,null,null,null,null,null,null,null,null,null,null,null,null,null,null,null,null,null,null,null,null,null,null,null,null,null,null,null,null,null,null,null,null,null,null,null,null,null,null,null,null,8,"+",{"$f":"$DH$6","v":9},4,"-",{"$f":"$DE$5+4","v":5}]
[null,null,null,null,null,null,null,null,null,null,null,{"$f":"IF(N14<>\"\",\"―――――\",\"\")","v":"―――――"},null,null,null,null,null,null,null,null,null,null,null,null,null,null,null,null,null,null,null,null,null,null,null,null,null,null,null,null,null,null,null,null,null,null,null,null,null,null,null,null,null,null,null,null,null,null,null,null,null,null,null,null,null,null,null,null,null,null,null,null,null,null,null,null,null,null,null,null,null,null,null,null,null,null,null,null,null,null,null,null,null,null,null,null,null,null,null,null,null,null,null,null,null,null,null,9,"-",{"$f":"2*($DF$5+1)","v":2},5,"+",{"$f":"$DG$6+3","v":6}]
[null,null,null,null,null,null,null,null,null,null,null,null,null,null,null,null,null,null,null,null,null,null,null,null,null,null,null,null,null,null,null,null,null,null,null,null,null,null,null,null,null,null,null,null,null,null,null,null,null,null,null,null,null,null,null,null,null,null,null,null,null,null,null,null,null,null,null,null,null,null,null,null,null,null,null,null,null,null,null,null,null,null,null,null,null,null,null,null,null,null,null,null,null,null,null,null,null,null,null,null,null,null,null,null,null,null,null,10,"-",{"$f":"$DG$5+1","v":2},5,"-",{"$f":"3*$DF$5+1","v":1}]
[null,null,null,null,null,"解説",null,null,null,null,null,null,{"$f":"N7","v":3},null,null,null,null,null,null,null,null,null,null,null,null,null,null,null,{"$f":"M18","v":3},null,null,null,null,null,null,null,1,null,null,null,null,null,null,null,null,null,null,null,null,null,null,null,1,null,null,null,null,null,null,null,null,null,null,null,null,null,null,null,null,null,null,null,null,null,null,null,null,null,null,null,null,null,null,null,null,null,null,null,null,null,null,null,null,null,null,null,null,null,null,null,null,null,null,null,null,null,null,11,"-",{"$f":"$DG$6+2","v":5},4,"+",{"$f":"$DE$6+4","v":7}]
[null,null,null,null,null,null,null,null,null,null,"（",{"$f":"L8","v":"+"},null,null,null,")","÷",null,"（",{"$f":"W8","v":"+"},{"$f":"Y8","v":2},null,null,")","=",null,"（",{"$f":"L19","v":"+"},null,null,null,")","×",null,"（",{"$f":"T19","v":"+"},null,null,null,")",null,"[",{"$f":"U19","v":2},null,null,"の逆数は",null,null,null,null,null,null,null,null,null,"]",null,null,null,null,null,null,null,null,null,null,null,null,null,null,null,null,null,null,null,null,null,null,null,null,null,null,null,null,null,null,null,null,null,null,null,null,null,null,null,null,null,null,null,null,null,null,null,null,null,null,null,12,"+",{"$f":"3*$DF$5+1","v":1},3,"-",{"$f":"($DE$5+1)*($DG$5+1)","v":4}]
[null,null,null,null,null,null,null,null,null,null,null,null,{"$f":"N9","v":4},null,null,null,null,null,null,null,null,null,null,null,null,null,null,null,{"$f":"M20","v":4},null,null,null,null,null,null,null,{"$f":"U19","v":2},null,null,null,null,null,null,null,null,null,null,null,null,null,null,null,{"$f":"AQ19","v":2},null,null,null,null,null,null,null,null,null,null,null,null,null,null,null,null,null,null,null,null,null,null,null,null,null,null,null,null,null,null,null,null,null,null,null,null,null,null,null,null,null,null,null,null,null,null,null,null,null,null,null,null,null,null,13,"+",{"$f":"$DE$6","v":3},5,"+",{"$f":"$DF$6*3","v":3}]
[null,null,null,null,null,null,null,null,null,null,null,null,null,null,null,null,null,null,null,null,null,null,null,null,null,null,null,null,null,null,null,null,null,null,null,null,null,null,null,null,null,null,null,null,null,null,null,null,null,null,null,null,null,null,null,null,null,null,null,null,null,null,null,null,null,null,null,null,null,null,null,null,null,null,null,null,null,null,null,null,null,null,null,null,null,null,null,null,null,null,null,null,null,null,null,null,null,null,null,null,null,null,null,null,null,null,null,14,"+",{"$f":"$DF$6","v":1},7,"-",{"$f":"4*$DE$5+1","v":5}]
[null,null,null,null,null,null,null,null,null,null,null,null,null,null,null,null,null,null,null,null,null,null,null,null,null,null,null,null,null,null,null,null,null,null,null,null,null,null,null,null,null,null,null,null,null,null,null,null,null,null,null,null,null,null,null,null,null,{"$f":"IF(BF12=\"○\",\"正解！\",\"残念！\")","v":"残念！"},null,null,null,null,null,null,null,null,null,null,null,null,null,null,null,null,null,null,null,null,null,null,null,null,null,null,null,null,null,null,null,null,null,null,null,null,null,null,null,null,null,null,null,null,null,null,null,null,null,15,"-",{"$f":"$DG$6+1","v":4},5,"+",{"$f":"2*$DE$6+3","v":9}]
[null,null,null,null,null,null,null,null,null,null,null,null,null,null,null,null,null,null,null,null,null,null,null,null,null,null,null,null,null,{"$f":"AC18&AG19&AK18","v":"3×1"},null,null,null,null,null,null,null,null,null,null,null,{"$f":"IF(GCD(AK20,AC18)=1,\"\",\"⇒｢\"&AC18&\"｣と｢\"&AK20&\"｣を『\"&GCD(AK20,AC18)&\"』で約分\")","v":""},null,null,null,null,null,null,null,null,null,null,null,null,null,null,null,null,null,null,null,null,null,null,null,null,null,null,null,null,null,null,null,null,null,null,null,null,null,null,null,null,null,null,null,null,null,null,null,null,null,null,null,null,null,null,null,null,null,null,null,null,null,null,null,null,null,16,"-",{"$f":"$DE$6+4","v":7},6,"-",{"$f":"4*$DF$5+1","v":1}]
[null,null,null,null,null,null,null,null,null,null,null,null,null,null,null,null,null,null,null,null,null,null,null,null,"=",null,null,{"$f":"IF(L8=W8,\"\",\"-\")","v":""},null,null,null,null,null,null,null,null,null,null,null,null,null,null,null,null,null,null,null,null,null,null,null,null,null,null,null,null,null,null,null,null,null,null,null,null,null,null,null,null,null,null,null,null,null,null,null,null,null,null,null,null,null,null,null,null,null,null,null,null,null,null,null,null,null,null,null,null,null,null,null,null,null,null,null,null,null,null,null,17,"+",{"$f":"$DG$6+2","v":5},4,"-",{"$f":"4*$DE$6-1","v":11}]
[null,null,null,null,null,null,null,null,null,null,null,null,null,null,null,null,null,null,null,null,null,null,null,null,null,null,null,null,null,{"$f":"AC20&AG19&AK20","v":"4×2"},null,null,null,null,null,null,null,null,null,null,null,null,null,null,null,null,null,null,null,null,null,null,null,null,null,null,null,null,null,null,null,null,null,null,null,null,null,null,null,null,null,null,null,null,null,null,null,null,null,null,null,null,null,null,null,null,null,null,null,null,null,null,null,null,null,null,null,null,null,null,null,null,null,null,null,null,null,18,"-",{"$f":"3*$DE$6+1","v":10},9,"+",{"$f":"$DE$6+4","v":7}]
[null,null,null,null,null,null,null,null,null,null,null,null,null,null,null,null,null,null,null,null,null,null,null,null,null,null,null,null,null,null,null,null,null,null,null,null,null,null,null,null,null,null,null,null,null,null,null,null,null,null,null,null,null,null,null,null,null,null,null,null,null,null,null,null,null,null,null,null,null,null,null,null,null,null,null,null,null,null,null,null,null,null,null,null,null,null,null,null,null,null,null,null,null,null,null,null,null,null,null,null,null,null,null,null,null,null,null,19,"-",{"$f":"6*$DF$5+1","v":1},6,"+",{"$f":"$DE$6*$DF$6","v":3}]
[null,null,null,null,null,null,null,null,null,null,null,null,null,null,null,null,null,null,null,null,null,null,null,null,null,null,null,null,null,null,null,null,null,null,null,null,null,null,null,null,null,null,null,null,null,null,null,null,null,null,null,null,null,null,null,null,null,null,null,null,null,null,null,null,null,null,null,null,null,null,null,null,null,null,null,null,null,null,null,null,null,null,null,null,null,null,null,null,null,null,null,null,null,null,null,null,null,null,null,null,null,null,null,null,null,null,null,20,"-",{"$f":"$DF$6+6","v":7},10,"-",{"$f":"$DF$6*$DG$6","v":3}]
[null,null,null,null,null,null,null,null,null,null,null,null,null,null,null,null,null,null,null,null,null,null,null,null,null,null,null,null,null,{"$f":"IF(GCD(AC18,AK20)>1,AC18/GCD(AC18,AK20)&\"×\"&AK18,\"\")","v":""}]
[null,null,null,null,null,null,null,null,null,null,null,null,null,null,null,null,null,null,null,null,null,null,null,null,{"$f":"IF(GCD(AK20,AC18)>1,\"=\",\"\")","v":""},null,null,{"$f":"IF(GCD(AC18,AK20)>1,AB24,\"\")","v":""}]
[null,null,null,null,null,null,null,null,null,null,null,null,null,null,null,null,null,null,null,null,null,null,null,null,null,null,null,null,null,{"$f":"IF(GCD(AK20,AC18)>1,AC20&AG19&AK20/GCD(AC18,AK20),\"\")","v":""},null,null,null,null,null,null,null,null,null,null,null,null,null,null,null,null,null,null,null,null,null,null,null,null,null,null,null,null,null,null,null,null,null,null,null,null,null,null,null,null,null,null,null,null,null,null,null,null,null,null,null,null,null,null,null,null,null,null,null,null,null,null,null,null,null,null,null,null,null,null,null,null,null,null,null,null,null,null,{"$f":"IF(COUNTA(AQ7:AY10)=0,\"×\",\"○\")","v":"×"},{"$f":"IF(COUNTIF(DE30:DE31,\"○\")=1,\"○\",\"×\")","v":"×"},null,"-"]
[null,null,null,null,null,null,null,null,null,null,null,null,null,null,null,null,null,null,null,null,null,null,null,null,null,null,null,null,null,null,null,null,null,null,null,null,null,null,null,null,null,null,null,null,null,null,null,null,null,null,null,null,null,null,null,null,null,null,null,null,null,null,null,null,null,null,null,null,null,null,null,null,null,null,null,null,null,null,null,null,null,null,null,null,null,null,null,null,null,null,null,null,null,null,null,null,null,null,null,null,null,null,null,null,null,null,null,null,{"$f":"IF(COUNTA(AG8)=0,\"×\",\"○\")","v":"×"}]
[null,null,null,null,null,null,null,null,null,null,null,null,null,null,null,null,null,null,null,null,null,null,null,null,null,null,null,null,null,{"$f":"IF(MOD(AC18*AK18,AC20*AK20)=0,\"\",AK18*AC18/GCD(AC18,AK20))","v":3},null,null,null,null,null,null,null,null,null,null,null,null,null,null,null,null,null,null,null,null,null,null,null,null,null,null,null,null,null,null,null,null,null,null,null,null,null,null,null,null,null,null,null,null,null,null,null,null,null,null,null,null,null,null,null,null,null,null,null,null,null,null,null,null,null,null,null,null,null,null,null,null,null,null,null,null,null,null,{"$f":"IF(AG8=\"\",\"×\",IF(N14=\"\",IF(AG8=N12,\"○\",\"×\"),\"×\"))","v":"×"},{"$f":"DE32","v":"×"}]
[null,null,null,null,null,null,null,null,null,null,null,null,null,null,null,null,null,null,null,null,null,null,null,null,"=",null,null,{"$f":"IF(AG33=\"\",AB24,\"\")","v":""},null,null,null,null,{"$f":"IF(MOD(AC18*AK18,AC20*AK20)=0,VALUE(ASC(AB24&(AC18*AK18/AC20/AK20))),\"\")","v":""},null,null,null,null,null,null,null,null,null,null,null,null,null,null,null,null,null,null,null,null,null,null,null,null,null,null,null,null,null,null,null,null,null,null,null,null,null,null,null,null,null,null,null,null,null,null,null,null,null,null,null,null,null,null,null,null,null,null,null,null,null,null,null,null,null,null,null,null,null,null,null,null,null,null,null,{"$f":"IF(AT7=\"\",\"×\",IF(VALUE(ASC(L13&N12))=VALUE(ASC(AR8&AT7)),\"○\",\"×\"))","v":"×"},{"$f":"IF(COUNTIF(DE33:DE34,\"○\")=2,\"○\",\"×\")","v":"×"}]
[null,null,null,null,null,null,null,null,null,null,null,null,null,null,null,null,null,null,null,null,null,null,null,null,null,null,null,null,null,{"$f":"IF(MOD(AC18*AK18,AC20*AK20)=0,\"\",AC20*AK20/GCD(AC18,AK20))","v":8},null,null,null,null,null,null,null,null,null,null,null,null,null,null,null,null,null,null,null,null,null,null,null,null,null,null,null,null,null,null,null,null,null,null,null,null,null,null,null,null,null,null,null,null,null,null,null,null,null,null,null,null,null,null,null,null,null,null,null,null,null,null,null,null,null,null,null,null,null,null,null,null,null,null,null,null,null,null,{"$f":"IF(AT9=N14,\"○\",\"×\")","v":"×"}]

{"sheet":"９　分数÷分数","index":8,"n_rows":34,"n_cols":114,"rows_kept":34,"cut":false,"hidden":false,"merged":[[0,33,4,68],[1,4,2,6],[1,7,2,25],[5,42,5,50],[6,2,6,5],[6,13,7,15],[6,24,7,26],[6,32,6,39],[6,43,6,44],[6,45,7,49],[7,51,8,61],[8,24,9,26],[8,45,9,49],[7,2,8,5],[7,9,8,10],[7,11,8,12],[7,27,8,28],[7,29,8,30],[7,32,8,39],[7,43,8,44],[11,5,12,8],[11,13,12,16],[11,20,12,45],[7,16,8,17],[7,18,8,19],[7,20,8,21],[8,13,9,15],[7,22,8,23],[11,57,20,69],[12,11,13,12],[13,13,14,16],[15,11,15,16],[17,5,18,8],[18,10,19,10],[18,11,19,11],[18,15,19,15],[18,16,19,17],[18,18,19,18],[18,19,19,19],[32,109,33,109],[17,20,18,22],[17,36,18,38],[17,42,18,44],[17,52,18,54],[29,109,30,109],[27,29,28,38],[29,29,30,38],[21,57,26,69],[24,29,25,38],[18,45,19,51],[18,23,19,23],[18,24,19,25],[18,26,19,26],[18,27,19,27],[18,31,19,31],[22,41,23,55],[24,41,25,55],[18,55,19,55],[19,20,20,22],[19,36,20,38],[19,42,20,44],[19,52,20,54],[23,24,24,25],[17,28,18,30],[19,28,20,30],[22,29,23,38],[18,32,19,33],[18,34,19,34],[18,35,19,35],[18,39,19,39],[18,41,19,41],[31,29,32,31],[32,32,33,38],[33,29,34,31],[17,12,18,14],[19,12,20,14],[32,27,33,28],[28,24,29,25],[32,24,33,25],[28,27,29,28],[23,27,24,28]]}
[null,null,null,null,null,null,null,null,null,null,null,null,null,null,null,null,null,null,null,null,null,null,null,null,null,null,null,null,null,null,null,null,null,"問題は２０題。約分できるものは約分して答えること。\n答えが整数か分数かで、解答の入力場所が違います。"]
[null,null,null,null,9,null,null,"分数÷分数"]
[]
[]
[null,null,null,null,null,null,null,null,null,null,null,null,null,null,null,null,null,null,null,null,null,null,null,null,null,null,null,null,null,null,null,null,null,null,null,null,null,null,null,null,null,null,null,null,null,null,null,null,null,null,null,null,null,null,null,null,null,null,null,null,null,null,null,null,null,null,null,null,null,null,null,null,null,null,null,null,null,null,null,null,null,null,null,null,null,null,null,null,null,null,null,null,null,null,null,null,null,null,null,null,null,null,null,null,null,null,null,null,{"$f":"MOD(DAY(TODAY()),2)","v":1},{"$f":"MOD(DAY(TODAY()),3)","v":0},{"$f":"MOD(DAY(TODAY()),4)","v":1},{"$f":"MOD(DAY(TODAY()),5)","v":4},{"$f":"MOD(DAY(TODAY()),6)","v":3}]
[null,null,null,null,null,null,null,null,null,null,null,null,null,null,null,null,null,null,null,null,null,null,null,null,null,null,null,null,null,null,null,null,null,null,null,null,null,null,null,null,null,null,"答えが分数の時",null,null,null,null,null,null,null,null,null,null,null,null,null,null,null,null,null,null,null,null,null,null,null,null,null,null,null,null,null,null,null,null,null,null,null,null,null,null,null,null,null,null,null,null,null,null,null,null,null,null,null,null,null,null,null,null,null,null,null,null,null,null,null,null,null,{"$f":"2*DE5+1","v":3},{"$f":"2*DF5+1","v":1},3,9,7]
[null,null,null,null,null,null,null,null,null,null,null,null,null,{"$f":"VLOOKUP($C$8,$DD$8:$DJ$27,3,0)","v":2},null,null,null,null,null,null,null,null,null,null,{"$f":"VLOOKUP($C$8,$DD$8:$DJ$27,6,0)","v":1},null,null,null,null,null,null,null,"答えが整数の時",null,null,null,null,null,null,null,null,null,null,null,null,null,null,null,null,null,null,null,null,null,null,null,null,null,null,null,null,null,null,null,null,null,null,null,null,null,null,null,null,null,null,null,null,null,null,null,null,null,null,null,null,null,null,null,null,null,null,null,null,null,null,null,null,null,null,null,null,null,null,null,null,null,null,null,null,null,"母",null,null,"母"]
[null,null,1,null,null,null,null,null,null,"（",null,{"$f":"VLOOKUP($C$8,$DD$8:$DJ$27,2,0)","v":"+"},null,null,null,null,"）",null,"÷",null,"（",null,{"$f":"VLOOKUP($C$8,$DD$8:$DJ$27,5,0)","v":"+"},null,null,null,null,"）",null,"＝",null,null,null,null,null,null,null,null,null,null,null,null,null,null,null,null,null,null,null,null,null,"←符号は選んで！",null,null,null,null,null,null,null,null,null,null,null,null,null,null,null,null,null,null,null,null,null,null,null,null,null,null,null,null,null,null,null,null,null,null,null,null,null,null,null,null,null,null,null,null,null,null,null,null,null,null,null,null,null,null,null,1,"+",2,3,"+",{"$f":"DF6","v":1},4]
[null,null,null,null,null,null,null,null,null,null,null,null,null,{"$f":"VLOOKUP($C$8,$DD$8:$DJ$27,4,0)","v":3},null,null,null,null,null,null,null,null,null,null,{"$f":"VLOOKUP($C$8,$DD$8:$DJ$27,7,0)","v":4},null,null,null,null,null,null,null,null,null,null,null,null,null,null,null,null,null,null,null,null,null,null,null,null,null,null,null,null,null,null,null,null,null,null,null,null,null,null,null,null,null,null,null,null,null,null,null,null,null,null,null,null,null,null,null,null,null,null,null,null,null,null,null,null,null,null,null,null,null,null,null,null,null,null,null,null,null,null,null,null,null,null,2,"+",{"$f":"6*$DE$5+1","v":7},6,"-",{"$f":"$DF$5*3+2","v":2},3]
[null,null,null,null,null,null,null,null,null,null,null,null,null,null,null,null,null,null,null,null,null,null,null,null,null,null,null,null,null,null,null,null,null,null,null,null,null,null,null,null,null,null,null,null,null,null,null,null,null,null,null,null,null,null,null,null,null,null,null,null,null,null,null,null,null,null,null,null,null,null,null,null,null,null,null,null,null,null,null,null,null,null,null,null,null,null,null,null,null,null,null,null,null,null,null,null,null,null,null,null,null,null,null,null,null,null,null,3,"-",{"$f":"$DF$6","v":1},2,"+",{"$f":"$DE$6+4","v":7},6]
[null,null,null,null,null,null,null,null,null,null,null,null,null,null,null,null,null,null,null,null,null,null,null,null,null,null,null,null,null,null,null,null,null,null,null,null,null,null,null,null,null,null,null,null,null,null,null,null,null,null,null,null,null,null,null,null,null,null,null,null,null,null,null,null,null,null,null,null,null,null,null,null,null,null,null,null,null,null,null,null,null,null,null,null,null,null,null,null,null,null,null,null,null,null,null,null,null,null,null,null,null,null,null,null,null,null,null,4,"-",{"$f":"8-$DG$6","v":5},2,"-",{"$f":"$DH$6","v":9},8]
[null,null,null,null,null,"正解",null,null,null,null,null,null,null,{"$f":"IF(AG33=\"\",AD32,AG33)","v":8},null,null,null,null,null,null,null,null,null,null,null,null,null,null,null,null,null,null,null,null,null,null,null,null,null,null,null,null,null,null,null,null,null,null,null,null,null,null,null,null,null,null,null,{"$f":"IF(COUNTIF(DF30:DF34,\"○\")=2,\"○\",\"×\")","v":"×"},null,null,null,null,null,null,null,null,null,null,null,null,null,null,null,null,null,null,null,null,null,null,null,null,null,null,null,null,null,null,null,null,null,null,null,null,null,null,null,null,null,null,null,null,null,null,null,null,null,5,"+",{"$f":"$DE$5+1","v":2},9,"-",{"$f":"5-$DE$5","v":4},3]
[null,null,null,null,null,null,null,null,null,null,null,{"$f":"IF(AG33=\"\",AB33,\"\")","v":""},null,null,null,null,null,null,null,null,null,null,null,null,null,null,null,null,null,null,null,null,null,null,null,null,null,null,null,null,null,null,null,null,null,null,null,null,null,null,null,null,null,null,null,null,null,null,null,null,null,null,null,null,null,null,null,null,null,null,null,null,null,null,null,null,null,null,null,null,null,null,null,null,null,null,null,null,null,null,null,null,null,null,null,null,null,null,null,null,null,null,null,null,null,null,null,6,"-",{"$f":"$DG$6+6","v":9},10,"+",{"$f":"4-$DG$5","v":3},5]
[null,null,null,null,null,null,null,null,null,null,null,null,null,{"$f":"IF(AG33=\"\",AD34,\"\")","v":3},null,null,null,null,null,null,null,null,null,null,null,null,null,null,null,null,null,null,null,null,null,null,null,null,null,null,null,null,null,null,null,null,null,null,null,null,null,null,null,null,null,null,null,null,null,null,null,null,null,null,null,null,null,null,null,null,null,null,null,null,null,null,null,null,null,null,null,null,null,null,null,null,null,null,null,null,null,null,null,null,null,null,null,null,null,null,null,null,null,null,null,null,null,7,"+",{"$f":"$DF$6","v":1},2,"+",{"$f":"3*$DF$5+$DE$6+1","v":4},3]
[null,null,null,null,null,null,null,null,null,null,null,null,null,null,null,null,null,null,null,null,null,null,null,null,null,null,null,null,null,null,null,null,null,null,null,null,null,null,null,null,null,null,null,null,null,null,null,null,null,null,null,null,null,null,null,null,null,null,null,null,null,null,null,null,null,null,null,null,null,null,null,null,null,null,null,null,null,null,null,null,null,null,null,null,null,null,null,null,null,null,null,null,null,null,null,null,null,null,null,null,null,null,null,null,null,null,null,8,"+",{"$f":"$DE$5+4","v":5},3,"-",{"$f":"$DG$6","v":3},4]
[null,null,null,null,null,null,null,null,null,null,null,{"$f":"IF(AG33=\"\",\"―――――\",\"\")","v":"―――――"},null,null,null,null,null,null,null,null,null,null,null,null,null,null,null,null,null,null,null,null,null,null,null,null,null,null,null,null,null,null,null,null,null,null,null,null,null,null,null,null,null,null,null,null,null,null,null,null,null,null,null,null,null,null,null,null,null,null,null,null,null,null,null,null,null,null,null,null,null,null,null,null,null,null,null,null,null,null,null,null,null,null,null,null,null,null,null,null,null,null,null,null,null,null,null,9,"-",{"$f":"$DG$6","v":3},2,"+",{"$f":"2*($DF$5+1)","v":2},5]
[null,null,null,null,null,null,null,null,null,null,null,null,null,null,null,null,null,null,null,null,null,null,null,null,null,null,null,null,null,null,null,null,null,null,null,null,null,null,null,null,null,null,null,null,null,null,null,null,null,null,null,null,null,null,null,null,null,null,null,null,null,null,null,null,null,null,null,null,null,null,null,null,null,null,null,null,null,null,null,null,null,null,null,null,null,null,null,null,null,null,null,null,null,null,null,null,null,null,null,null,null,null,null,null,null,null,null,10,"-",{"$f":"3*$DE$5+1","v":4},3,"-",{"$f":"$DG$5+1","v":2},5]
[null,null,null,null,null,"解説",null,null,null,null,null,null,{"$f":"N7","v":2},null,null,null,null,null,null,null,{"$f":"Y7","v":1},null,null,null,null,null,null,null,{"$f":"M18","v":2},null,null,null,null,null,null,null,{"$f":"U20","v":4},null,null,null,null,null,{"$f":"U18","v":1},null,null,null,null,null,null,null,null,null,{"$f":"AK18","v":4},null,null,null,null,null,null,null,null,null,null,null,null,null,null,null,null,null,null,null,null,null,null,null,null,null,null,null,null,null,null,null,null,null,null,null,null,null,null,null,null,null,null,null,null,null,null,null,null,null,null,null,null,null,null,11,"+",{"$f":"DE6","v":3},2,"-",{"$f":"DH5","v":4},7]
[null,null,null,null,null,null,null,null,null,null,"（",{"$f":"L8","v":"+"},null,null,null,")","÷",null,"（",{"$f":"W8","v":"+"},null,null,null,")","=",null,"（",{"$f":"L19","v":"+"},null,null,null,")","×",null,"（",{"$f":"T19","v":"+"},null,null,null,")",null,"[",null,null,null,"の逆数は",null,null,null,null,null,null,null,null,null,"]",null,null,null,null,null,null,null,null,null,null,null,null,null,null,null,null,null,null,null,null,null,null,null,null,null,null,null,null,null,null,null,null,null,null,null,null,null,null,null,null,null,null,null,null,null,null,null,null,null,null,null,12,"-",{"$f":"(DE5+1)*(DG5+1)","v":4},7,"+",{"$f":"3*DE5+1","v":4},3]
[null,null,null,null,null,null,null,null,null,null,null,null,{"$f":"N9","v":3},null,null,null,null,null,null,null,{"$f":"Y9","v":4},null,null,null,null,null,null,null,{"$f":"M20","v":3},null,null,null,null,null,null,null,{"$f":"U18","v":1},null,null,null,null,null,{"$f":"U20","v":4},null,null,null,null,null,null,null,null,null,{"$f":"AK20","v":1},null,null,null,null,null,null,null,null,null,null,null,null,null,null,null,null,null,null,null,null,null,null,null,null,null,null,null,null,null,null,null,null,null,null,null,null,null,null,null,null,null,null,null,null,null,null,null,null,null,null,null,null,null,null,13,"+",{"$f":"$DF$6","v":1},4,"+",{"$f":"$DE$6","v":3},5]
[null,null,null,null,null,null,null,null,null,null,null,null,null,null,null,null,null,null,null,null,null,null,null,null,null,null,null,null,null,null,null,null,null,null,null,null,null,null,null,null,null,null,null,null,null,null,null,null,null,null,null,null,null,null,null,null,null,null,null,null,null,null,null,null,null,null,null,null,null,null,null,null,null,null,null,null,null,null,null,null,null,null,null,null,null,null,null,null,null,null,null,null,null,null,null,null,null,null,null,null,null,null,null,null,null,null,null,14,"+",{"$f":"4*$DE$5+1","v":5},4,"-",{"$f":"$DF$6","v":1},7]
[null,null,null,null,null,null,null,null,null,null,null,null,null,null,null,null,null,null,null,null,null,null,null,null,null,null,null,null,null,null,null,null,null,null,null,null,null,null,null,null,null,null,null,null,null,null,null,null,null,null,null,null,null,null,null,null,null,{"$f":"IF(BF12=\"○\",\"正解！\",\"残念！\")","v":"残念！"},null,null,null,null,null,null,null,null,null,null,null,null,null,null,null,null,null,null,null,null,null,null,null,null,null,null,null,null,null,null,null,null,null,null,null,null,null,null,null,null,null,null,null,null,null,null,null,null,null,15,"-",{"$f":"2*$DE$6-1","v":5},6,"+",{"$f":"$DG$6+1","v":4},5]
[null,null,null,null,null,null,null,null,null,null,null,null,null,null,null,null,null,null,null,null,null,null,null,null,null,null,null,null,null,{"$f":"AC18&AG19&AK18","v":"2×4"},null,null,null,null,null,null,null,null,null,null,null,{"$f":"IF(GCD(AC18,AK20)=1,\"\",\"⇒｢\"&AC18&\"｣と｢\"&AK20&\"｣を約分\")","v":""},null,null,null,null,null,null,null,null,null,null,null,null,null,null,null,null,null,null,null,null,null,null,null,null,null,null,null,null,null,null,null,null,null,null,null,null,null,null,null,null,null,null,null,null,null,null,null,null,null,null,null,null,null,null,null,null,null,null,null,null,null,null,null,null,null,16,"-",{"$f":"4*DF5+1","v":1},4,"-",{"$f":"$DE$6+4","v":7},6]
[null,null,null,null,null,null,null,null,null,null,null,null,null,null,null,null,null,null,null,null,null,null,null,null,"=",null,null,{"$f":"IF(L8=W8,\"\",\"-\")","v":""},null,null,null,null,null,null,null,null,null,null,null,null,null,null,null,null,null,null,null,null,null,null,null,null,null,null,null,null,null,null,null,null,null,null,null,null,null,null,null,null,null,null,null,null,null,null,null,null,null,null,null,null,null,null,null,null,null,null,null,null,null,null,null,null,null,null,null,null,null,null,null,null,null,null,null,null,null,null,null,17,"+",{"$f":"4*$DE$6+1","v":13},6,"-",{"$f":"$DG$6+2","v":5},4]
[null,null,null,null,null,null,null,null,null,null,null,null,null,null,null,null,null,null,null,null,null,null,null,null,null,null,null,null,null,{"$f":"AC20&AG19&AK20","v":"3×1"},null,null,null,null,null,null,null,null,null,null,null,{"$f":"IF(GCD(AC20,AK18)=1,\"\",\"⇒｢\"&AC20&\"｣と｢\"&AK18&\"｣を約分\")","v":""},null,null,null,null,null,null,null,null,null,null,null,null,null,null,null,null,null,null,null,null,null,null,null,null,null,null,null,null,null,null,null,null,null,null,null,null,null,null,null,null,null,null,null,null,null,null,null,null,null,null,null,null,null,null,null,null,null,null,null,null,null,null,null,null,null,18,"-",{"$f":"IF(DG6=5,7,$DG$6+4)","v":7},6,"-",{"$f":"3*$DE$6+1","v":10},9]
[null,null,null,null,null,null,null,null,null,null,null,null,null,null,null,null,null,null,null,null,null,null,null,null,null,null,null,null,null,null,null,null,null,null,null,null,null,null,null,null,null,null,null,null,null,null,null,null,null,null,null,null,null,null,null,null,null,null,null,null,null,null,null,null,null,null,null,null,null,null,null,null,null,null,null,null,null,null,null,null,null,null,null,null,null,null,null,null,null,null,null,null,null,null,null,null,null,null,null,null,null,null,null,null,null,null,null,19,"-",{"$f":"DH6+2","v":11},8,"+",{"$f":"IF(DG6=5,7,DG6+4)","v":7},6]
[null,null,null,null,null,null,null,null,null,null,null,null,null,null,null,null,null,null,null,null,null,null,null,null,null,null,null,null,null,null,null,null,null,null,null,null,null,null,null,null,null,null,null,null,null,null,null,null,null,null,null,null,null,null,null,null,null,null,null,null,null,null,null,null,null,null,null,null,null,null,null,null,null,null,null,null,null,null,null,null,null,null,null,null,null,null,null,null,null,null,null,null,null,null,null,null,null,null,null,null,null,null,null,null,null,null,null,20,"-",{"$f":"$DE$6*$DF$6","v":3},4,"-",{"$f":"$DF$6+6","v":7},10]
[null,null,null,null,null,null,null,null,null,null,null,null,null,null,null,null,null,null,null,null,null,null,null,null,null,null,null,null,null,{"$f":"IF(GCD(AC18*AK18,AC20*AK20)>1,AC18/GCD(AC18,AK20)&\"×\"&AK18/GCD(AC20,AK18),\"\")","v":""}]
[null,null,null,null,null,null,null,null,null,null,null,null,null,null,null,null,null,null,null,null,null,null,null,null,{"$f":"IF(GCD(AC18*AK18,AC20*AK20)>1,\"=\",\"\")","v":""},null,null,{"$f":"IF(GCD(AC18*AK18,AC20*AK20)>1,AB24,\"\")","v":""}]
[null,null,null,null,null,null,null,null,null,null,null,null,null,null,null,null,null,null,null,null,null,null,null,null,null,null,null,null,null,{"$f":"IF(GCD(AC18*AK18,AC20*AK20)>1,(AC20/GCD(AC20,AK18))&AG19&(AK20/GCD(AC18,AK20)),\"\")","v":""},null,null,null,null,null,null,null,null,null,null,null,null,null,null,null,null,null,null,null,null,null,null,null,null,null,null,null,null,null,null,null,null,null,null,null,null,null,null,null,null,null,null,null,null,null,null,null,null,null,null,null,null,null,null,null,null,null,null,null,null,null,null,null,null,null,null,null,null,null,null,null,null,null,null,null,null,null,null,{"$f":"IF(COUNTA(AQ7:AY10)=0,\"×\",\"○\")","v":"×"},{"$f":"IF(COUNTIF(DE30:DE31,\"○\")=1,\"○\",\"×\")","v":"×"},null,"-"]
[null,null,null,null,null,null,null,null,null,null,null,null,null,null,null,null,null,null,null,null,null,null,null,null,null,null,null,null,null,null,null,null,null,null,null,null,null,null,null,null,null,null,null,null,null,null,null,null,null,null,null,null,null,null,null,null,null,null,null,null,null,null,null,null,null,null,null,null,null,null,null,null,null,null,null,null,null,null,null,null,null,null,null,null,null,null,null,null,null,null,null,null,null,null,null,null,null,null,null,null,null,null,null,null,null,null,null,null,{"$f":"IF(COUNTA(AG8)=0,\"×\",\"○\")","v":"×"}]
[null,null,null,null,null,null,null,null,null,null,null,null,null,null,null,null,null,null,null,null,null,null,null,null,null,null,null,null,null,{"$f":"IF(MOD(AC18*AK18,AC20*AK20)=0,\"\",AK18*AC18/GCD(AC18,AK20)/GCD(AC20,AK18))","v":8},null,null,null,null,null,null,null,null,null,null,null,null,null,null,null,null,null,null,null,null,null,null,null,null,null,null,null,null,null,null,null,null,null,null,null,null,null,null,null,null,null,null,null,null,null,null,null,null,null,null,null,null,null,null,null,null,null,null,null,null,null,null,null,null,null,null,null,null,null,null,null,null,null,null,null,null,null,null,{"$f":"IF(AG8=\"\",\"×\",IF(AT7=\"\",IF(AG8=AG33,\"○\",\"×\"),\"×\"))","v":"×"},{"$f":"DE32","v":"×"}]
[null,null,null,null,null,null,null,null,null,null,null,null,null,null,null,null,null,null,null,null,null,null,null,null,"=",null,null,{"$f":"IF(AG33=\"\",AB24,\"\")","v":""},null,null,null,null,{"$f":"IF(MOD(AC18*AK18,AC20*AK20)=0,VALUE(ASC(AB24&(AC18*AK18/AC20/AK20))),\"\")","v":""},null,null,null,null,null,null,null,null,null,null,null,null,null,null,null,null,null,null,null,null,null,null,null,null,null,null,null,null,null,null,null,null,null,null,null,null,null,null,null,null,null,null,null,null,null,null,null,null,null,null,null,null,null,null,null,null,null,null,null,null,null,null,null,null,null,null,null,null,null,null,null,null,null,null,null,{"$f":"IF(AT7=\"\",\"×\",IF(VALUE(ASC(L13&N12))=VALUE(ASC(AR8&AT7)),\"○\",\"×\"))","v":"×"},{"$f":"IF(COUNTIF(DE33:DE34,\"○\")=2,\"○\",\"×\")","v":"×"}]
[null,null,null,null,null,null,null,null,null,null,null,null,null,null,null,null,null,null,null,null,null,null,null,null,null,null,null,null,null,{"$f":"IF(MOD(AC18*AK18,AC20*AK20)=0,\"\",AC20*AK20/GCD(AC18,AK20)/GCD(AC20,AK18))","v":3},null,null,null,null,null,null,null,null,null,null,null,null,null,null,null,null,null,null,null,null,null,null,null,null,null,null,null,null,null,null,null,null,null,null,null,null,null,null,null,null,null,null,null,null,null,null,null,null,null,null,null,null,null,null,null,null,null,null,null,null,null,null,null,null,null,null,null,null,null,null,null,null,null,null,null,null,null,null,{"$f":"IF(AT9=N14,\"○\",\"×\")","v":"×"}]

{"sheet":"10　累乗","index":9,"n_rows":28,"n_cols":116,"rows_kept":28,"cut":false,"hidden":false,"merged":[[0,33,4,68],[1,4,2,6],[1,7,2,25],[6,2,6,5],[6,32,6,39],[21,57,26,69],[7,32,8,39],[11,5,12,8],[11,11,12,18],[11,19,12,35],[11,57,20,69],[15,5,16,8],[7,26,8,27],[7,2,8,5],[7,16,8,17],[7,8,8,9],[7,22,8,22],[7,18,8,18],[7,11,8,13],[7,19,8,21],[7,10,8,10],[7,15,8,15],[21,11,22,55],[17,32,18,41],[15,30,16,35],[15,19,16,29],[17,11,18,11],[17,12,18,14],[17,15,18,15],[17,16,18,17],[17,18,18,20],[17,21,18,31],[15,11,16,13],[15,14,16,15],[15,16,16,18],[19,11,20,55]]}
[null,null,null,null,null,null,null,null,null,null,null,null,null,null,null,null,null,null,null,null,null,null,null,null,null,null,null,null,null,null,null,null,null,"問題は１～２０まで、２０題あります。\n答えが正の数の時は、｢＋｣を省略してください。"]
[null,null,null,null,10,null,null,"累乗"]
[]
[]
[]
[]
[null,null,"問題番号",null,null,null,null,null,null,null,null,null,null,null,null,null,null,null,null,null,null,null,null,null,null,null,null,null,null,null,null,null,"答えを入力"]
[null,null,1,null,null,null,null,null,{"$f":"VLOOKUP($C$8,$CW$8:$DI$27,2,0)","v":0},null,{"$f":"VLOOKUP($C$8,$CW$8:$DI$27,3,0)","v":0},{"$f":"VLOOKUP($C$8,$CW$8:$DI$27,4,0)&VLOOKUP($C$8,$CW$8:$DI$27,5,0)","v":"5"},null,null,{"$f":"VLOOKUP($C$8,$CW$8:$DI$27,6,0)","v":2},{"$f":"VLOOKUP($C$8,$CW$8:$DI$27,7,0)","v":0},{"$f":"VLOOKUP($C$8,$CW$8:$DI$27,8,0)","v":0},null,{"$f":"VLOOKUP($C$8,$CW$8:$DI$27,9,0)","v":0},{"$f":"VLOOKUP($C$8,$CW$8:$DI$27,10,0)&VLOOKUP($C$8,$CW$8:$DI$27,11,0)","v":""},null,null,{"$f":"VLOOKUP($C$8,$CW$8:$DI$27,12,0)","v":0},{"$f":"VLOOKUP($C$8,$CW$8:$DI$27,13,0)","v":0},null,null,"＝",null,null,null,null,null,null,null,null,null,null,null,null,null,null,null,null,null,null,null,null,null,null,null,null,null,null,null,null,null,null,null,null,null,null,null,null,null,null,null,null,null,null,null,null,null,null,null,null,null,null,null,null,null,null,null,null,null,null,null,null,null,null,null,null,null,null,null,null,null,null,null,null,null,1,null,null,null,5,2,null,null,null,null,null,null,null,{"$f":"IF(CX8=\"\",1,-1)","v":1},{"$f":"IF(CZ8=\"\",1,-1)","v":1},{"$f":"IF(DA8=\"\",\"\",DJ8*DK8*DA8^DB8)","v":25}]
[null,null,null,null,null,null,null,null,null,null,null,null,null,null,null,null,null,null,null,null,null,null,null,null,null,null,null,null,null,null,null,null,null,null,null,null,null,null,null,null,null,null,null,null,null,null,null,null,null,null,null,null,null,null,null,null,null,null,null,null,null,null,null,null,null,null,null,null,null,null,null,null,null,null,null,null,null,null,null,null,null,null,null,null,null,null,null,null,null,null,null,null,null,null,null,null,null,null,null,null,2,null,null,null,2,5,null,null,null,null,null,null,null,{"$f":"IF(CX9=\"\",1,-1)","v":1},{"$f":"IF(CZ9=\"\",1,-1)","v":1},{"$f":"IF(DA9=\"\",\"\",DJ9*DK9*DA9^DB9)","v":32}]
[null,null,null,null,null,null,null,null,null,null,null,null,null,null,null,null,null,null,null,null,null,null,null,null,null,null,null,null,null,null,null,null,null,null,null,null,null,null,null,null,null,null,null,null,null,null,null,null,null,null,null,null,null,null,null,null,null,null,null,null,null,null,null,null,null,null,null,null,null,null,null,null,null,null,null,null,null,null,null,null,null,null,null,null,null,null,null,null,null,null,null,null,null,null,null,null,null,null,null,null,3,null,null,null,3,4,null,null,null,null,null,null,null,1,1,81]
[null,null,null,null,null,null,null,null,null,null,null,null,null,null,null,null,null,null,null,null,null,null,null,null,null,null,null,null,null,null,null,null,null,null,null,null,null,null,null,null,null,null,null,null,null,null,null,null,null,null,null,null,null,null,null,null,null,null,null,null,null,null,null,null,null,null,null,null,null,null,null,null,null,null,null,null,null,null,null,null,null,null,null,null,null,null,null,null,null,null,null,null,null,null,null,null,null,null,null,null,4,null,null,null,2,7,null,null,null,null,null,null,null,1,1,128]
[null,null,null,null,null,"正解",null,null,null,null,null,{"$f":"VLOOKUP($C$8,$CW$8:$DL$27,16,0)","v":25},null,null,null,null,null,null,null,null,null,null,null,null,null,null,null,null,null,null,null,null,null,null,null,null,null,null,null,null,null,null,null,null,null,null,null,null,null,null,null,null,null,null,null,null,null,{"$f":"IF($AG$8=$L$12,\"○\",\"×\")","v":"×"},null,null,null,null,null,null,null,null,null,null,null,null,null,null,null,null,null,null,null,null,null,null,null,null,null,null,null,null,null,null,null,null,null,null,null,null,null,null,null,null,null,null,5,null,null,"-",5,2,null,null,null,null,null,null,null,1,-1,-25]
[null,null,null,null,null,null,null,null,null,null,null,null,null,null,null,null,null,null,null,null,null,null,null,null,null,null,null,null,null,null,null,null,null,null,null,null,null,null,null,null,null,null,null,null,null,null,null,null,null,null,null,null,null,null,null,null,null,null,null,null,null,null,null,null,null,null,null,null,null,null,null,null,null,null,null,null,null,null,null,null,null,null,null,null,null,null,null,null,null,null,null,null,null,null,null,null,null,null,null,null,6,null,null,"-",2,4,null,null,null,null,null,null,null,1,-1,-16]
[null,null,null,null,null,null,null,null,null,null,null,null,null,null,null,null,null,null,null,null,null,null,null,null,null,null,null,null,null,null,null,null,null,null,null,null,null,null,null,null,null,null,null,null,null,null,null,null,null,null,null,null,null,null,null,null,null,null,null,null,null,null,null,null,null,null,null,null,null,null,null,null,null,null,null,null,null,null,null,null,null,null,null,null,null,null,null,null,null,null,null,null,null,null,null,null,null,null,null,null,7,null,null,"-",3,3,null,null,null,null,null,null,null,1,-1,-27]
[null,null,null,null,null,null,null,null,null,null,null,null,null,null,null,null,null,null,null,null,null,null,null,null,null,null,null,null,null,null,null,null,null,null,null,null,null,null,null,null,null,null,null,null,null,null,null,null,null,null,null,null,null,null,null,null,null,null,null,null,null,null,null,null,null,null,null,null,null,null,null,null,null,null,null,null,null,null,null,null,null,null,null,null,null,null,null,null,null,null,null,null,null,null,null,null,null,null,null,null,8,null,null,"-",5,3,null,null,null,null,null,null,null,1,-1,-125]
[null,null,null,null,null,"解説",null,null,null,null,null,{"$f":"IF(L8=\"\",\"\",ABS(L8))","v":5},null,null,{"$f":"IF(L16=\"\",\"\",\"を\")","v":"を"},null,{"$f":"IF(O8=\"\",\"\",O8)","v":2},null,null,{"$f":"IF(L16=\"\",\"\",\"回かける\")","v":"回かける"},null,null,null,null,null,null,null,null,null,null,null,null,null,null,null,null,null,null,null,null,null,null,null,null,null,null,null,null,null,null,null,null,null,null,null,null,null,null,null,null,null,null,null,null,null,null,null,null,null,null,null,null,null,null,null,null,null,null,null,null,null,null,null,null,null,null,null,null,null,null,null,null,null,null,null,null,null,null,null,null,9,"-","(","-",2,3,")",null,null,null,null,null,null,-1,-1,8]
[null,null,null,null,null,null,null,null,null,null,null,null,null,null,null,null,null,null,null,null,null,null,null,null,null,null,null,null,null,null,null,null,null,null,null,null,null,null,null,null,null,null,null,null,null,null,null,null,null,null,null,null,null,null,null,null,null,null,null,null,null,null,null,null,null,null,null,null,null,null,null,null,null,null,null,null,null,null,null,null,null,null,null,null,null,null,null,null,null,null,null,null,null,null,null,null,null,null,null,null,10,"-","(","-",3,2,")",null,null,null,null,null,null,-1,-1,9]
[null,null,null,null,null,null,null,null,null,null,null,{"$f":"S8","v":0},{"$f":"T8","v":""},null,null,{"$f":"W8","v":0},{"$f":"IF(M18=\"\",\"\",\"を\")","v":""},null,{"$f":"X8","v":0},null,null,{"$f":"IF(M18=\"\",\"\",\"回かけると\")","v":""},null,null,null,null,null,null,null,null,null,null,{"$f":"IF(M18=\"\",\"\",M18^S18)","v":""},null,null,null,null,null,null,null,null,null,null,null,null,null,null,null,null,null,null,null,null,null,null,null,null,null,null,null,null,null,null,null,null,null,null,null,null,null,null,null,null,null,null,null,null,null,null,null,null,null,null,null,null,null,null,null,null,null,null,null,null,null,null,null,null,null,null,null,11,"-","(","-",4,3,")",null,null,null,null,null,null,-1,-1,64]
[null,null,null,null,null,null,null,null,null,null,null,null,null,null,null,null,null,null,null,null,null,null,null,null,null,null,null,null,null,null,null,null,null,null,null,null,null,null,null,null,null,null,null,null,null,null,null,null,null,null,null,null,null,null,null,null,null,null,null,null,null,null,null,null,null,null,null,null,null,null,null,null,null,null,null,null,null,null,null,null,null,null,null,null,null,null,null,null,null,null,null,null,null,null,null,null,null,null,null,null,12,"-","(","-",9,2,")",null,null,null,null,null,null,-1,-1,81]
[null,null,null,null,null,null,null,null,null,null,null,{"$f":"IF(L8=\"\",IF(Q8=\"-\",\"この前に「－」がついているので、符号を変える\",\"\"),IF(VALUE(L8)<0,\"「－」が前についているので、符号を変える\",\"\"))","v":""},null,null,null,null,null,null,null,null,null,null,null,null,null,null,null,null,null,null,null,null,null,null,null,null,null,null,null,null,null,null,null,null,null,null,null,null,null,null,null,null,null,null,null,null,null,null,null,null,null,null,null,null,null,null,null,null,null,null,null,null,null,null,null,null,null,null,null,null,null,null,null,null,null,null,null,null,null,null,null,null,null,null,null,null,null,null,null,null,13,null,null,null,null,null,null,null,"(","-",1,")",2,{"$f":"IF(DD20=\"\",1,-1)","v":1},1,{"$f":"IF(DG20=\"\",\"\",DJ20*DK20*(VALUE(ASC(DF20&DG20)^DI20)))","v":1}]
[null,null,null,null,null,null,null,null,null,null,null,null,null,null,null,null,null,null,null,null,null,null,null,null,null,null,null,null,null,null,null,null,null,null,null,null,null,null,null,null,null,null,null,null,null,null,null,null,null,null,null,null,null,null,null,null,null,null,null,null,null,null,null,null,null,null,null,null,null,null,null,null,null,null,null,null,null,null,null,null,null,null,null,null,null,null,null,null,null,null,null,null,null,null,null,null,null,null,null,null,14,null,null,null,null,null,null,null,"(","-",2,")",3,{"$f":"IF(DD21=\"\",1,-1)","v":1},1,{"$f":"IF(DG21=\"\",\"\",DJ21*DK21*(VALUE(ASC(DF21&DG21)^DI21)))","v":-8}]
[null,null,null,null,null,null,null,null,null,null,null,{"$f":"IF(I8=0,\"\",\"もうひとつ「－」が前についているので、もう一度符号を変える\")","v":""},null,null,null,null,null,null,null,null,null,null,null,null,null,null,null,null,null,null,null,null,null,null,null,null,null,null,null,null,null,null,null,null,null,null,null,null,null,null,null,null,null,null,null,null,null,{"$f":"IF($AG$8=$L$12,\"正解！\",\"残念！\")","v":"残念！"},null,null,null,null,null,null,null,null,null,null,null,null,null,null,null,null,null,null,null,null,null,null,null,null,null,null,null,null,null,null,null,null,null,null,null,null,null,null,null,null,null,null,15,null,null,null,null,null,null,null,"(","-",3,")",4,1,1,81]
[null,null,null,null,null,null,null,null,null,null,null,null,null,null,null,null,null,null,null,null,null,null,null,null,null,null,null,null,null,null,null,null,null,null,null,null,null,null,null,null,null,null,null,null,null,null,null,null,null,null,null,null,null,null,null,null,null,null,null,null,null,null,null,null,null,null,null,null,null,null,null,null,null,null,null,null,null,null,null,null,null,null,null,null,null,null,null,null,null,null,null,null,null,null,null,null,null,null,null,null,16,null,null,null,null,null,null,null,"(","-",2,")",5,1,1,-32]
[null,null,null,null,null,null,null,null,null,null,null,null,null,null,null,null,null,null,null,null,null,null,null,null,null,null,null,null,null,null,null,null,null,null,null,null,null,null,null,null,null,null,null,null,null,null,null,null,null,null,null,null,null,null,null,null,null,null,null,null,null,null,null,null,null,null,null,null,null,null,null,null,null,null,null,null,null,null,null,null,null,null,null,null,null,null,null,null,null,null,null,null,null,null,null,null,null,null,null,null,17,null,null,null,null,null,null,"-","(","-",3,")",2,-1,1,-9]
[null,null,null,null,null,null,null,null,null,null,null,null,null,null,null,null,null,null,null,null,null,null,null,null,null,null,null,null,null,null,null,null,null,null,null,null,null,null,null,null,null,null,null,null,null,null,null,null,null,null,null,null,null,null,null,null,null,null,null,null,null,null,null,null,null,null,null,null,null,null,null,null,null,null,null,null,null,null,null,null,null,null,null,null,null,null,null,null,null,null,null,null,null,null,null,null,null,null,null,null,18,null,null,null,null,null,null,"-","(","-",2,")",4,-1,1,-16]
[null,null,null,null,null,null,null,null,null,null,null,null,null,null,null,null,null,null,null,null,null,null,null,null,null,null,null,null,null,null,null,null,null,null,null,null,null,null,null,null,null,null,null,null,null,null,null,null,null,null,null,null,null,null,null,null,null,null,null,null,null,null,null,null,null,null,null,null,null,null,null,null,null,null,null,null,null,null,null,null,null,null,null,null,null,null,null,null,null,null,null,null,null,null,null,null,null,null,null,null,19,null,null,null,null,null,null,"-","(","-",5,")",3,-1,1,125]
[null,null,null,null,null,null,null,null,null,null,null,null,null,null,null,null,null,null,null,null,null,null,null,null,null,null,null,null,null,null,null,null,null,null,null,null,null,null,null,null,null,null,null,null,null,null,null,null,null,null,null,null,null,null,null,null,null,null,null,null,null,null,null,null,null,null,null,null,null,null,null,null,null,null,null,null,null,null,null,null,null,null,null,null,null,null,null,null,null,null,null,null,null,null,null,null,null,null,null,null,20,null,null,null,null,null,null,"-","(","-",2,")",7,-1,1,128]
[null,null,null,null,null,null,null,null,null,null,null,null,null,null,null,null,null,null,null,null,null,null,null,null,null,null,null,null,null,null,null,null,null,null,null,null,null,null,null,null,null,null,null,null,null,null,null,null,null,null,null,null,null,null,null,null,null,null,null,null,null,null,null,null,null,null,null,null,null,null,null,null,null,null,null,null,null,null,null,null,null,null,null,null,null,null,null,null,null,null,null,null,null,null,null,null,null,null,null,null,null,null,null,null,null,null,null,null,null,null,null,null,null,null,null,""]

{"sheet":"11　整数の乗除１","index":10,"n_rows":27,"n_cols":111,"rows_kept":27,"cut":false,"hidden":false,"merged":[[0,33,4,68],[1,4,2,6],[1,7,2,25],[6,2,6,5],[6,32,6,39],[11,57,20,69],[15,5,16,8],[15,29,16,30],[15,31,16,32],[15,33,16,34],[15,11,16,23],[18,11,19,22],[18,31,19,49],[7,17,8,17],[7,18,8,20],[11,5,12,8],[11,11,12,18],[11,19,12,35],[7,2,8,5],[7,11,8,13],[7,21,8,21],[7,22,8,22],[21,31,22,49],[21,29,22,30],[21,57,26,69],[7,9,8,9],[7,10,8,10],[7,14,8,14],[7,32,8,39],[7,29,8,30],[7,23,8,23],[7,24,8,24],[7,25,8,27],[7,28,8,28],[24,29,25,30],[24,31,25,49],[7,15,8,15],[7,16,8,16]]}
[null,null,null,null,null,null,null,null,null,null,null,null,null,null,null,null,null,null,null,null,null,null,null,null,null,null,null,null,null,null,null,null,null,"問題は１～２０まで、２０題あります。\n答えが正の数の時は、｢＋｣を省略してください。"]
[null,null,null,null,11,null,null,"整数の乗除(商が整数)"]
[]
[]
[]
[]
[null,null,"問題番号",null,null,null,null,null,null,null,null,null,null,null,null,null,null,null,null,null,null,null,null,null,null,null,null,null,null,null,null,null,"答えを入力"]
[null,null,1,null,null,null,null,null,null,"(",{"$f":"IF(MOD($C$8,5)<3,\"-\",\"+\")","v":"-"},{"$f":"VLOOKUP($C$8,$DD$8:$DG$27,2,0)","v":4},null,null,")","÷","(",{"$f":"IF(MOD($C$8,4)>1,\"+\",\"-\")","v":"-"},{"$f":"VLOOKUP($C$8,$DD$8:$DG$27,3,0)","v":2},null,null,")","×","(","-",{"$f":"VLOOKUP($C$8,$DD$8:$DG$27,4,0)","v":3},null,null,")","＝",null,null,null,null,null,null,null,null,null,null,null,null,null,null,null,null,null,null,null,null,null,null,null,null,null,null,null,null,null,null,null,null,null,null,null,null,null,null,null,null,null,null,null,null,null,null,null,null,null,null,null,null,null,null,null,null,null,null,null,null,null,null,null,null,null,null,null,null,null,null,null,null,null,null,null,null,null,1,{"$f":"DF8*(MOD(TODAY(),2)+1)","v":4},2,{"$f":"DF8+1","v":3}]
[null,null,null,null,null,null,null,null,null,null,null,null,null,null,null,null,null,null,null,null,null,null,null,null,null,null,null,null,null,null,null,null,null,null,null,null,null,null,null,null,null,null,null,null,null,null,null,null,null,null,null,null,null,null,null,null,null,null,null,null,null,null,null,null,null,null,null,null,null,null,null,null,null,null,null,null,null,null,null,null,null,null,null,null,null,null,null,null,null,null,null,null,null,null,null,null,null,null,null,null,null,null,null,null,null,null,null,2,{"$f":"DF9*(MOD(TODAY(),3)+1)","v":6},3,{"$f":"DF9+1","v":4}]
[null,null,null,null,null,null,null,null,null,null,null,null,null,null,null,null,null,null,null,null,null,null,null,null,null,null,null,null,null,null,null,null,null,null,null,null,null,null,null,null,null,null,null,null,null,null,null,null,null,null,null,null,null,null,null,null,null,null,null,null,null,null,null,null,null,null,null,null,null,null,null,null,null,null,null,null,null,null,null,null,null,null,null,null,null,null,null,null,null,null,null,null,null,null,null,null,null,null,null,null,null,null,null,null,null,null,null,3,{"$f":"DF10*(MOD(TODAY(),3)+4)","v":15},3,4]
[null,null,null,null,null,null,null,null,null,null,null,null,null,null,null,null,null,null,null,null,null,null,null,null,null,null,null,null,null,null,null,null,null,null,null,null,null,null,null,null,null,null,null,null,null,null,null,null,null,null,null,null,null,null,null,null,null,null,null,null,null,null,null,null,null,null,null,null,null,null,null,null,null,null,null,null,null,null,null,null,null,null,null,null,null,null,null,null,null,null,null,null,null,null,null,null,null,null,null,null,null,null,null,null,null,null,null,4,{"$f":"DF11*(MOD(TODAY(),4)+1)","v":20},5,6]
[null,null,null,null,null,"正解",null,null,null,null,null,{"$f":"AF25","v":6},null,null,null,null,null,null,null,null,null,null,null,null,null,null,null,null,null,null,null,null,null,null,null,null,null,null,null,null,null,null,null,null,null,null,null,null,null,null,null,null,null,null,null,null,null,{"$f":"IF($AG$8=$L$12,\"○\",\"×\")","v":"×"},null,null,null,null,null,null,null,null,null,null,null,null,null,null,null,null,null,null,null,null,null,null,null,null,null,null,null,null,null,null,null,null,null,null,null,null,null,null,null,null,null,null,null,null,null,null,null,null,null,5,{"$f":"DF12*(MOD(TODAY(),4)+2)","v":20},4,5]
[null,null,null,null,null,null,null,null,null,null,null,null,null,null,null,null,null,null,null,null,null,null,null,null,null,null,null,null,null,null,null,null,null,null,null,null,null,null,null,null,null,null,null,null,null,null,null,null,null,null,null,null,null,null,null,null,null,null,null,null,null,null,null,null,null,null,null,null,null,null,null,null,null,null,null,null,null,null,null,null,null,null,null,null,null,null,null,null,null,null,null,null,null,null,null,null,null,null,null,null,null,null,null,null,null,null,null,6,{"$f":"DF13*(MOD(TODAY(),4)+5)","v":32},4,5]
[null,null,null,null,null,null,null,null,null,null,null,null,null,null,null,null,null,null,null,null,null,null,null,null,null,null,null,null,null,null,null,null,null,null,null,null,null,null,null,null,null,null,null,null,null,null,null,null,null,null,null,null,null,null,null,null,null,null,null,null,null,null,null,null,null,null,null,null,null,null,null,null,null,null,null,null,null,null,null,null,null,null,null,null,null,null,null,null,null,null,null,null,null,null,null,null,null,null,null,null,null,null,null,null,null,null,null,7,{"$f":"DF14*(MOD(TODAY(),4)+6)","v":36},4,5]
[null,null,null,null,null,null,null,null,null,null,null,null,null,null,null,null,null,null,null,null,null,null,null,null,null,null,null,null,null,null,null,null,null,null,null,null,null,null,null,null,null,null,null,null,null,null,null,null,null,null,null,null,null,null,null,null,null,null,null,null,null,null,null,null,null,null,null,null,null,null,null,null,null,null,null,null,null,null,null,null,null,null,null,null,null,null,null,null,null,null,null,null,null,null,null,null,null,null,null,null,null,null,null,null,null,null,null,8,{"$f":"DF15*(MOD(TODAY(),5)+2)","v":30},6,7]
[null,null,null,null,null,"解説",null,null,null,null,null,{"$f":"IF(COUNTIF(K8:Y9,\"-\")=2,\"－が奇数個なので\",\"－が偶数個なので\")","v":"－が偶数個なので"},null,null,null,null,null,null,null,null,null,null,null,null,null,null,null,null,null,"「",null,{"$f":"IF(COUNTIF(K8:Y9,\"-\")=2,\"＋\",\"－\")","v":"－"},null,"」",null,null,null,null,null,null,null,null,null,null,null,null,null,null,null,null,null,null,null,null,null,null,null,null,null,null,null,null,null,null,null,null,null,null,null,null,null,null,null,null,null,null,null,null,null,null,null,null,null,null,null,null,null,null,null,null,null,null,null,null,null,null,null,null,null,null,null,null,null,null,null,null,null,9,{"$f":"DF16*(MOD(TODAY(),5)+4)","v":42},6,7]
[null,null,null,null,null,null,null,null,null,null,null,null,null,null,null,null,null,null,null,null,null,null,null,null,null,null,null,null,null,null,null,null,null,null,null,null,null,null,null,null,null,null,null,null,null,null,null,null,null,null,null,null,null,null,null,null,null,null,null,null,null,null,null,null,null,null,null,null,null,null,null,null,null,null,null,null,null,null,null,null,null,null,null,null,null,null,null,null,null,null,null,null,null,null,null,null,null,null,null,null,null,null,null,null,null,null,null,10,{"$f":"DF17*(MOD(TODAY(),5)+5)","v":48},6,7]
[null,null,null,null,null,null,null,null,null,null,null,null,null,null,null,null,null,null,null,null,null,null,null,null,null,null,null,null,null,null,null,null,null,null,null,null,null,null,null,null,null,null,null,null,null,null,null,null,null,null,null,null,null,null,null,null,null,null,null,null,null,null,null,null,null,null,null,null,null,null,null,null,null,null,null,null,null,null,null,null,null,null,null,null,null,null,null,null,null,null,null,null,null,null,null,null,null,null,null,null,null,null,null,null,null,null,null,11,{"$f":"DF18*(MOD(TODAY(),4)+2)","v":35},7,8]
[null,null,null,null,null,null,null,null,null,null,null,"数を計算して",null,null,null,null,null,null,null,null,null,null,null,null,null,null,null,null,null,null,null,{"$f":"L8&P8&S8&W8&Z8","v":"4÷2×3"},null,null,null,null,null,null,null,null,null,null,null,null,null,null,null,null,null,null,null,null,null,null,null,null,null,null,null,null,null,null,null,null,null,null,null,null,null,null,null,null,null,null,null,null,null,null,null,null,null,null,null,null,null,null,null,null,null,null,null,null,null,null,null,null,null,null,null,null,null,null,null,null,null,null,null,12,{"$f":"DF19*(MOD(TODAY(),4)+6)","v":63},7,8]
[null,null,null,null,null,null,null,null,null,null,null,null,null,null,null,null,null,null,null,null,null,null,null,null,null,null,null,null,null,null,null,null,null,null,null,null,null,null,null,null,null,null,null,null,null,null,null,null,null,null,null,null,null,null,null,null,null,null,null,null,null,null,null,null,null,null,null,null,null,null,null,null,null,null,null,null,null,null,null,null,null,null,null,null,null,null,null,null,null,null,null,null,null,null,null,null,null,null,null,null,null,null,null,null,null,null,null,13,{"$f":"DF20*(MOD(TODAY(),4)+7)","v":70},7,8]
[null,null,null,null,null,null,null,null,null,null,null,null,null,null,null,null,null,null,null,null,null,null,null,null,null,null,null,null,null,null,null,null,null,null,null,null,null,null,null,null,null,null,null,null,null,null,null,null,null,null,null,null,null,null,null,null,null,null,null,null,null,null,null,null,null,null,null,null,null,null,null,null,null,null,null,null,null,null,null,null,null,null,null,null,null,null,null,null,null,null,null,null,null,null,null,null,null,null,null,null,null,null,null,null,null,null,null,14,{"$f":"DF21*(MOD(TODAY(),3)+2)","v":24},8,9]
[null,null,null,null,null,null,null,null,null,null,null,null,null,null,null,null,null,null,null,null,null,null,null,null,null,null,null,null,null,"=",null,{"$f":"(L8/S8)&W8&Z8","v":"2×3"},null,null,null,null,null,null,null,null,null,null,null,null,null,null,null,null,null,null,null,null,null,null,null,null,null,{"$f":"IF($AG$8=$L$12,\"正解！\",\"残念！\")","v":"残念！"},null,null,null,null,null,null,null,null,null,null,null,null,null,null,null,null,null,null,null,null,null,null,null,null,null,null,null,null,null,null,null,null,null,null,null,null,null,null,null,null,null,null,null,null,null,null,null,null,null,15,{"$f":"DF22*(MOD(TODAY(),3)+5)","v":48},8,9]
[null,null,null,null,null,null,null,null,null,null,null,null,null,null,null,null,null,null,null,null,null,null,null,null,null,null,null,null,null,null,null,null,null,null,null,null,null,null,null,null,null,null,null,null,null,null,null,null,null,null,null,null,null,null,null,null,null,null,null,null,null,null,null,null,null,null,null,null,null,null,null,null,null,null,null,null,null,null,null,null,null,null,null,null,null,null,null,null,null,null,null,null,null,null,null,null,null,null,null,null,null,null,null,null,null,null,null,16,{"$f":"DF23*(MOD(TODAY(),3)+8)","v":72},8,9]
[null,null,null,null,null,null,null,null,null,null,null,null,null,null,null,null,null,null,null,null,null,null,null,null,null,null,null,null,null,null,null,null,null,null,null,null,null,null,null,null,null,null,null,null,null,null,null,null,null,null,null,null,null,null,null,null,null,null,null,null,null,null,null,null,null,null,null,null,null,null,null,null,null,null,null,null,null,null,null,null,null,null,null,null,null,null,null,null,null,null,null,null,null,null,null,null,null,null,null,null,null,null,null,null,null,null,null,17,{"$f":"DF24*(MOD(TODAY(),4)+1)","v":36},9,10]
[null,null,null,null,null,null,null,null,null,null,null,null,null,null,null,null,null,null,null,null,null,null,null,null,null,null,null,null,null,"=",null,{"$f":"L8*Z8/S8","v":6},null,null,null,null,null,null,null,null,null,null,null,null,null,null,null,null,null,null,null,null,null,null,null,null,null,null,null,null,null,null,null,null,null,null,null,null,null,null,null,null,null,null,null,null,null,null,null,null,null,null,null,null,null,null,null,null,null,null,null,null,null,null,null,null,null,null,null,null,null,null,null,null,null,null,null,18,{"$f":"DF25*(MOD(TODAY(),4)+3)","v":54},9,10]
[null,null,null,null,null,null,null,null,null,null,null,null,null,null,null,null,null,null,null,null,null,null,null,null,null,null,null,null,null,null,null,null,null,null,null,null,null,null,null,null,null,null,null,null,null,null,null,null,null,null,null,null,null,null,null,null,null,null,null,null,null,null,null,null,null,null,null,null,null,null,null,null,null,null,null,null,null,null,null,null,null,null,null,null,null,null,null,null,null,null,null,null,null,null,null,null,null,null,null,null,null,null,null,null,null,null,null,19,{"$f":"DF26*(MOD(TODAY(),4)+7)","v":90},9,10]
[null,null,null,null,null,null,null,null,null,null,null,null,null,null,null,null,null,null,null,null,null,null,null,null,null,null,null,null,null,null,null,null,null,null,null,null,null,null,null,null,null,null,null,null,null,null,null,null,null,null,null,null,null,null,null,null,null,null,null,null,null,null,null,null,null,null,null,null,null,null,null,null,null,null,null,null,null,null,null,null,null,null,null,null,null,null,null,null,null,null,null,null,null,null,null,null,null,null,null,null,null,null,null,null,null,null,null,20,{"$f":"DF27*(MOD(TODAY(),5)+5)","v":80},10,11]

{"sheet":"12　整数の乗除２","index":11,"n_rows":32,"n_cols":112,"rows_kept":32,"cut":false,"hidden":false,"merged":[[0,33,4,68],[1,4,2,6],[1,7,2,25],[5,42,5,50],[6,2,6,5],[6,33,6,34],[6,35,7,39],[7,2,8,5],[7,29,8,30],[17,5,18,8],[17,10,17,15],[18,10,18,13],[7,28,8,28],[7,9,8,9],[7,10,8,10],[7,11,8,13],[7,16,8,16],[7,17,8,17],[7,18,8,20],[11,5,12,8],[11,20,12,45],[7,21,8,21],[7,22,8,22],[12,11,13,12],[32,109,33,109],[7,14,8,14],[7,15,8,15],[21,57,26,69],[20,14,21,21],[18,24,19,40],[11,57,20,69],[7,33,8,34],[7,41,8,51],[8,35,9,39],[7,23,8,23],[7,24,8,24],[7,25,8,27],[15,11,15,16],[11,13,12,16],[13,13,14,16],[24,10,25,10],[24,12,25,13],[20,24,21,40],[23,14,24,17],[25,14,26,17],[19,10,20,10],[19,12,20,13],[18,14,19,21]]}
[null,null,null,null,null,null,null,null,null,null,null,null,null,null,null,null,null,null,null,null,null,null,null,null,null,null,null,null,null,null,null,null,null,"問題は２０題。約分できるものは約分して答えること。\n答えが整数か分数かで、解答の入力場所が違います。"]
[null,null,null,null,12,null,null,"整数の乗除(商が分数)"]
[]
[]
[null,null,null,null,null,null,null,null,null,null,null,null,null,null,null,null,null,null,null,null,null,null,null,null,null,null,null,null,null,null,null,null,null,null,null,null,null,null,null,null,null,null,null,null,null,null,null,null,null,null,null,null,null,null,null,null,null,null,null,null,null,null,null,null,null,null,null,null,null,null,null,null,null,null,null,null,null,null,null,null,null,null,null,null,null,null,null,null,null,null,null,null,null,null,null,null,null,null,null,null,null,null,null,null,null,null,null,{"$f":"MOD(DAY(TODAY()),2)","v":1},{"$f":"MOD(DAY(TODAY()),3)","v":0},{"$f":"MOD(DAY(TODAY()),4)","v":1},{"$f":"MOD(DAY(TODAY()),5)","v":4},{"$f":"MOD(DAY(TODAY()),6)","v":3}]
[null,null,null,null,null,null,null,null,null,null,null,null,null,null,null,null,null,null,null,null,null,null,null,null,null,null,null,null,null,null,null,null,null,null,null,null,null,null,null,null,null,null,null,null,null,null,null,null,null,null,null,null,null,null,null,null,null,null,null,null,null,null,null,null,null,null,null,null,null,null,null,null,null,null,null,null,null,null,null,null,null,null,null,null,null,null,null,null,null,null,null,null,null,null,null,null,null,null,null,null,null,null,null,null,null,null,null,{"$f":"2*DD5+1","v":3},{"$f":"2*DE5+1","v":1},3,9,7]
[null,null,"問題番号"]
[null,null,1,null,null,null,null,null,null,"(",{"$f":"IF(MOD($C$8,5)<3,\"-\",\"+\")","v":"-"},{"$f":"VLOOKUP($C$8,$DD$8:$DG$27,2,0)","v":3},null,null,")","÷","(",{"$f":"IF(MOD($C$8,4)>1,\"+\",\"-\")","v":"-"},{"$f":"VLOOKUP($C$8,$DD$8:$DG$27,3,0)","v":4},null,null,")","×","(","-",{"$f":"VLOOKUP($C$8,$DD$8:$DG$27,4,0)","v":6},null,null,")","＝",null,null,null,null,null,null,null,null,null,null,null,null,null,null,null,null,null,null,null,null,null,null,null,null,null,null,null,null,null,null,null,null,null,null,null,null,null,null,null,null,null,null,null,null,null,null,null,null,null,null,null,null,null,null,null,null,null,null,null,null,null,null,null,null,null,null,null,null,null,null,null,null,null,null,null,null,null,1,{"$f":"$DD$6","v":3},4,{"$f":"DF8+2","v":6}]
[null,null,null,null,null,null,null,null,null,null,null,null,null,null,null,null,null,null,null,null,null,null,null,null,null,null,null,null,null,null,null,null,null,null,null,null,null,null,null,null,null,null,null,null,null,null,null,null,null,null,null,null,null,null,null,null,null,null,null,null,null,null,null,null,null,null,null,null,null,null,null,null,null,null,null,null,null,null,null,null,null,null,null,null,null,null,null,null,null,null,null,null,null,null,null,null,null,null,null,null,null,null,null,null,null,null,null,2,{"$f":"$DE$5*3+2","v":2},3,{"$f":"DF9+2","v":5}]
[null,null,null,null,null,null,null,null,null,null,null,null,null,null,null,null,null,null,null,null,null,null,null,null,null,null,null,null,null,null,null,null,null,null,null,null,null,null,null,null,null,null,null,null,null,null,null,null,null,null,null,null,null,null,null,null,null,null,null,null,null,null,null,null,null,null,null,null,null,null,null,null,null,null,null,null,null,null,null,null,null,null,null,null,null,null,null,null,null,null,null,null,null,null,null,null,null,null,null,null,null,null,null,null,null,null,null,3,{"$f":"$DD$6+4","v":7},6,8]
[null,null,null,null,null,null,null,null,null,null,null,null,null,null,null,null,null,null,null,null,null,null,null,null,null,null,null,null,null,null,null,null,null,null,null,null,null,null,null,null,null,null,null,null,null,null,null,null,null,null,null,null,null,null,null,null,null,null,null,null,null,null,null,null,null,null,null,null,null,null,null,null,null,null,null,null,null,null,null,null,null,null,null,null,null,null,null,null,null,null,null,null,null,null,null,null,null,null,null,null,null,null,null,null,null,null,null,4,{"$f":"$DG$6","v":9},8,10]
[null,null,null,null,null,"正解",null,null,null,null,null,null,null,{"$f":"O24","v":9},null,null,null,null,null,null,null,null,null,null,null,null,null,null,null,null,null,null,null,null,null,null,null,null,null,null,null,null,null,null,null,null,null,null,null,null,null,null,null,null,null,null,null,{"$f":"IF(COUNTIF(DE30:DE32,\"○\")=3,\"○\",\"×\")","v":"×"},null,null,null,null,null,null,null,null,null,null,null,null,null,null,null,null,null,null,null,null,null,null,null,null,null,null,null,null,null,null,null,null,null,null,null,null,null,null,null,null,null,null,null,null,null,null,null,null,null,5,{"$f":"5-$DD$5","v":4},3,5]
[null,null,null,null,null,null,null,null,null,null,null,{"$f":"M25","v":"-"},null,null,null,null,null,null,null,null,null,null,null,null,null,null,null,null,null,null,null,null,null,null,null,null,null,null,null,null,null,null,null,null,null,null,null,null,null,null,null,null,null,null,null,null,null,null,null,null,null,null,null,null,null,null,null,null,null,null,null,null,null,null,null,null,null,null,null,null,null,null,null,null,null,null,null,null,null,null,null,null,null,null,null,null,null,null,null,null,null,null,null,null,null,null,null,6,{"$f":"5*$DF$5+1","v":6},5,7]
[null,null,null,null,null,null,null,null,null,null,null,null,null,{"$f":"O26","v":2},null,null,null,null,null,null,null,null,null,null,null,null,null,null,null,null,null,null,null,null,null,null,null,null,null,null,null,null,null,null,null,null,null,null,null,null,null,null,null,null,null,null,null,null,null,null,null,null,null,null,null,null,null,null,null,null,null,null,null,null,null,null,null,null,null,null,null,null,null,null,null,null,null,null,null,null,null,null,null,null,null,null,null,null,null,null,null,null,null,null,null,null,null,7,{"$f":"3*$DF$5+1","v":4},3,5]
[null,null,null,null,null,null,null,null,null,null,null,null,null,null,null,null,null,null,null,null,null,null,null,null,null,null,null,null,null,null,null,null,null,null,null,null,null,null,null,null,null,null,null,null,null,null,null,null,null,null,null,null,null,null,null,null,null,null,null,null,null,null,null,null,null,null,null,null,null,null,null,null,null,null,null,null,null,null,null,null,null,null,null,null,null,null,null,null,null,null,null,null,null,null,null,null,null,null,null,null,null,null,null,null,null,null,null,8,{"$f":"$DG$6","v":9},4,6]
[null,null,null,null,null,null,null,null,null,null,null,{"$f":"IF(N14<>\"\",\"―――――\",\"\")","v":"―――――"},null,null,null,null,null,null,null,null,null,null,null,null,null,null,null,null,null,null,null,null,null,null,null,null,null,null,null,null,null,null,null,null,null,null,null,null,null,null,null,null,null,null,null,null,null,null,null,null,null,null,null,null,null,null,null,null,null,null,null,null,null,null,null,null,null,null,null,null,null,null,null,null,null,null,null,null,null,null,null,null,null,null,null,null,null,null,null,null,null,null,null,null,null,null,null,9,{"$f":"2*($DE$5+1)","v":2},5,7]
[null,null,null,null,null,null,null,null,null,null,null,null,null,null,null,null,null,null,null,null,null,null,null,null,null,null,null,null,null,null,null,null,null,null,null,null,null,null,null,null,null,null,null,null,null,null,null,null,null,null,null,null,null,null,null,null,null,null,null,null,null,null,null,null,null,null,null,null,null,null,null,null,null,null,null,null,null,null,null,null,null,null,null,null,null,null,null,null,null,null,null,null,null,null,null,null,null,null,null,null,null,null,null,null,null,null,null,10,{"$f":"$DF$5+1","v":2},5,7]
[null,null,null,null,null,"解説",null,null,null,null,{"$f":"IF(COUNTIF(K8:S9,\"-\")=2,\"－が奇数個\",\"－が偶数個\")","v":"－が奇数個"},null,null,null,null,null,null,null,null,null,null,null,null,null,null,null,null,null,null,null,null,null,null,null,null,null,null,null,null,null,null,null,null,null,null,null,null,null,null,null,null,null,null,null,null,null,null,null,null,null,null,null,null,null,null,null,null,null,null,null,null,null,null,null,null,null,null,null,null,null,null,null,null,null,null,null,null,null,null,null,null,null,null,null,null,null,null,null,null,null,null,null,null,null,null,null,null,11,{"$f":"$DF$6+2","v":5},4,6]
[null,null,null,null,null,null,null,null,null,null,{"$f":"IF(COUNTIF(K8:Y9,\"-\")=2,\"符号なし\",\"符号は－\")","v":"符号は－"},null,null,null,{"$f":"L8&W8&Z8","v":"3×6"},null,null,null,null,null,null,null,null,null,"割る数が下(分母)",null,null,null,null,null,null,null,null,null,null,null,null,null,null,null,null,null,null,null,null,null,null,null,null,null,null,null,null,null,null,null,null,null,null,null,null,null,null,null,null,null,null,null,null,null,null,null,null,null,null,null,null,null,null,null,null,null,null,null,null,null,null,null,null,null,null,null,null,null,null,null,null,null,null,null,null,null,null,null,null,null,null,12,{"$f":"3*$DE$5+1","v":1},3,5]
[null,null,null,null,null,null,null,null,null,null,null,null,{"$f":"IF(COUNTIF(K8:Y9,\"-\")=2,\"\",\"-\")","v":"-"},null,null,null,null,null,null,null,null,null,null,null,null,null,null,null,null,null,null,null,null,null,null,null,null,null,null,null,null,null,null,null,null,null,null,null,null,null,null,null,null,null,null,null,null,null,null,null,null,null,null,null,null,null,null,null,null,null,null,null,null,null,null,null,null,null,null,null,null,null,null,null,null,null,null,null,null,null,null,null,null,null,null,null,null,null,null,null,null,null,null,null,null,null,null,13,{"$f":"$DD$6","v":3},5,7]
[null,null,null,null,null,null,null,null,null,null,null,null,null,null,{"$f":"S8","v":4},null,null,null,null,null,null,null,null,null,{"$f":"IF(GCD(L8*Z8,S8)>1,\"約分も忘れずに\",\"\")","v":"約分も忘れずに"},null,null,null,null,null,null,null,null,null,null,null,null,null,null,null,null,null,null,null,null,null,null,null,null,null,null,null,null,null,null,null,null,null,null,null,null,null,null,null,null,null,null,null,null,null,null,null,null,null,null,null,null,null,null,null,null,null,null,null,null,null,null,null,null,null,null,null,null,null,null,null,null,null,null,null,null,null,null,null,null,null,null,14,{"$f":"$DE$6","v":1},7,9]
[null,null,null,null,null,null,null,null,null,null,null,null,null,null,null,null,null,null,null,null,null,null,null,null,null,null,null,null,null,null,null,null,null,null,null,null,null,null,null,null,null,null,null,null,null,null,null,null,null,null,null,null,null,null,null,null,null,{"$f":"IF(BF12=\"○\",\"正解！\",\"残念！\")","v":"残念！"},null,null,null,null,null,null,null,null,null,null,null,null,null,null,null,null,null,null,null,null,null,null,null,null,null,null,null,null,null,null,null,null,null,null,null,null,null,null,null,null,null,null,null,null,null,null,null,null,null,15,{"$f":"$DF$6+1","v":4},5,7]
[null,null,null,null,null,null,null,null,null,null,null,null,null,null,null,null,null,null,null,null,null,null,null,null,null,null,null,null,null,null,null,null,null,null,null,null,null,null,null,null,null,null,null,null,null,null,null,null,null,null,null,null,null,null,null,null,null,null,null,null,null,null,null,null,null,null,null,null,null,null,null,null,null,null,null,null,null,null,null,null,null,null,null,null,null,null,null,null,null,null,null,null,null,null,null,null,null,null,null,null,null,null,null,null,null,null,null,16,{"$f":"$DD$6+4","v":7},6,8]
[null,null,null,null,null,null,null,null,null,null,null,null,null,null,{"$f":"L8*Z8/(GCD(L8*Z8,S8))","v":9},null,null,null,null,null,null,null,null,null,null,null,null,null,null,null,null,null,null,null,null,null,null,null,null,null,null,null,null,null,null,null,null,null,null,null,null,null,null,null,null,null,null,null,null,null,null,null,null,null,null,null,null,null,null,null,null,null,null,null,null,null,null,null,null,null,null,null,null,null,null,null,null,null,null,null,null,null,null,null,null,null,null,null,null,null,null,null,null,null,null,null,null,17,{"$f":"$DF$6+2","v":5},4,6]
[null,null,null,null,null,null,null,null,null,null,"=",null,{"$f":"M20","v":"-"},null,null,null,null,null,null,null,null,null,null,null,null,null,null,null,null,null,null,null,null,null,null,null,null,null,null,null,null,null,null,null,null,null,null,null,null,null,null,null,null,null,null,null,null,null,null,null,null,null,null,null,null,null,null,null,null,null,null,null,null,null,null,null,null,null,null,null,null,null,null,null,null,null,null,null,null,null,null,null,null,null,null,null,null,null,null,null,null,null,null,null,null,null,null,18,{"$f":"3*$DD$6+1","v":10},9,11]
[null,null,null,null,null,null,null,null,null,null,null,null,null,null,{"$f":"S8/(GCD(L8*Z8,S8))","v":2},null,null,null,null,null,null,null,null,null,null,null,null,null,null,null,null,null,null,null,null,null,null,null,null,null,null,null,null,null,null,null,null,null,null,null,null,null,null,null,null,null,null,null,null,null,null,null,null,null,null,null,null,null,null,null,null,null,null,null,null,null,null,null,null,null,null,null,null,null,null,null,null,null,null,null,null,null,null,null,null,null,null,null,null,null,null,null,null,null,null,null,null,19,{"$f":"6*$DE$5+1","v":1},6,8]
[null,null,null,null,null,null,null,null,null,null,null,null,null,null,null,null,null,null,null,null,null,null,null,null,null,null,null,null,null,null,null,null,null,null,null,null,null,null,null,null,null,null,null,null,null,null,null,null,null,null,null,null,null,null,null,null,null,null,null,null,null,null,null,null,null,null,null,null,null,null,null,null,null,null,null,null,null,null,null,null,null,null,null,null,null,null,null,null,null,null,null,null,null,null,null,null,null,null,null,null,null,null,null,null,null,null,null,20,{"$f":"$DE$6+6","v":7},10,12]
[]
[]
[null,null,null,null,null,null,null,null,null,null,null,null,null,null,null,null,null,null,null,null,null,null,null,null,null,null,null,null,null,null,null,null,null,null,null,null,null,null,null,null,null,null,null,null,null,null,null,null,null,null,null,null,null,null,null,null,null,null,null,null,null,null,null,null,null,null,null,null,null,null,null,null,null,null,null,null,null,null,null,null,null,null,null,null,null,null,null,null,null,null,null,null,null,null,null,null,null,null,null,null,null,null,null,null,null,null,null,null,{"$f":"IF(L13=AH8,\"○\",\"×\")","v":"×"},null,null,"-"]
[null,null,null,null,null,null,null,null,null,null,null,null,null,null,null,null,null,null,null,null,null,null,null,null,null,null,null,null,null,null,null,null,null,null,null,null,null,null,null,null,null,null,null,null,null,null,null,null,null,null,null,null,null,null,null,null,null,null,null,null,null,null,null,null,null,null,null,null,null,null,null,null,null,null,null,null,null,null,null,null,null,null,null,null,null,null,null,null,null,null,null,null,null,null,null,null,null,null,null,null,null,null,null,null,null,null,null,null,{"$f":"IF(N12=AJ7,\"○\",\"×\")","v":"×"}]
[null,null,null,null,null,null,null,null,null,null,null,null,null,null,null,null,null,null,null,null,null,null,null,null,null,null,null,null,null,null,null,null,null,null,null,null,null,null,null,null,null,null,null,null,null,null,null,null,null,null,null,null,null,null,null,null,null,null,null,null,null,null,null,null,null,null,null,null,null,null,null,null,null,null,null,null,null,null,null,null,null,null,null,null,null,null,null,null,null,null,null,null,null,null,null,null,null,null,null,null,null,null,null,null,null,null,null,null,{"$f":"IF(N14=AJ9,\"○\",\"×\")","v":"×"}]

{"sheet":"13　分数の乗除","index":12,"n_rows":34,"n_cols":117,"rows_kept":34,"cut":false,"hidden":false,"merged":[[7,2,8,5],[8,10,9,12],[7,22,8,22],[11,5,12,8],[11,13,12,16],[11,20,12,45],[7,16,8,16],[7,20,8,20],[7,8,8,8],[7,9,8,9],[7,13,8,13],[7,14,8,14],[12,11,13,12],[13,13,14,16],[7,27,8,27],[7,29,8,30],[0,33,4,68],[1,4,2,6],[1,7,2,25],[5,42,5,50],[6,2,6,5],[6,10,7,12],[6,17,7,19],[6,32,6,39],[6,43,6,44],[6,45,7,49],[7,32,8,39],[7,43,8,44],[7,51,8,61],[8,17,9,19],[8,45,9,49],[7,21,8,21],[17,5,18,8],[17,14,18,16],[26,10,27,11],[26,13,27,14],[27,15,28,24],[22,10,23,11],[22,12,23,12],[22,13,23,13],[18,21,19,21],[22,35,23,49],[22,29,23,29],[22,33,23,33],[23,30,24,32],[15,11,15,16],[18,18,19,19],[40,78,41,84],[32,109,33,109],[21,57,26,69],[25,15,26,24],[11,57,20,69],[17,22,18,24],[18,29,19,29],[18,26,19,27],[30,19,31,25],[29,109,30,109],[17,30,18,32],[18,33,19,33],[19,30,20,32],[21,30,22,32],[22,28,23,28],[26,26,27,40],[29,15,30,18],[31,15,32,18],[18,20,19,20],[18,28,19,28],[23,14,24,16],[23,22,24,24],[22,20,23,20],[22,21,23,21],[22,25,23,25],[22,26,23,27],[7,15,8,15],[7,23,8,23],[6,24,7,26],[8,24,9,26],[30,10,31,11],[30,13,31,14],[19,14,20,16],[19,22,20,24],[18,25,19,25],[22,17,23,17],[22,18,23,19],[21,14,22,16],[21,22,22,24],[18,12,19,12],[18,13,19,13],[18,17,19,17]]}
[null,null,null,null,null,null,null,null,null,null,null,null,null,null,null,null,null,null,null,null,null,null,null,null,null,null,null,null,null,null,null,null,null,"問題は２０題。約分できるものは約分して答えること。\n答えが整数か分数かで、解答の入力場所が違います。"]
[null,null,null,null,13,null,null,"分数の乗除"]
[]
[]
[null,null,null,null,null,null,null,null,null,null,null,null,null,null,null,null,null,null,null,null,null,null,null,null,null,null,null,null,null,null,null,null,null,null,null,null,null,null,null,null,null,null,null,null,null,null,null,null,null,null,null,null,null,null,null,null,null,null,null,null,null,null,null,null,null,null,null,null,null,null,null,null,null,null,null,null,null,null,null,null,null,null,null,null,null,null,null,null,null,null,null,null,null,null,null,null,null,null,null,null,null,null,null,null,null,null,null,null,{"$f":"MOD(DAY(TODAY()),2)","v":1},{"$f":"MOD(DAY(TODAY()),3)","v":0},{"$f":"MOD(DAY(TODAY()),4)","v":1},{"$f":"MOD(DAY(TODAY()),5)","v":4},{"$f":"MOD(DAY(TODAY()),6)","v":3}]
[null,null,null,null,null,null,null,null,null,null,null,null,null,null,null,null,null,null,null,null,null,null,null,null,null,null,null,null,null,null,null,null,null,null,null,null,null,null,null,null,null,null,"答えが分数の時",null,null,null,null,null,null,null,null,null,null,null,null,null,null,null,null,null,null,null,null,null,null,null,null,null,null,null,null,null,null,null,null,null,null,null,null,null,null,null,null,null,null,null,null,null,null,null,null,null,null,null,null,null,null,null,null,null,null,null,null,null,null,null,null,null,{"$f":"2*DE5+1","v":3},{"$f":"2*DF5+1","v":1},3,9,7]
[null,null,null,null,null,null,null,null,null,null,{"$f":"VLOOKUP($C$8,$DD$8:$DJ$27,3,0)","v":2},null,null,null,null,null,null,{"$f":"VLOOKUP($C$8,$DD$8:$DJ$27,6,0)","v":1},null,null,null,null,null,null,{"$f":"VLOOKUP($C$8,$DD$8:$DM$27,9,0)","v":3},null,null,null,null,null,null,null,"答えが整数の時",null,null,null,null,null,null,null,null,null,null,null,null,null,null,null,null,null,null,null,null,null,null,null,null,null,null,null,null,null,null,null,null,null,null,null,null,null,null,null,null,null,null,null,null,null,null,null,null,null,null,null,null,null,null,null,null,null,null,null,null,null,null,null,null,null,null,null,null,null,null,null,null,null,null,null,null,null,"母",null,null,"母",null,null,"母"]
[null,null,1,null,null,null,null,null,"(",{"$f":"VLOOKUP($C$8,$DD$8:$DJ$27,2,0)","v":"+"},null,null,null,")","÷","(",{"$f":"VLOOKUP($C$8,$DD$8:$DJ$27,5,0)","v":"+"},null,null,null,")","×","(",{"$f":"VLOOKUP($C$8,$DD$8:$DM$27,8,0)","v":"-"},null,null,null,")",null,"＝",null,null,null,null,null,null,null,null,null,null,null,null,null,null,null,null,null,null,null,null,null,"←符号は選んで！",null,null,null,null,null,null,null,null,null,null,null,null,null,null,null,null,null,null,null,null,null,null,null,null,null,null,null,null,null,null,null,null,null,null,null,null,null,null,null,null,null,null,null,null,null,null,null,null,null,null,null,null,null,null,null,1,"+",2,3,"+",{"$f":"DF6","v":1},4,"-",3,2]
[null,null,null,null,null,null,null,null,null,null,{"$f":"VLOOKUP($C$8,$DD$8:$DJ$27,4,0)","v":3},null,null,null,null,null,null,{"$f":"VLOOKUP($C$8,$DD$8:$DJ$27,7,0)","v":4},null,null,null,null,null,null,{"$f":"VLOOKUP($C$8,$DD$8:$DM$27,10,0)","v":2},null,null,null,null,null,null,null,null,null,null,null,null,null,null,null,null,null,null,null,null,null,null,null,null,null,null,null,null,null,null,null,null,null,null,null,null,null,null,null,null,null,null,null,null,null,null,null,null,null,null,null,null,null,null,null,null,null,null,null,null,null,null,null,null,null,null,null,null,null,null,null,null,null,null,null,null,null,null,null,null,null,null,2,"+",{"$f":"6*$DE$5+1","v":7},6,"-",{"$f":"$DF$5*3+2","v":2},3,"-",1,2]
[null,null,null,null,null,null,null,null,null,null,null,null,null,null,null,null,null,null,null,null,null,null,null,null,null,null,null,null,null,null,null,null,null,null,null,null,null,null,null,null,null,null,null,null,null,null,null,null,null,null,null,null,null,null,null,null,null,null,null,null,null,null,null,null,null,null,null,null,null,null,null,null,null,null,null,null,null,null,null,null,null,null,null,null,null,null,null,null,null,null,null,null,null,null,null,null,null,null,null,null,null,null,null,null,null,null,null,3,"-",{"$f":"$DF$6","v":1},2,"+",{"$f":"$DE$6+4","v":7},6,"-",7,3]
[null,null,null,null,null,null,null,null,null,null,null,null,null,null,null,null,null,null,null,null,null,null,null,null,null,null,null,null,null,null,null,null,null,null,null,null,null,null,null,null,null,null,null,null,null,null,null,null,null,null,null,null,null,null,null,null,null,null,null,null,null,null,null,null,null,null,null,null,null,null,null,null,null,null,null,null,null,null,null,null,null,null,null,null,null,null,null,null,null,null,null,null,null,null,null,null,null,null,null,null,null,null,null,null,null,null,null,4,"-",{"$f":"8-$DG$6","v":5},2,"-",{"$f":"$DH$6","v":9},8,"-",2,3]
[null,null,null,null,null,"正解",null,null,null,null,null,null,null,{"$f":"IF(P30=\"\",T31,P30)","v":-4},null,null,null,null,null,null,null,null,null,null,null,null,null,null,null,null,null,null,null,null,null,null,null,null,null,null,null,null,null,null,null,null,null,null,null,null,null,null,null,null,null,null,null,{"$f":"IF(COUNTIF(DF30:DF34,\"○\")=2,\"○\",\"×\")","v":"×"},null,null,null,null,null,null,null,null,null,null,null,null,null,null,null,null,null,null,null,null,null,null,null,null,null,null,null,null,null,null,null,null,null,null,null,null,null,null,null,null,null,null,null,null,null,null,null,null,null,5,"+",{"$f":"$DE$5+1","v":2},9,"-",{"$f":"5-$DE$5","v":4},3,"-",3,4]
[null,null,null,null,null,null,null,null,null,null,null,{"$f":"IF(CA41=\"\",N31,\"\")","v":""},null,null,null,null,null,null,null,null,null,null,null,null,null,null,null,null,null,null,null,null,null,null,null,null,null,null,null,null,null,null,null,null,null,null,null,null,null,null,null,null,null,null,null,null,null,null,null,null,null,null,null,null,null,null,null,null,null,null,null,null,null,null,null,null,null,null,null,null,null,null,null,null,null,null,null,null,null,null,null,null,null,null,null,null,null,null,null,null,null,null,null,null,null,null,null,6,"-",{"$f":"$DG$6+6","v":9},10,"+",{"$f":"4-$DG$5","v":3},5,"-",5,4]
[null,null,null,null,null,null,null,null,null,null,null,null,null,{"$f":"IF(P32=\"\",\"\",P32)","v":""},null,null,null,null,null,null,null,null,null,null,null,null,null,null,null,null,null,null,null,null,null,null,null,null,null,null,null,null,null,null,null,null,null,null,null,null,null,null,null,null,null,null,null,null,null,null,null,null,null,null,null,null,null,null,null,null,null,null,null,null,null,null,null,null,null,null,null,null,null,null,null,null,null,null,null,null,null,null,null,null,null,null,null,null,null,null,null,null,null,null,null,null,null,7,"+",{"$f":"$DF$6","v":1},2,"+",{"$f":"3*$DF$5+$DE$6+1","v":4},3,"-",7,4]
[null,null,null,null,null,null,null,null,null,null,null,null,null,null,null,null,null,null,null,null,null,null,null,null,null,null,null,null,null,null,null,null,null,null,null,null,null,null,null,null,null,null,null,null,null,null,null,null,null,null,null,null,null,null,null,null,null,null,null,null,null,null,null,null,null,null,null,null,null,null,null,null,null,null,null,null,null,null,null,null,null,null,null,null,null,null,null,null,null,null,null,null,null,null,null,null,null,null,null,null,null,null,null,null,null,null,null,8,"+",{"$f":"$DE$5+4","v":5},3,"-",{"$f":"$DG$6","v":3},4,"-",3,5]
[null,null,null,null,null,null,null,null,null,null,null,{"$f":"IF(N14=\"\",\"\",\"―――――\")","v":""},null,null,null,null,null,null,null,null,null,null,null,null,null,null,null,null,null,null,null,null,null,null,null,null,null,null,null,null,null,null,null,null,null,null,null,null,null,null,null,null,null,null,null,null,null,null,null,null,null,null,null,null,null,null,null,null,null,null,null,null,null,null,null,null,null,null,null,null,null,null,null,null,null,null,null,null,null,null,null,null,null,null,null,null,null,null,null,null,null,null,null,null,null,null,null,9,"-",{"$f":"$DG$6","v":3},2,"+",{"$f":"2*($DF$5+1)","v":2},5,"-",8,5]
[null,null,null,null,null,null,null,null,null,null,null,null,null,null,null,null,null,null,null,null,null,null,null,null,null,null,null,null,null,null,null,null,null,null,null,null,null,null,null,null,null,null,null,null,null,null,null,null,null,null,null,null,null,null,null,null,null,null,null,null,null,null,null,null,null,null,null,null,null,null,null,null,null,null,null,null,null,null,null,null,null,null,null,null,null,null,null,null,null,null,null,null,null,null,null,null,null,null,null,null,null,null,null,null,null,null,null,10,"-",{"$f":"3*$DE$5+1","v":4},3,"-",{"$f":"$DG$5+1","v":2},5,"-",5,6]
[null,null,null,null,null,"解説",null,null,null,null,null,null,null,null,{"$f":"K7","v":2},null,null,null,null,null,null,null,{"$f":"R7","v":1},null,null,null,null,null,null,null,{"$f":"Y7","v":3},null,null,null,null,null,null,null,null,null,null,null,null,null,null,null,null,null,null,null,null,null,null,null,null,null,null,null,null,null,null,null,null,null,null,null,null,null,null,null,null,null,null,null,null,null,null,null,null,null,null,null,null,null,null,null,null,null,null,null,null,null,null,null,null,null,null,null,null,null,null,null,null,null,null,null,null,11,"+",{"$f":"DE6","v":3},2,"-",1,7,"-",1,6]
[null,null,null,null,null,null,null,null,null,null,null,null,"（",{"$f":"J8","v":"+"},null,null,null,")","÷",null,"（",{"$f":"Q8","v":"+"},null,null,null,")","×",null,"(",{"$f":"X8","v":"-"},null,null,null,")",null,null,null,null,null,null,null,null,null,null,null,null,null,null,null,null,null,null,null,null,null,null,null,null,null,null,null,null,null,null,null,null,null,null,null,null,null,null,null,null,null,null,null,null,null,null,null,null,null,null,null,null,null,null,null,null,null,null,null,null,null,null,null,null,null,null,null,null,null,null,null,null,null,12,"-",{"$f":"(DE5+1)*(DG5+1)","v":4},7,"+",{"$f":"3*DE5+1","v":4},3,"-",2,7]
[null,null,null,null,null,null,null,null,null,null,null,null,null,null,{"$f":"K9","v":3},null,null,null,null,null,null,null,{"$f":"R9","v":4},null,null,null,null,null,null,null,{"$f":"Y9","v":2},null,null,null,null,null,null,null,null,null,null,null,null,null,null,null,null,null,null,null,null,null,null,null,null,null,null,null,null,null,null,null,null,null,null,null,null,null,null,null,null,null,null,null,null,null,null,null,null,null,null,null,null,null,null,null,null,null,null,null,null,null,null,null,null,null,null,null,null,null,null,null,null,null,null,null,null,13,"+",{"$f":"$DF$6","v":1},4,"+",{"$f":"$DE$6","v":3},5,"-",12,7]
[null,null,null,null,null,null,null,null,null,null,null,null,null,null,null,null,null,null,null,null,null,null,null,null,null,null,null,null,null,null,null,null,null,null,null,null,null,null,null,null,null,null,null,null,null,null,null,null,null,null,null,null,null,null,null,null,null,null,null,null,null,null,null,null,null,null,null,null,null,null,null,null,null,null,null,null,null,null,null,null,null,null,null,null,null,null,null,null,null,null,null,null,null,null,null,null,null,null,null,null,null,null,null,null,null,null,null,14,"+",{"$f":"4*$DE$5+1","v":5},4,"-",{"$f":"$DF$6","v":1},7,"-",3,8]
[null,null,null,null,null,null,null,null,null,null,null,null,null,null,{"$f":"O18","v":2},null,null,null,null,null,null,null,{"$f":"W20","v":4},null,null,null,null,null,null,null,{"$f":"AE18","v":3},null,null,null,null,null,null,null,null,null,null,null,null,null,null,null,null,null,null,null,null,null,null,null,null,null,null,{"$f":"IF(BF12=\"○\",\"正解！\",\"残念！\")","v":"残念！"},null,null,null,null,null,null,null,null,null,null,null,null,null,null,null,null,null,null,null,null,null,null,null,null,null,null,null,null,null,null,null,null,null,null,null,null,null,null,null,null,null,null,null,null,null,null,null,null,null,15,"-",{"$f":"2*$DE$6-1","v":5},6,"+",{"$f":"$DG$6+1","v":4},5,"-",5,8]
[null,null,null,null,null,null,null,null,null,null,"=",null,"（",{"$f":"N19","v":"+"},null,null,null,")","×",null,"（",{"$f":"V19","v":"+"},null,null,null,")","×",null,"(",{"$f":"AD19","v":"-"},null,null,null,")",null,{"$f":"IF(COUNTIF(N23:AB24,\"-\")=2,\"⇒　－が偶数個「＋」\",\"⇒　－が奇数個「－」\")","v":"⇒　－が奇数個「－」"},null,null,null,null,null,null,null,null,null,null,null,null,null,null,null,null,null,null,null,null,null,null,null,null,null,null,null,null,null,null,null,null,null,null,null,null,null,null,null,null,null,null,null,null,null,null,null,null,null,null,null,null,null,null,null,null,null,null,null,null,null,null,null,null,null,null,null,null,null,null,null,16,"-",{"$f":"4*DF5+1","v":1},4,"-",{"$f":"$DE$6+4","v":7},6,"-",2,9]
[null,null,null,null,null,null,null,null,null,null,null,null,null,null,{"$f":"O20","v":3},null,null,null,null,null,null,null,{"$f":"W18","v":1},null,null,null,null,null,null,null,{"$f":"AE20","v":2},null,null,null,null,null,null,null,null,null,null,null,null,null,null,null,null,null,null,null,null,null,null,null,null,null,null,null,null,null,null,null,null,null,null,null,null,null,null,null,null,null,null,null,null,null,null,null,null,null,null,null,null,null,null,null,null,null,null,null,null,null,null,null,null,null,null,null,null,null,null,null,null,null,null,null,null,17,"+",{"$f":"4*$DE$6+1","v":13},6,"-",{"$f":"$DG$6+2","v":5},4,"-",5,9]
[null,null,null,null,null,null,null,null,null,null,null,null,null,null,null,null,null,null,null,null,null,null,null,null,null,null,null,null,null,null,null,null,null,null,null,null,null,null,null,null,null,null,null,null,null,null,null,null,null,null,null,null,null,null,null,null,null,null,null,null,null,null,null,null,null,null,null,null,null,null,null,null,null,null,null,null,null,null,null,null,null,null,null,null,null,null,null,null,null,null,null,null,null,null,null,null,null,null,null,null,null,null,null,null,null,null,null,18,"-",{"$f":"IF(DG6=5,7,$DG$6+4)","v":7},6,"-",{"$f":"3*$DE$6+1","v":10},9,"-",20,9]
[null,null,null,null,null,null,null,null,null,null,null,null,null,null,null,{"$f":"O22&S23&W22&AA23&AE22","v":"2×4×3"},null,null,null,null,null,null,null,null,null,null,null,null,null,null,null,null,null,null,null,null,null,null,null,null,null,null,null,null,null,null,null,null,null,null,null,null,null,null,null,null,null,null,null,null,null,null,null,null,null,null,null,null,null,null,null,null,null,null,null,null,null,null,null,null,null,null,null,null,null,null,null,null,null,null,null,null,null,null,null,null,null,null,null,null,null,null,null,null,null,null,null,19,"-",{"$f":"DH6+2","v":11},8,"+",{"$f":"IF(DG6=5,7,DG6+4)","v":7},6,"-",7,10]
[null,null,null,null,null,null,null,null,null,null,"=",null,null,{"$f":"IF(COUNTIF(J7:X10,\"-\")=2,\"\",\"-\")","v":"-"},null,null,null,null,null,null,null,null,null,null,null,null,{"$f":"IF(GCD(O22*W22*AE22,O24*W24*AE24)=1,\"\",\"⇒約分！\")","v":"⇒約分！"},null,null,null,null,null,null,null,null,null,null,null,null,null,null,null,null,null,null,null,null,null,null,null,null,null,null,null,null,null,null,null,null,null,null,null,null,null,null,null,null,null,null,null,null,null,null,null,null,null,null,null,null,null,null,null,null,null,null,null,null,null,null,null,null,null,null,null,null,null,null,null,null,null,null,null,null,null,null,null,null,20,"-",{"$f":"IF(DI6=5,7,DI6)","v":7},5,"-",{"$f":"$DF$6+6","v":7},10,"-",7,10]
[null,null,null,null,null,null,null,null,null,null,null,null,null,null,null,{"$f":"O24&S23&W24&AA23&AE24","v":"3×1×2"}]
[]
[null,null,null,null,null,null,null,null,null,null,null,null,null,null,null,{"$f":"IF(T31=\"\",O22*W22*AE22/(GCD(O22*W22*AE22,O24*W24*AE24)),\"\")","v":""},null,null,null,null,null,null,null,null,null,null,null,null,null,null,null,null,null,null,null,null,null,null,null,null,null,null,null,null,null,null,null,null,null,null,null,null,null,null,null,null,null,null,null,null,null,null,null,null,null,null,null,null,null,null,null,null,null,null,null,null,null,null,null,null,null,null,null,null,null,null,null,null,null,null,null,null,null,null,null,null,null,null,null,null,null,null,null,null,null,null,null,null,{"$f":"IF(COUNTA(AQ7:AY10)=0,\"×\",\"○\")","v":"×"},{"$f":"IF(COUNTIF(DE30:DE31,\"○\")=1,\"○\",\"×\")","v":"×"},null,"-"]
[null,null,null,null,null,null,null,null,null,null,"=",null,null,{"$f":"IF(T31=\"\",IF(N27=\"\",\"\",N27),\"\")","v":""},null,null,null,null,null,{"$f":"IF(MOD(O22*W22*AE22,O24*W24*AE24)=0,VALUE(ASC(N27&(O22*W22*AE22/O24/W24/AE24))),\"\")","v":-4},null,null,null,null,null,null,null,null,null,null,null,null,null,null,null,null,null,null,null,null,null,null,null,null,null,null,null,null,null,null,null,null,null,null,null,null,null,null,null,null,null,null,null,null,null,null,null,null,null,null,null,null,null,null,null,null,null,null,null,null,null,null,null,null,null,null,null,null,null,null,null,null,null,null,null,null,null,null,null,null,null,null,null,null,null,null,null,null,{"$f":"IF(COUNTA(AG8)=0,\"×\",\"○\")","v":"×"}]
[null,null,null,null,null,null,null,null,null,null,null,null,null,null,null,{"$f":"IF(T31=\"\",O24*W24*AE24/(GCD(O22*W22*AE22,O24*W24*AE24)),\"\")","v":""},null,null,null,null,null,null,null,null,null,null,null,null,null,null,null,null,null,null,null,null,null,null,null,null,null,null,null,null,null,null,null,null,null,null,null,null,null,null,null,null,null,null,null,null,null,null,null,null,null,null,null,null,null,null,null,null,null,null,null,null,null,null,null,null,null,null,null,null,null,null,null,null,null,null,null,null,null,null,null,null,null,null,null,null,null,null,null,null,null,null,null,null,{"$f":"IF(AG8=\"\",\"×\",IF(AT7=\"\",IF(AG8=N12,\"○\",\"×\"),\"×\"))","v":"×"},{"$f":"DE32","v":"×"}]
[null,null,null,null,null,null,null,null,null,null,null,null,null,null,null,null,null,null,null,null,null,null,null,null,null,null,null,null,null,null,null,null,null,null,null,null,null,null,null,null,null,null,null,null,null,null,null,null,null,null,null,null,null,null,null,null,null,null,null,null,null,null,null,null,null,null,null,null,null,null,null,null,null,null,null,null,null,null,null,null,null,null,null,null,null,null,null,null,null,null,null,null,null,null,null,null,null,null,null,null,null,null,null,null,null,null,null,null,{"$f":"IF(AT7=\"\",\"×\",IF(VALUE(ASC(L13&N12))=VALUE(ASC(AR8&AT7)),\"○\",\"×\"))","v":"×"},{"$f":"IF(COUNTIF(DE33:DE34,\"○\")=2,\"○\",\"×\")","v":"×"}]
[null,null,null,null,null,null,null,null,null,null,null,null,null,null,null,null,null,null,null,null,null,null,null,null,null,null,null,null,null,null,null,null,null,null,null,null,null,null,null,null,null,null,null,null,null,null,null,null,null,null,null,null,null,null,null,null,null,null,null,null,null,null,null,null,null,null,null,null,null,null,null,null,null,null,null,null,null,null,null,null,null,null,null,null,null,null,null,null,null,null,null,null,null,null,null,null,null,null,null,null,null,null,null,null,null,null,null,null,{"$f":"IF(AT9=N14,\"○\",\"×\")","v":"○"}]